Body Name,Body,Service Area Catergorisation,Service Division Catergorisation,Responsible Unit,Expenses Type,Detailed Expenses Type,Expenses Code,Date,Transaction Number,Amount,Capital / Revenue,Supplier Name,Supplier ID
North East Lincolnshire Council,http://statistics.data.gov.uk/id/local-authority/00FC,Cap Environment,Integrated Transport,Integrated Transport,Cap Exp Main Contract,Cap Exp Main Contract,XB01,03/02/2011,3014097,"2,525.45",Capital,PELL FRISCHMANN CONSULTANTS,77813
North East Lincolnshire Council,http://statistics.data.gov.uk/id/local-authority/00FC,Cap Environment,Integrated Transport,Integrated Transport,Cap Exp Main Contract,Cap Exp Main Contract,XB01,28/02/2011,3027884,945.25,Capital,REGIONAL PUBLICATIONS LTD,38698
North East Lincolnshire Council,http://statistics.data.gov.uk/id/local-authority/00FC,Cap Environment,Integrated Transport,Integrated Transport,Cap Exp Main Contract,Cap Exp Main Contract,XB01,28/02/2011,3027963,"11,969.88",Capital,C R REYNOLDS (CONSTRUCTION),7385
North East Lincolnshire Council,http://statistics.data.gov.uk/id/local-authority/00FC,Cap Environment,Integrated Transport,Integrated Transport,Cap Exp Main Contract,Cap Exp Main Contract,XB01,28/02/2011,3027959,"13,198.62",Capital,C R REYNOLDS (CONSTRUCTION),7385
North East Lincolnshire Council,http://statistics.data.gov.uk/id/local-authority/00FC,Cap Environment,Integrated Transport,Integrated Transport,Cap Exp Main Contract,Cap Exp Main Contract,XB01,14/02/2011,3019659,"1,904.92",Capital,YORKSHIRE ELECTRICITY,2684
North East Lincolnshire Council,http://statistics.data.gov.uk/id/local-authority/00FC,Cap Environment,Integrated Transport,Integrated Transport,Cap Exp Main Contract,Cap Exp Main Contract,XB01,24/02/2011,3026092,"35,133.28",Capital,J MCCANN & CO LTD,72950
North East Lincolnshire Council,http://statistics.data.gov.uk/id/local-authority/00FC,Cap Environment,Integrated Transport,Integrated Transport,Cap Exp Main Contract,Cap Exp Main Contract,XB01,24/02/2011,3026092,"5,026.51",Capital,J MCCANN & CO LTD,72950
North East Lincolnshire Council,http://statistics.data.gov.uk/id/local-authority/00FC,Cap Environment,Integrated Transport,Integrated Transport,Cap Exp Main Contract,Cap Exp Main Contract,XB01,24/02/2011,3026092,"1,341.99",Capital,J MCCANN & CO LTD,72950
North East Lincolnshire Council,http://statistics.data.gov.uk/id/local-authority/00FC,Cap Environment,Integrated Transport,Integrated Transport,Cap Exp Main Contract,Cap Exp Main Contract,XB01,24/02/2011,3026092,"3,609.06",Capital,J MCCANN & CO LTD,72950
North East Lincolnshire Council,http://statistics.data.gov.uk/id/local-authority/00FC,Cap Environment,Integrated Transport,Integrated Transport,Cap Exp Main Contract,Cap Exp Main Contract,XB01,03/02/2011,3013976,870.03,Capital,MASON CLARK ASSOCIATES,44734
North East Lincolnshire Council,http://statistics.data.gov.uk/id/local-authority/00FC,Cap Environment,Integrated Transport,Integrated Transport,Cap Exp Main Contract,Cap Exp Main Contract,XB01,28/02/2011,3027878,"1,000.00",Capital,HERITAGE TRUST OF LINCOLNSHIRE LTD,86726
North East Lincolnshire Council,http://statistics.data.gov.uk/id/local-authority/00FC,Cap Environment,Integrated Transport,Integrated Transport,Cap Exp Main Contract,Cap Exp Main Contract,XB01,03/02/2011,3013972,"7,215.00",Capital,RED ZULU LIMITED,181551
North East Lincolnshire Council,http://statistics.data.gov.uk/id/local-authority/00FC,Cap Environment,Off Road Parking,Off Road Parking,Cap Exp Main Contract,Cap Exp Main Contract,XB01,21/02/2011,3023994,"1,104.54",Capital,YORKSHIRE ELECTRICITY DISTRIBUTION PLC,2936
North East Lincolnshire Council,http://statistics.data.gov.uk/id/local-authority/00FC,Cap Environment,Off Road Parking,Off Road Parking,Cap Exp Main Contract,Cap Exp Main Contract,XB01,24/02/2011,3026092,"2,065.83",Capital,J MCCANN & CO LTD,72950
North East Lincolnshire Council,http://statistics.data.gov.uk/id/local-authority/00FC,Cap Environment,Off Road Parking,Off Road Parking,Cap Exp Main Contract,Cap Exp Main Contract,XB01,17/02/2011,3022404,"2,335.68",Capital,BRITISH TELECOMMUNICATIONS PLC,181704
North East Lincolnshire Council,http://statistics.data.gov.uk/id/local-authority/00FC,Cap Environment,Off Road Parking,Off Road Parking,Cap Exp Main Contract,Cap Exp Main Contract,XB01,21/02/2011,3023996,"13,502.36",Capital,VIRGIN MEDIA LTD,166168
North East Lincolnshire Council,http://statistics.data.gov.uk/id/local-authority/00FC,Cap Environment,Bradley Playing Fields,Bradley Playing Fields,Cap Exp Main Contract,Cap Exp Main Contract,XB01,23/02/2011,3025345,"2,340.00",Capital,NTL,153928
North East Lincolnshire Council,http://statistics.data.gov.uk/id/local-authority/00FC,Cap Environment,Highway Infrastructure Imp,Highway Infrastructure Imp,Cap Exp Main Contract,Cap Exp Main Contract,XB01,21/02/2011,3023439,"50,010.86",Capital,C R REYNOLDS (CONSTRUCTION),7385
North East Lincolnshire Council,http://statistics.data.gov.uk/id/local-authority/00FC,Cap Environment,Highway Infrastructure Imp,Highway Infrastructure Imp,Cap Exp Main Contract,Cap Exp Main Contract,XB01,21/02/2011,3023972,610.58,Capital,VIRGIN MEDIA LTD,166168
North East Lincolnshire Council,http://statistics.data.gov.uk/id/local-authority/00FC,Cap Community Care,Hps-Disabled Fac. Grants,Hps-Disabled Fac. Grants,Cap Exp Main Contract,Cap Exp Main Contract,XG01,04/02/2011,3014836,590.57,Capital,MEARS LTD,177642
North East Lincolnshire Council,http://statistics.data.gov.uk/id/local-authority/00FC,Cap Community Care,Hps-Disabled Fac. Grants,Hps-Disabled Fac. Grants,Cap Exp Main Contract,Cap Exp Main Contract,XG01,22/02/2011,3024958,813.93,Capital,MEARS LTD,177642
North East Lincolnshire Council,http://statistics.data.gov.uk/id/local-authority/00FC,Cap Community Care,Hps-Disabled Fac. Grants,Hps-Disabled Fac. Grants,Cap Exp Main Contract,Cap Exp Main Contract,XG01,04/02/2011,3014834,"1,225.00",Capital,HANDICARE ACCESSIIBILITY LTD,180752
North East Lincolnshire Council,http://statistics.data.gov.uk/id/local-authority/00FC,Cap Community Care,Hps-Disabled Fac. Grants,Hps-Disabled Fac. Grants,Cap Exp Main Contract,Cap Exp Main Contract,XG01,04/02/2011,3014815,"2,245.75",Capital,DURA-CARE LTD,165056
North East Lincolnshire Council,http://statistics.data.gov.uk/id/local-authority/00FC,Cap Community Care,Hps-Disabled Fac. Grants,Hps-Disabled Fac. Grants,Cap Exp Main Contract,Cap Exp Main Contract,XG01,10/02/2011,3018378,"2,553.00",Capital,B P JOINERY,136880
North East Lincolnshire Council,http://statistics.data.gov.uk/id/local-authority/00FC,Cap Community Care,Hps-Disabled Fac. Grants,Hps-Disabled Fac. Grants,Cap Exp Main Contract,Cap Exp Main Contract,XG01,16/02/2011,3021242,"2,817.00",Capital,M K STAPLES,173462
North East Lincolnshire Council,http://statistics.data.gov.uk/id/local-authority/00FC,Cap Community Care,Hps-Disabled Fac. Grants,Hps-Disabled Fac. Grants,Cap Exp Main Contract,Cap Exp Main Contract,XG01,04/02/2011,3014814,"2,851.25",Capital,DURA-CARE LTD,165056
North East Lincolnshire Council,http://statistics.data.gov.uk/id/local-authority/00FC,Cap Community Care,Hps-Disabled Fac. Grants,Hps-Disabled Fac. Grants,Cap Exp Main Contract,Cap Exp Main Contract,XG01,04/02/2011,3014835,"3,135.00",Capital,DOLPHIN MOBILITY EAST MIDLANDS LTD,138731
North East Lincolnshire Council,http://statistics.data.gov.uk/id/local-authority/00FC,Cap Community Care,Hps-Disabled Fac. Grants,Hps-Disabled Fac. Grants,Cap Exp Main Contract,Cap Exp Main Contract,XG01,16/02/2011,3021244,"3,151.67",Capital,M K STAPLES,173462
North East Lincolnshire Council,http://statistics.data.gov.uk/id/local-authority/00FC,Cap Community Care,Hps-Disabled Fac. Grants,Hps-Disabled Fac. Grants,Cap Exp Main Contract,Cap Exp Main Contract,XG01,16/02/2011,3021243,"3,202.52",Capital,MEARS LTD,177642
North East Lincolnshire Council,http://statistics.data.gov.uk/id/local-authority/00FC,Cap Community Care,Hps-Disabled Fac. Grants,Hps-Disabled Fac. Grants,Cap Exp Main Contract,Cap Exp Main Contract,XG01,16/02/2011,3021250,"3,290.00",Capital,B P JOINERY,136880
North East Lincolnshire Council,http://statistics.data.gov.uk/id/local-authority/00FC,Cap Community Care,Hps-Disabled Fac. Grants,Hps-Disabled Fac. Grants,Cap Exp Main Contract,Cap Exp Main Contract,XG01,10/02/2011,3018331,"3,800.00",Capital,DURA-CARE LTD,165056
North East Lincolnshire Council,http://statistics.data.gov.uk/id/local-authority/00FC,Cap Community Care,Hps-Disabled Fac. Grants,Hps-Disabled Fac. Grants,Cap Exp Main Contract,Cap Exp Main Contract,XG01,16/02/2011,3021241,"3,840.00",Capital,LINCS PLUMBING & HEATING CO,179737
North East Lincolnshire Council,http://statistics.data.gov.uk/id/local-authority/00FC,Cap Community Care,Hps-Disabled Fac. Grants,Hps-Disabled Fac. Grants,Cap Exp Main Contract,Cap Exp Main Contract,XG01,10/02/2011,3018328,"3,849.76",Capital,MEARS LTD,177642
North East Lincolnshire Council,http://statistics.data.gov.uk/id/local-authority/00FC,Cap Community Care,Hps-Disabled Fac. Grants,Hps-Disabled Fac. Grants,Cap Exp Main Contract,Cap Exp Main Contract,XG01,04/02/2011,3014828,"3,860.00",Capital,LINCS PLUMBING & HEATING CO,179737
North East Lincolnshire Council,http://statistics.data.gov.uk/id/local-authority/00FC,Cap Community Care,Hps-Disabled Fac. Grants,Hps-Disabled Fac. Grants,Cap Exp Main Contract,Cap Exp Main Contract,XG01,04/02/2011,3014821,"4,295.00",Capital,E J PARMENTER,84282
North East Lincolnshire Council,http://statistics.data.gov.uk/id/local-authority/00FC,Cap Community Care,Hps-Disabled Fac. Grants,Hps-Disabled Fac. Grants,Cap Exp Main Contract,Cap Exp Main Contract,XG01,16/02/2011,3021256,"4,410.00",Capital,REDACTED PERSONAL DATA,REDACTED PERSONAL DATA
North East Lincolnshire Council,http://statistics.data.gov.uk/id/local-authority/00FC,Cap Community Care,Hps-Disabled Fac. Grants,Hps-Disabled Fac. Grants,Cap Exp Main Contract,Cap Exp Main Contract,XG01,04/02/2011,3014822,"4,425.00",Capital,LINCS PLUMBING & HEATING CO,179737
North East Lincolnshire Council,http://statistics.data.gov.uk/id/local-authority/00FC,Cap Community Care,Hps-Disabled Fac. Grants,Hps-Disabled Fac. Grants,Cap Exp Main Contract,Cap Exp Main Contract,XG01,16/02/2011,3021260,"4,540.00",Capital,CLEVELAND JOINERY,179704
North East Lincolnshire Council,http://statistics.data.gov.uk/id/local-authority/00FC,Cap Community Care,Hps-Disabled Fac. Grants,Hps-Disabled Fac. Grants,Cap Exp Main Contract,Cap Exp Main Contract,XG01,24/02/2011,3026157,"4,540.00",Capital,LINCS PLUMBING & HEATING CO,179737
North East Lincolnshire Council,http://statistics.data.gov.uk/id/local-authority/00FC,Cap Community Care,Hps-Disabled Fac. Grants,Hps-Disabled Fac. Grants,Cap Exp Main Contract,Cap Exp Main Contract,XG01,04/02/2011,3014817,"4,809.00",Capital,DURA-CARE LTD,165056
North East Lincolnshire Council,http://statistics.data.gov.uk/id/local-authority/00FC,Cap Community Care,Hps-Disabled Fac. Grants,Hps-Disabled Fac. Grants,Cap Exp Main Contract,Cap Exp Main Contract,XG01,04/02/2011,3014711,"4,854.00",Capital,HANDICARE ACCESSIIBILITY LTD,180752
North East Lincolnshire Council,http://statistics.data.gov.uk/id/local-authority/00FC,Cap Community Care,Hps-Disabled Fac. Grants,Hps-Disabled Fac. Grants,Cap Exp Main Contract,Cap Exp Main Contract,XG01,16/02/2011,3021258,"4,854.00",Capital,HANDICARE ACCESSIIBILITY LTD,180752
North East Lincolnshire Council,http://statistics.data.gov.uk/id/local-authority/00FC,Cap Community Care,Hps-Disabled Fac. Grants,Hps-Disabled Fac. Grants,Cap Exp Main Contract,Cap Exp Main Contract,XG01,04/02/2011,3014836,"6,282.57",Capital,MEARS LTD,177642
North East Lincolnshire Council,http://statistics.data.gov.uk/id/local-authority/00FC,Cap Community Care,Hps-Disabled Fac. Grants,Hps-Disabled Fac. Grants,Cap Exp Main Contract,Cap Exp Main Contract,XG01,08/02/2011,3017189,"4,659.00",Capital,DURA-CARE LTD,165056
North East Lincolnshire Council,http://statistics.data.gov.uk/id/local-authority/00FC,Cap Community Care,Hps-Disabled Fac. Grants,Hps-Disabled Fac. Grants,Cap Exp Main Contract,Cap Exp Main Contract,XG01,04/02/2011,3014824,640.00,Capital,REDACTED PERSONAL DATA,REDACTED PERSONAL DATA
North East Lincolnshire Council,http://statistics.data.gov.uk/id/local-authority/00FC,Cap Community Care,Imp Information Management,Imp Information Management,Cap Exp Main Contract,Cap Exp Main Contract,XB01,04/02/2011,3014649,"4,500.00",Capital,NORTHGATE INFORMATION SOLUTIONS UK LTD,166549
North East Lincolnshire Council,http://statistics.data.gov.uk/id/local-authority/00FC,Cap Community Care,East Marsh Renewal,East Marsh Renewal,Cap Exp Main Contract,Cap Exp Main Contract,XB01,17/02/2011,3021934,"48,651.60",Capital,ILLINGWORTH & GREGORY LTD,180849
North East Lincolnshire Council,http://statistics.data.gov.uk/id/local-authority/00FC,Cap Community Care,East Marsh Renewal,East Marsh Renewal,Cap Exp Main Contract,Cap Exp Main Contract,XB01,07/02/2011,3015908,"1,047.98",Capital,EDEN BROWN LTD,142105
North East Lincolnshire Council,http://statistics.data.gov.uk/id/local-authority/00FC,Cap Community Care,East Marsh Renewal,East Marsh Renewal,Cap Exp Main Contract,Cap Exp Main Contract,XB01,07/02/2011,3015904,"1,052.58",Capital,EDEN BROWN LTD,142105
North East Lincolnshire Council,http://statistics.data.gov.uk/id/local-authority/00FC,Cap Community Care,East Marsh Renewal,East Marsh Renewal,Cap Exp Main Contract,Cap Exp Main Contract,XB01,07/02/2011,3015910,"1,056.58",Capital,EDEN BROWN LTD,142105
North East Lincolnshire Council,http://statistics.data.gov.uk/id/local-authority/00FC,Cap Community Care,East Marsh Renewal,East Marsh Renewal,Cap Exp Main Contract,Cap Exp Main Contract,XB01,18/02/2011,3023163,"1,068.67",Capital,EDEN BROWN LTD,142105
North East Lincolnshire Council,http://statistics.data.gov.uk/id/local-authority/00FC,Cap Community Care,East Marsh Renewal,East Marsh Renewal,Cap Exp Main Contract,Cap Exp Main Contract,XB01,28/02/2011,3027906,"1,120.05",Capital,EDEN BROWN LTD,142105
North East Lincolnshire Council,http://statistics.data.gov.uk/id/local-authority/00FC,Cap Community Care,East Marsh Renewal,East Marsh Renewal,Cap Exp Main Contract,Cap Exp Main Contract,XB01,14/02/2011,3020249,"1,992.30",Capital,EDEN BROWN LTD,142105
North East Lincolnshire Council,http://statistics.data.gov.uk/id/local-authority/00FC,Cap Community Care,Housing Assistance,Housing Assistance,Cap Exp Main Contract,Cap Exp Main Contract,XG01,11/02/2011,3018919,"1,102.50",Capital,MAYNE GAS  HEATING LTD,167677
North East Lincolnshire Council,http://statistics.data.gov.uk/id/local-authority/00FC,Cap Community Care,Housing Assistance,Housing Assistance,Cap Exp Main Contract,Cap Exp Main Contract,XB01,16/02/2011,3021232,"1,355.01",Capital,M J QUICKFALL,178720
North East Lincolnshire Council,http://statistics.data.gov.uk/id/local-authority/00FC,Cap Community Care,Housing Assistance,Housing Assistance,Cap Exp Income Work,Cap Exp Income Work,XG04,17/02/2011,3022129,"1,470.00",Capital,MAYNE GAS  HEATING LTD,167677
North East Lincolnshire Council,http://statistics.data.gov.uk/id/local-authority/00FC,Cap Community Care,Housing Assistance,Housing Assistance,Cap Exp Main Contract,Cap Exp Main Contract,XG01,08/02/2011,3017186,"1,575.00",Capital,LINCOLNSHIRE PLUMBING & HEATING,168428
North East Lincolnshire Council,http://statistics.data.gov.uk/id/local-authority/00FC,Cap Community Care,Housing Assistance,Housing Assistance,Cap Exp Main Contract,Cap Exp Main Contract,XG01,04/02/2011,3014632,"3,705.00",Capital,DEAN WILLETT & SONS,170383
North East Lincolnshire Council,http://statistics.data.gov.uk/id/local-authority/00FC,Cap Community Care,Housing Assistance,Housing Assistance,Cap Exp Main Contract,Cap Exp Main Contract,XG01,10/02/2011,3018351,"3,797.64",Capital,WESTLANDS,181638
North East Lincolnshire Council,http://statistics.data.gov.uk/id/local-authority/00FC,Cap Community Care,Housing Assistance,Housing Assistance,Cap Exp Main Contract,Cap Exp Main Contract,XB01,16/02/2011,3021232,"16,937.58",Capital,M J QUICKFALL,178720
North East Lincolnshire Council,http://statistics.data.gov.uk/id/local-authority/00FC,Cap Community Care,Housing Assistance,Housing Assistance,Cap Exp Main Contract,Cap Exp Main Contract,XB01,22/02/2011,3024963,"44,634.00",Capital,DUDLEY BUILDING SOCIETY,149298
North East Lincolnshire Council,http://statistics.data.gov.uk/id/local-authority/00FC,Cap Community Care,Housing Assistance,Housing Assistance,Cap Exp Main Contract,Cap Exp Main Contract,XG01,08/02/2011,3017214,"53,149.93",Capital,DUDLEY BUILDING SOCIETY,149298
North East Lincolnshire Council,http://statistics.data.gov.uk/id/local-authority/00FC,Cap Community Care,Housing Assistance,Housing Assistance,Cap Exp Main Contract,Cap Exp Main Contract,XB01,28/02/2011,3027674,-830.47,Capital,SOLARWALL LTD,168086
North East Lincolnshire Council,http://statistics.data.gov.uk/id/local-authority/00FC,Cap Community Care,Housing Assistance,Housing Assistance,Cap Exp Main Contract,Cap Exp Main Contract,XB01,24/02/2011,3026178,-8.57,Capital,SOLARWALL LTD,168086
North East Lincolnshire Council,http://statistics.data.gov.uk/id/local-authority/00FC,Cap Community Care,Housing Assistance,Housing Assistance,Cap Exp Main Contract,Cap Exp Main Contract,XB01,16/02/2011,3021581,500.00,Capital,SOLARWALL LTD,168086
North East Lincolnshire Council,http://statistics.data.gov.uk/id/local-authority/00FC,Cap Community Care,Housing Assistance,Housing Assistance,Cap Exp Main Contract,Cap Exp Main Contract,XG01,03/02/2011,3013998,551.25,Capital,MAYNE GAS  HEATING LTD,167677
North East Lincolnshire Council,http://statistics.data.gov.uk/id/local-authority/00FC,Cap Community Care,Housing Assistance,Housing Assistance,Cap Exp Main Contract,Cap Exp Main Contract,XG01,04/02/2011,3014818,555.24,Capital,SOLARWALL LTD,168086
North East Lincolnshire Council,http://statistics.data.gov.uk/id/local-authority/00FC,Cap Community Care,Housing Assistance,Housing Assistance,Cap Exp Main Contract,Cap Exp Main Contract,XB01,17/02/2011,3022187,588.57,Capital,SOLARWALL LTD,168086
North East Lincolnshire Council,http://statistics.data.gov.uk/id/local-authority/00FC,Cap Community Care,Housing Assistance,Housing Assistance,Cap Exp Main Contract,Cap Exp Main Contract,XB01,17/02/2011,3022180,830.47,Capital,SOLARWALL LTD,168086
North East Lincolnshire Council,http://statistics.data.gov.uk/id/local-authority/00FC,Cap Community Care,Housing Assistance,Housing Assistance,Cap Exp Main Contract,Cap Exp Main Contract,XB01,10/02/2011,3018377,894.12,Capital,EAGA PLC,168185
North East Lincolnshire Council,http://statistics.data.gov.uk/id/local-authority/00FC,Cap Community Care,Housing Assistance,Housing Assistance,Cap Exp Main Contract,Cap Exp Main Contract,XG01,10/02/2011,3018339,915.24,Capital,SOLARWALL LTD,168086
North East Lincolnshire Council,http://statistics.data.gov.uk/id/local-authority/00FC,Cap Community Care,Housing Assistance,Housing Assistance,Cap Exp Main Contract,Cap Exp Main Contract,XG01,08/02/2011,3017212,"1,013.80",Capital,SOLARWALL LTD,168086
North East Lincolnshire Council,http://statistics.data.gov.uk/id/local-authority/00FC,Cap Community Care,Housing Assistance,Housing Assistance,Cap Exp Main Contract,Cap Exp Main Contract,XG01,03/02/2011,3013996,"1,057.00",Capital,SOLARWALL LTD,168086
North East Lincolnshire Council,http://statistics.data.gov.uk/id/local-authority/00FC,Cap Community Care,Housing Assistance,Housing Assistance,Cap Exp Main Contract,Cap Exp Main Contract,XG01,08/02/2011,3017209,"1,089.28",Capital,SOLARWALL LTD,168086
North East Lincolnshire Council,http://statistics.data.gov.uk/id/local-authority/00FC,Cap Community Care,Housing Assistance,Housing Assistance,Cap Exp Main Contract,Cap Exp Main Contract,XG01,17/02/2011,3022183,"1,348.57",Capital,SOLARWALL LTD,168086
North East Lincolnshire Council,http://statistics.data.gov.uk/id/local-authority/00FC,Cap Community Care,Housing Assistance,Housing Assistance,Cap Exp Main Contract,Cap Exp Main Contract,XG01,10/02/2011,3018336,"1,452.38",Capital,SOLARWALL LTD,168086
North East Lincolnshire Council,http://statistics.data.gov.uk/id/local-authority/00FC,Cap Community Care,Housing Assistance,Housing Assistance,Cap Exp Main Contract,Cap Exp Main Contract,XG01,10/02/2011,3018342,"2,150.95",Capital,SOLARWALL LTD,168086
North East Lincolnshire Council,http://statistics.data.gov.uk/id/local-authority/00FC,Cap Community Care,Housing Assistance,Housing Assistance,Cap Exp Main Contract,Cap Exp Main Contract,XG01,08/02/2011,3017212,"3,041.44",Capital,SOLARWALL LTD,168086
North East Lincolnshire Council,http://statistics.data.gov.uk/id/local-authority/00FC,Cap Community Care,Housing Assistance,Housing Assistance,Cap Exp Main Contract,Cap Exp Main Contract,XB01,17/02/2011,3022177,"1,205.72",Capital,SOLARWALL LTD,168086
North East Lincolnshire Council,http://statistics.data.gov.uk/id/local-authority/00FC,Cap Community Care,Housing Assistance,Housing Assistance,Cap Exp Main Contract,Cap Exp Main Contract,XB01,24/02/2011,3026172,"2,544.76",Capital,SOLARWALL LTD,168086
North East Lincolnshire Council,http://statistics.data.gov.uk/id/local-authority/00FC,Cap Community Care,Womens Aid Hostel,Womens Aid Hostel,Cap Exp Main Contract,Cap Exp Main Contract,XB01,03/02/2011,3013934,"13,693.01",Capital,WOMENS AID,141775
North East Lincolnshire Council,http://statistics.data.gov.uk/id/local-authority/00FC,Cap Community Care,Choice Based Lettings,Choice Based Lettings,Cap Exp Main Contract,Cap Exp Main Contract,XB01,22/02/2011,3025091,"8,493.01",Capital,SHORELINE HOUSING PARTNERSHIP LTD,158750
North East Lincolnshire Council,http://statistics.data.gov.uk/id/local-authority/00FC,Cap Corporate,It Development Plan,It Development Plan,Cap Exp Main Contract,Cap Exp Main Contract,XB01,21/02/2011,3023867,"1,820.00",Capital,SYMOLOGY LTD,20991
North East Lincolnshire Council,http://statistics.data.gov.uk/id/local-authority/00FC,Cap Corporate,Invest To Save,Invest To Save,Cap Exp Main Contract,Cap Exp Main Contract,XB01,04/02/2011,3014599,"3,924.00",Capital,ASTUN TECHNOLOGY LTD,181506
North East Lincolnshire Council,http://statistics.data.gov.uk/id/local-authority/00FC,Cap Corporate,Invest To Save,Invest To Save,Cap Exp Main Contract,Cap Exp Main Contract,XB01,28/02/2011,3028044,"1,014.06",Capital,MIDLAND SOFTWARE LTD,180559
North East Lincolnshire Council,http://statistics.data.gov.uk/id/local-authority/00FC,Cap Corporate,Invest To Save,Invest To Save,Cap Exp Main Contract,Cap Exp Main Contract,XB01,28/02/2011,3028045,"1,837.98",Capital,MIDLAND SOFTWARE LTD,180559
North East Lincolnshire Council,http://statistics.data.gov.uk/id/local-authority/00FC,Cap Corporate,Invest To Save,Invest To Save,Cap Exp Main Contract,Cap Exp Main Contract,XB01,28/02/2011,3028046,"12,912.31",Capital,MIDLAND SOFTWARE LTD,180559
North East Lincolnshire Council,http://statistics.data.gov.uk/id/local-authority/00FC,Cap Corporate,Frontier Ms Exchange,Frontier Ms Exchange,Communication & Computing,Comp S/Ware Licence Fees,HJ91,14/02/2011,3019810,"28,965.33",Capital,TRUSTMARQUE SOLUTIONS LTD,135447
North East Lincolnshire Council,http://statistics.data.gov.uk/id/local-authority/00FC,Cap Learning & Child Care,Aiming High For Disabled Child,Aiming High For Disabled Child,Cap Exp Main Contract,Cap Exp Main Contract,XB01,21/02/2011,3023802,"1,100.00",Capital,THE MOBILE SINK COMPANY LTD,181721
North East Lincolnshire Council,http://statistics.data.gov.uk/id/local-authority/00FC,Cap Learning & Child Care,Aiming High For Disabled Child,Aiming High For Disabled Child,Cap Exp Main Contract,Cap Exp Main Contract,XB01,16/02/2011,3021252,"10,856.52",Capital,E S RUDKIN LTD,32386
North East Lincolnshire Council,http://statistics.data.gov.uk/id/local-authority/00FC,Cap Learning & Child Care,Devolved Formula Cap Grant,Devolved Formula Cap Grant,Cap Exp Main Contract,Cap Exp Main Contract,XB01,18/02/2011,3023397,913.88,Capital,BAILEY BUILDING SERVICES,180635
North East Lincolnshire Council,http://statistics.data.gov.uk/id/local-authority/00FC,Cap Learning & Child Care,Devolved Formula Cap Grant,Devolved Formula Cap Grant,Cap Exp Main Contract,Cap Exp Main Contract,XB01,23/02/2011,3025333,"4,415.26",Capital,BAILEY BUILDING SERVICES,180635
North East Lincolnshire Council,http://statistics.data.gov.uk/id/local-authority/00FC,Cap Learning & Child Care,Devolved Formula Cap Grant,Devolved Formula Cap Grant,Cap Exp Main Contract,Cap Exp Main Contract,XB01,23/02/2011,3025338,"10,328.88",Capital,BAILEY BUILDING SERVICES,180635
North East Lincolnshire Council,http://statistics.data.gov.uk/id/local-authority/00FC,Cap Learning & Child Care,Devolved Formula Cap Grant,Devolved Formula Cap Grant,Cap Exp Main Contract,Cap Exp Main Contract,XB01,21/02/2011,3023689,750.00,Capital,LUDAFLORS,1565
North East Lincolnshire Council,http://statistics.data.gov.uk/id/local-authority/00FC,Cap Learning & Child Care,Devolved Formula Cap Grant,Devolved Formula Cap Grant,Cap Exp Main Contract,Cap Exp Main Contract,XB01,16/02/2011,3021255,"1,878.00",Capital,KES BUILDING MAINTENANCE LIMITED,43941
North East Lincolnshire Council,http://statistics.data.gov.uk/id/local-authority/00FC,Cap Learning & Child Care,Devolved Formula Cap Grant,Devolved Formula Cap Grant,Cap Exp Main Contract,Cap Exp Main Contract,XB01,14/02/2011,3019679,"2,197.71",Capital,FABRIQUE SPECIALISTS GLAZING SYSTEMS LTD,138655
North East Lincolnshire Council,http://statistics.data.gov.uk/id/local-authority/00FC,Cap Learning & Child Care,Devolved Formula Cap Grant,Devolved Formula Cap Grant,Cap Exp Main Contract,Cap Exp Main Contract,XB01,07/02/2011,3015642,"9,000.00",Capital,FABRIQUE SPECIALISTS GLAZING SYSTEMS LTD,138655
North East Lincolnshire Council,http://statistics.data.gov.uk/id/local-authority/00FC,Cap Learning & Child Care,Devolved Formula Cap Grant,Devolved Formula Cap Grant,Cap Exp Main Contract,Cap Exp Main Contract,XB01,08/02/2011,3017141,568.89,Capital,LITTLECOATES PRIMARY SCHOOL,42121
North East Lincolnshire Council,http://statistics.data.gov.uk/id/local-authority/00FC,Cap Learning & Child Care,Devolved Formula Cap Grant,Devolved Formula Cap Grant,Cap Exp Main Contract,Cap Exp Main Contract,XB01,17/02/2011,3022115,"4,584.00",Capital,EDUCATION LINCS LTD,109818
North East Lincolnshire Council,http://statistics.data.gov.uk/id/local-authority/00FC,Cap Learning & Child Care,Devolved Formula Cap Grant,Devolved Formula Cap Grant,Cap Exp Main Contract,Cap Exp Main Contract,XB01,28/02/2011,3027685,"1,200.00",Capital,ARK JOINERY AND BUILDING MAINTENANCE LTD,117879
North East Lincolnshire Council,http://statistics.data.gov.uk/id/local-authority/00FC,Cap Learning & Child Care,Devolved Formula Cap Grant,Devolved Formula Cap Grant,Cap Exp Main Contract,Cap Exp Main Contract,XB01,11/02/2011,3018941,"7,134.00",Capital,ARK JOINERY AND BUILDING MAINTENANCE LTD,117879
North East Lincolnshire Council,http://statistics.data.gov.uk/id/local-authority/00FC,Cap Learning & Child Care,Devolved Formula Cap Grant,Devolved Formula Cap Grant,Cap Exp Main Contract,Cap Exp Main Contract,XB01,25/02/2011,3026732,937.51,Capital,MUSIC VILLAGE,41770
North East Lincolnshire Council,http://statistics.data.gov.uk/id/local-authority/00FC,Cap Learning & Child Care,Devolved Formula Cap Grant,Devolved Formula Cap Grant,Cap Exp Main Contract,Cap Exp Main Contract,XB01,25/02/2011,3026733,"1,040.00",Capital,MUSIC VILLAGE,41770
North East Lincolnshire Council,http://statistics.data.gov.uk/id/local-authority/00FC,Cap Learning & Child Care,Devolved Formula Cap Grant,Devolved Formula Cap Grant,Cap Exp Main Contract,Cap Exp Main Contract,XB01,14/02/2011,3020129,"2,285.00",Capital,EDUCATION LINCS LTD,109818
North East Lincolnshire Council,http://statistics.data.gov.uk/id/local-authority/00FC,Cap Learning & Child Care,Devolved Formula Cap Grant,Devolved Formula Cap Grant,Cap Exp Main Contract,Cap Exp Main Contract,XB01,07/02/2011,3015436,"9,500.00",Capital,EYE MUSIC TRUST,164943
North East Lincolnshire Council,http://statistics.data.gov.uk/id/local-authority/00FC,Cap Learning & Child Care,Devolved Formula Cap Grant,Devolved Formula Cap Grant,Cap Exp Main Contract,Cap Exp Main Contract,XB01,07/02/2011,3015417,"2,176.00",Capital,HAITH'S HEATING LTD,140813
North East Lincolnshire Council,http://statistics.data.gov.uk/id/local-authority/00FC,Cap Learning & Child Care,Devolved Formula Cap Grant,Devolved Formula Cap Grant,Cap Exp Main Contract,Cap Exp Main Contract,XB01,16/02/2011,3021257,"7,590.00",Capital,ETON-LINCS LIMITED,155368
North East Lincolnshire Council,http://statistics.data.gov.uk/id/local-authority/00FC,Cap Learning & Child Care,Devolved Formula Cap Grant,Devolved Formula Cap Grant,Cap Exp Main Contract,Cap Exp Main Contract,XB01,07/02/2011,3015411,"9,275.00",Capital,ETON-LINCS LIMITED,155368
North East Lincolnshire Council,http://statistics.data.gov.uk/id/local-authority/00FC,Cap Learning & Child Care,Devolved Formula Cap Grant,Devolved Formula Cap Grant,Cap Exp Main Contract,Cap Exp Main Contract,XB01,08/02/2011,3017160,"1,543.93",Capital,MANTA SHOPFITTERS LTD,174672
North East Lincolnshire Council,http://statistics.data.gov.uk/id/local-authority/00FC,Cap Learning & Child Care,East Ravendale School,East Ravendale School,Cap Exp Main Contract,Cap Exp Main Contract,XB01,11/02/2011,3018943,627.00,Capital,WILKIN CHAPMAN,165567
North East Lincolnshire Council,http://statistics.data.gov.uk/id/local-authority/00FC,Cap Learning & Child Care,East Ravendale School,East Ravendale School,Cap Exp Main Contract,Cap Exp Main Contract,XB01,23/02/2011,3025483,"10,000.00",Capital,WILKIN CHAPMAN GRANGE,181763
North East Lincolnshire Council,http://statistics.data.gov.uk/id/local-authority/00FC,Cap Learning & Child Care,Nds Cond + Modern All Schools,Nds Cond + Modern All Schools,Cap Exp Main Contract,Cap Exp Main Contract,XB01,11/02/2011,3018929,"11,944.47",Capital,NRA ROOFING & FLOORING SERVICES,165728
North East Lincolnshire Council,http://statistics.data.gov.uk/id/local-authority/00FC,Cap Learning & Child Care,Schools Access Initiative,Schools Access Initiative,Cap Exp Main Contract,Cap Exp Main Contract,XB01,28/02/2011,3027683,"1,604.75",Capital,HORSMAN CONSTRUCTION,164323
North East Lincolnshire Council,http://statistics.data.gov.uk/id/local-authority/00FC,Cap Learning & Child Care,Surplus Place Removal,Surplus Place Removal,Cap Exp Main Contract,Cap Exp Main Contract,XB01,16/02/2011,3021249,"134,356.61",Capital,JAYBUILD PROJECTS LTD,180144
North East Lincolnshire Council,http://statistics.data.gov.uk/id/local-authority/00FC,Cap Learning & Child Care,Hereford School Rebuilding,Hereford School Rebuilding,Cap Exp Main Contract,Cap Exp Main Contract,XB01,14/02/2011,3020042,"1,238.15",Capital,EAST LINDSEY DISTRICT COUNCIL,159176
North East Lincolnshire Council,http://statistics.data.gov.uk/id/local-authority/00FC,Cap Learning & Child Care,Hereford School Rebuilding,Hereford School Rebuilding,Cap Exp Main Contract,Cap Exp Main Contract,XB01,17/02/2011,3021928,"196,578.00",Capital,KIER BUILD,175607
North East Lincolnshire Council,http://statistics.data.gov.uk/id/local-authority/00FC,Cap Learning & Child Care,Havelock Academy,Havelock Academy,Cap Exp Main Contract,Cap Exp Main Contract,XB01,14/02/2011,3020043,"1,333.00",Capital,EAST LINDSEY DISTRICT COUNCIL,159176
North East Lincolnshire Council,http://statistics.data.gov.uk/id/local-authority/00FC,Cap Learning & Child Care,Primary Capital Programme,Primary Capital Programme,Cap Exp Main Contract,Cap Exp Main Contract,XB01,08/02/2011,3017153,"225,379.68",Capital,GEO HOULTON & SONS LTD,181436
North East Lincolnshire Council,http://statistics.data.gov.uk/id/local-authority/00FC,Cap Learning & Child Care,Creative Play Facilities,Creative Play Facilities,Cap Exp Main Contract,Cap Exp Main Contract,XB01,07/02/2011,3015526,"4,085.40",Capital,EIBE PLAY LTD,181592
North East Lincolnshire Council,http://statistics.data.gov.uk/id/local-authority/00FC,Cap Learning & Child Care,Creative Play Facilities,Creative Play Facilities,Cap Exp Main Contract,Cap Exp Main Contract,XB01,21/02/2011,3023437,"1,893.35",Capital,PLAYDALE PLAYGROUNDS LTD,139457
North East Lincolnshire Council,http://statistics.data.gov.uk/id/local-authority/00FC,Cap Regeneration,Property Planned Repairs,Property Planned Repairs,Cap Exp Main Contract,Cap Exp Main Contract,XB01,21/02/2011,3023595,"8,853.50",Capital,P G INGOLDBY & SONS LTD,13231
North East Lincolnshire Council,http://statistics.data.gov.uk/id/local-authority/00FC,Cap Regeneration,Property Planned Repairs,Property Planned Repairs,Cap Exp Main Contract,Cap Exp Main Contract,XB01,23/02/2011,3025326,"1,747.20",Capital,CALLMAC SCAFFOLDING UK LTD,180977
North East Lincolnshire Council,http://statistics.data.gov.uk/id/local-authority/00FC,Cap Regeneration,Property Planned Repairs,Property Planned Repairs,Cap Exp Main Contract,Cap Exp Main Contract,XB01,23/02/2011,3025328,"2,839.20",Capital,CALLMAC SCAFFOLDING UK LTD,180977
North East Lincolnshire Council,http://statistics.data.gov.uk/id/local-authority/00FC,Cap Regeneration,Property Planned Repairs,Property Planned Repairs,Cap Exp Main Contract,Cap Exp Main Contract,XB01,14/02/2011,3019677,"7,788.20",Capital,GEOMATT BUILDING LTD,180519
North East Lincolnshire Council,http://statistics.data.gov.uk/id/local-authority/00FC,Cap Regeneration,Property Planned Repairs,Property Planned Repairs,Cap Exp Main Contract,Cap Exp Main Contract,XB01,18/02/2011,3022723,595.00,Capital,COURTNEY- THORNE,181601
North East Lincolnshire Council,http://statistics.data.gov.uk/id/local-authority/00FC,Cap Regeneration,Property Planned Repairs,Property Planned Repairs,Cap Exp Main Contract,Cap Exp Main Contract,XB01,07/02/2011,3015992,649.50,Capital,LINCS ELECTRICAL SERVICES LTD,171623
North East Lincolnshire Council,http://statistics.data.gov.uk/id/local-authority/00FC,Cap Regeneration,Property Planned Repairs,Property Planned Repairs,Cap Exp Main Contract,Cap Exp Main Contract,XB01,18/02/2011,3022722,964.00,Capital,COURTNEY- THORNE,181601
North East Lincolnshire Council,http://statistics.data.gov.uk/id/local-authority/00FC,Cap Regeneration,Property Planned Repairs,Property Planned Repairs,Cap Exp Main Contract,Cap Exp Main Contract,XB01,08/02/2011,3017190,"11,626.00",Capital,COURTNEY- THORNE,181601
North East Lincolnshire Council,http://statistics.data.gov.uk/id/local-authority/00FC,Cap Regeneration,Property Planned Repairs,Property Planned Repairs,Cap Exp Main Contract,Cap Exp Main Contract,XB01,21/02/2011,3023806,"3,613.64",Capital,N & N SERVICES (AUTOMATIC DOORS) LTD,181722
North East Lincolnshire Council,http://statistics.data.gov.uk/id/local-authority/00FC,Cap Regeneration,Property Planned Repairs,Property Planned Repairs,Cap Exp Main Contract,Cap Exp Main Contract,XB01,08/02/2011,3017197,"1,779.00",Capital,COURTNEY- THORNE,181601
North East Lincolnshire Council,http://statistics.data.gov.uk/id/local-authority/00FC,Cap Regeneration,Property Planned Repairs,Property Planned Repairs,Cap Exp Main Contract,Cap Exp Main Contract,XB01,08/02/2011,3017192,"8,632.00",Capital,COURTNEY- THORNE,181601
North East Lincolnshire Council,http://statistics.data.gov.uk/id/local-authority/00FC,Cap Regeneration,Legi,Legi,Cap Exp Main Contract,Cap Exp Main Contract,XB01,25/02/2011,3026647,"10,904.26",Capital,E-FACTOR ENTERPRISES (NEL) LTD,170868
North East Lincolnshire Council,http://statistics.data.gov.uk/id/local-authority/00FC,Cap Regeneration,Ttp Accomodation Moves,Ttp Accomodation Moves,Cap Exp Main Contract,Cap Exp Main Contract,XB01,16/02/2011,3021264,727.00,Capital,ROY LAUGHTON,1460
North East Lincolnshire Council,http://statistics.data.gov.uk/id/local-authority/00FC,Cap Regeneration,Ttp Accomodation Moves,Ttp Accomodation Moves,Cap Exp Main Contract,Cap Exp Main Contract,XB01,21/02/2011,3023966,"1,372.00",Capital,OFFICE CONCEPTS,16278
North East Lincolnshire Council,http://statistics.data.gov.uk/id/local-authority/00FC,Cap Regeneration,Ttp Accomodation Moves,Ttp Accomodation Moves,Cap Exp Main Contract,Cap Exp Main Contract,XB01,21/02/2011,3023968,"2,212.00",Capital,OFFICE CONCEPTS,16278
North East Lincolnshire Council,http://statistics.data.gov.uk/id/local-authority/00FC,Cap Regeneration,Ttp Accomodation Moves,Ttp Accomodation Moves,Cap Exp Main Contract,Cap Exp Main Contract,XB01,02/02/2011,3013595,"2,530.00",Capital,OFFICE CONCEPTS,16278
North East Lincolnshire Council,http://statistics.data.gov.uk/id/local-authority/00FC,Cap Regeneration,Ttp Accomodation Moves,Ttp Accomodation Moves,Cap Exp Main Contract,Cap Exp Main Contract,XB01,21/02/2011,3023968,"3,500.00",Capital,OFFICE CONCEPTS,16278
North East Lincolnshire Council,http://statistics.data.gov.uk/id/local-authority/00FC,Cap Regeneration,Residents Parking,Residents Parking,Cap Exp Main Contract,Cap Exp Main Contract,XB01,03/02/2011,3014100,"2,547.33",Capital,YORKSHIRE ELECTRICITY DISTRIBUTION PLC,2936
North East Lincolnshire Council,http://statistics.data.gov.uk/id/local-authority/00FC,Business Services,Finance & Strategic Change,Deputy Director Of Finance,Indirect Employee Expenses,Train Basic Skill - Course Fee,BX01,04/02/2011,3014627,-858.31,Revenue,KAPLAN FINANCIAL LTD,172692
North East Lincolnshire Council,http://statistics.data.gov.uk/id/local-authority/00FC,Business Services,Finance & Strategic Change,Deputy Director Of Finance,Indirect Employee Expenses,Train Basic Skill - Course Fee,BX01,04/02/2011,3014627,-265.00,Revenue,KAPLAN FINANCIAL LTD,172692
North East Lincolnshire Council,http://statistics.data.gov.uk/id/local-authority/00FC,Business Services,Finance & Strategic Change,Deputy Director Of Finance,Indirect Employee Expenses,Train Basic Skill - Course Fee,BX01,04/02/2011,3014630,858.31,Revenue,KAPLAN FINANCIAL LTD,172692
North East Lincolnshire Council,http://statistics.data.gov.uk/id/local-authority/00FC,Business Services,Finance & Strategic Change,Deputy Director Of Finance,Indirect Employee Expenses,Train Basic Skill - Course Fee,BX01,04/02/2011,3014655,858.35,Revenue,KAPLAN FINANCIAL LTD,172692
North East Lincolnshire Council,http://statistics.data.gov.uk/id/local-authority/00FC,Business Services,Finance & Strategic Change,Accountancy,Printing Station & Gen Off Exp,Print & Stat General,LA01,21/02/2011,3024091,-284.66,Revenue,LYRECO UK LIMITED,117289
North East Lincolnshire Council,http://statistics.data.gov.uk/id/local-authority/00FC,Business Services,Finance & Strategic Change,Accountancy,Printing Station & Gen Off Exp,Books Etc Purchases,KC06,07/02/2011,3015444,500.00,Revenue,CIPFA BUSINESS LIMITED,176438
North East Lincolnshire Council,http://statistics.data.gov.uk/id/local-authority/00FC,Business Services,Finance & Strategic Change,Accountancy,Printing Station & Gen Off Exp,Books Etc Purchases,KC06,15/02/2011,3021074,500.00,Revenue,CIPFA BUSINESS LIMITED,176438
North East Lincolnshire Council,http://statistics.data.gov.uk/id/local-authority/00FC,Business Services,Finance & Strategic Change,Accountancy,Direct Employee Expenses,Pay Employment Agency Staff,AA53,25/02/2011,3026670,563.49,Revenue,BADENOCH & CLARK,147483
North East Lincolnshire Council,http://statistics.data.gov.uk/id/local-authority/00FC,Business Services,Finance & Strategic Change,Accountancy,Direct Employee Expenses,Pay Employment Agency Staff,AA53,07/02/2011,3015445,720.02,Revenue,BADENOCH & CLARK,147483
North East Lincolnshire Council,http://statistics.data.gov.uk/id/local-authority/00FC,Business Services,Finance & Strategic Change,Accountancy,Direct Employee Expenses,Pay Employment Agency Staff,AA53,07/02/2011,3015447,730.45,Revenue,BADENOCH & CLARK,147483
North East Lincolnshire Council,http://statistics.data.gov.uk/id/local-authority/00FC,Business Services,Finance & Strategic Change,Accountancy,Direct Employee Expenses,Pay Employment Agency Staff,AA53,17/02/2011,3021923,751.32,Revenue,BADENOCH & CLARK,147483
North East Lincolnshire Council,http://statistics.data.gov.uk/id/local-authority/00FC,Business Services,Finance & Strategic Change,Accountancy,Grants & Subscriptions,Subscriptions General,MH01,15/02/2011,3021076,886.00,Revenue,THE FINANCIAL REPORTING COUNCIL,181608
North East Lincolnshire Council,http://statistics.data.gov.uk/id/local-authority/00FC,Business Services,Finance & Strategic Change,Accountancy,Printing Station & Gen Off Exp,Books Etc Purchases,KC06,15/02/2011,3021075,"1,196.00",Revenue,CIPFA BUSINESS LIMITED,176438
North East Lincolnshire Council,http://statistics.data.gov.uk/id/local-authority/00FC,Business Services,Finance & Strategic Change,Accountancy,Direct Employee Expenses,Pay Employment Agency Staff,AA53,04/02/2011,3014651,"1,232.00",Revenue,BADENOCH & CLARK,147483
North East Lincolnshire Council,http://statistics.data.gov.uk/id/local-authority/00FC,Business Services,Finance & Strategic Change,Accountancy,Direct Employee Expenses,Pay Employment Agency Staff,AA53,10/02/2011,3018310,"1,280.00",Revenue,BADENOCH & CLARK,147483
North East Lincolnshire Council,http://statistics.data.gov.uk/id/local-authority/00FC,Business Services,Finance & Strategic Change,Accountancy,Indirect Employee Expenses,Training-Facilitators Etc,BX12,25/02/2011,3026668,"1,450.00",Revenue,THE COLOUR WORKS INT LTD,178694
North East Lincolnshire Council,http://statistics.data.gov.uk/id/local-authority/00FC,Business Services,Finance & Strategic Change,Accountancy,Communication & Computing,Comp S/Ware Licence Fees,HJ91,07/02/2011,3015531,"2,494.72",Revenue,KEL COMPUTING LTD,181595
North East Lincolnshire Council,http://statistics.data.gov.uk/id/local-authority/00FC,Business Services,Finance & Strategic Change,Accountancy,Indirect Employee Expenses,Recruitment Expenses,BH02,08/02/2011,3017217,"5,000.00",Revenue,HAYS ACCOUNTANCY PERSONNEL,104918
North East Lincolnshire Council,http://statistics.data.gov.uk/id/local-authority/00FC,Business Services,Finance & Strategic Change,Payroll,Direct Employee Expenses,Pay Employment Agency Staff,AA53,21/02/2011,3023597,"1,064.67",Revenue,ESP LTD,132218
North East Lincolnshire Council,http://statistics.data.gov.uk/id/local-authority/00FC,Business Services,Finance & Strategic Change,Payroll,Direct Employee Expenses,Pay Employment Agency Staff,AA53,17/02/2011,3021937,"1,082.00",Revenue,ESP LTD,132218
North East Lincolnshire Council,http://statistics.data.gov.uk/id/local-authority/00FC,Business Services,Finance & Strategic Change,Payroll,Direct Employee Expenses,Pay Employment Agency Staff,AA53,17/02/2011,3021936,"1,084.47",Revenue,ESP LTD,132218
North East Lincolnshire Council,http://statistics.data.gov.uk/id/local-authority/00FC,Business Services,Finance & Strategic Change,Payroll,Direct Employee Expenses,Pay Employment Agency Staff,AA53,17/02/2011,3021935,"1,084.57",Revenue,ESP LTD,132218
North East Lincolnshire Council,http://statistics.data.gov.uk/id/local-authority/00FC,Business Services,Finance & Strategic Change,Payroll,Services,Misc  Contracts External,JT01,07/02/2011,3016278,"3,249.99",Revenue,EAST RIDING OF YORKSHIRE,90893
North East Lincolnshire Council,http://statistics.data.gov.uk/id/local-authority/00FC,Business Services,Finance & Strategic Change,Income & Payments Service,Printing Station & Gen Off Exp,Print & Stat General,LA01,04/02/2011,3014880,870.00,Revenue,PITNEY BOWES LIMITED,132302
North East Lincolnshire Council,http://statistics.data.gov.uk/id/local-authority/00FC,Business Services,Finance & Strategic Change,Income & Payments Service,Voluntary Associations,Voluntary Assoc - General,QF01,17/02/2011,3021927,630.00,Revenue,GY/CLEE & DIST CITIZENS,102797
North East Lincolnshire Council,http://statistics.data.gov.uk/id/local-authority/00FC,Business Services,Finance & Strategic Change,Income & Payments Service,Voluntary Associations,Voluntary Assoc - General,QF01,11/02/2011,3019201,"10,000.00",Revenue,NEL CREDIT UNION,178718
North East Lincolnshire Council,http://statistics.data.gov.uk/id/local-authority/00FC,Business Services,Finance & Strategic Change,Income & Payments Service,Consultants,Consult Work Technical Adv,PG02,07/02/2011,3016279,666.68,Revenue,NORTHGATE INFORMATION SOLUTIONS UK LTD,166549
North East Lincolnshire Council,http://statistics.data.gov.uk/id/local-authority/00FC,Business Services,Finance & Strategic Change,Income & Payments Service,Printing Station & Gen Off Exp,Print & Stat General,LA01,10/02/2011,3018290,795.00,Revenue,PULSTAR DATAPRINT LTD,164628
North East Lincolnshire Council,http://statistics.data.gov.uk/id/local-authority/00FC,Business Services,Finance & Strategic Change,Income & Payments Service,Expenses,Trav/Subs Off Other Offic Duty,MA05,22/02/2011,3024941,-68.00,Revenue,NORTHGATE VEHICLE HIRE,179268
North East Lincolnshire Council,http://statistics.data.gov.uk/id/local-authority/00FC,Business Services,Finance & Strategic Change,Income & Payments Service,Communication & Computing,Comp Equip Purchases,HK01,16/02/2011,3021470,530.00,Revenue,MATRIX DISPLAY SYSTEMS LTD,177102
North East Lincolnshire Council,http://statistics.data.gov.uk/id/local-authority/00FC,Business Services,Finance & Strategic Change,Income & Payments Service,Communication & Computing,Comp S/Ware Licence Fees,HJ91,10/02/2011,3018279,600.00,Revenue,ADRIAN NASH,180057
North East Lincolnshire Council,http://statistics.data.gov.uk/id/local-authority/00FC,Business Services,Finance & Strategic Change,Income & Payments Service,Miscellaneous Expenses,Bankruptcy Court Costs,LS11,22/02/2011,3025010,"1,070.00",Revenue,REDACTED PERSONAL DATA,REDACTED PERSONAL DATA
North East Lincolnshire Council,http://statistics.data.gov.uk/id/local-authority/00FC,Business Services,Finance & Strategic Change,Income & Payments Service,Consultants,Consult Work Technical Adv,PG02,07/02/2011,3016279,666.66,Revenue,NORTHGATE INFORMATION SOLUTIONS UK LTD,166549
North East Lincolnshire Council,http://statistics.data.gov.uk/id/local-authority/00FC,Business Services,Finance & Strategic Change,Income & Payments Service,Consultants,Consult Work Technical Adv,PG02,07/02/2011,3016279,666.66,Revenue,NORTHGATE INFORMATION SOLUTIONS UK LTD,166549
North East Lincolnshire Council,http://statistics.data.gov.uk/id/local-authority/00FC,Business Services,Finance & Strategic Change,Income & Payments Service,Printing Station & Gen Off Exp,Postages,LE01,04/02/2011,3014877,991.88,Revenue,FINANCIAL DATA MANAGEMENT LTD,165153
North East Lincolnshire Council,http://statistics.data.gov.uk/id/local-authority/00FC,Business Services,Finance & Strategic Change,Income & Payments Service,Consultants,Consult Work Consult+Special,PG01,04/02/2011,3014881,"9,307.50",Revenue,NORTHGATE INFORMATION SOLUTIONS UK LTD,166549
North East Lincolnshire Council,http://statistics.data.gov.uk/id/local-authority/00FC,Business Services,Finance & Strategic Change,Income & Payments Service,Consultants,Consult Work Consult+Special,PG01,04/02/2011,3014921,"15,512.50",Revenue,NORTHGATE INFORMATION SOLUTIONS UK LTD,166549
North East Lincolnshire Council,http://statistics.data.gov.uk/id/local-authority/00FC,Business Services,Finance & Strategic Change,Benefit Payments & Subsidy,Expense Recovery,Expense Recov Rent Allow,UV84,25/02/2011,3027364,-10.05,Revenue,REDACTED PERSONAL DATA,REDACTED PERSONAL DATA
North East Lincolnshire Council,http://statistics.data.gov.uk/id/local-authority/00FC,Business Services,Finance & Strategic Change,Benefit Payments & Subsidy,Expense Recovery,Expense Recov Rent Allow,UV84,17/02/2011,3022145,602.34,Revenue,REDACTED PERSONAL DATA,REDACTED PERSONAL DATA
North East Lincolnshire Council,http://statistics.data.gov.uk/id/local-authority/00FC,Business Services,Finance & Strategic Change,Deputy Director Of Finance,Expenses,Trav/Subs Off Conf-Trav & Subs,MA02,25/02/2011,3026636,-90.50,Revenue,NYS CORPORATE,177749
North East Lincolnshire Council,http://statistics.data.gov.uk/id/local-authority/00FC,Business Services,Finance & Strategic Change,Deputy Director Of Finance,Expenses,Trav/Subs Off Conf-Trav & Subs,MA02,25/02/2011,3026637,-36.00,Revenue,NYS CORPORATE,177749
North East Lincolnshire Council,http://statistics.data.gov.uk/id/local-authority/00FC,Business Services,Strategic Business Support,Procurement,Direct Employee Expenses,Pay Employment Agency Staff,AA53,24/02/2011,3026030,"3,795.25",Revenue,BADENOCH & CLARK,147483
North East Lincolnshire Council,http://statistics.data.gov.uk/id/local-authority/00FC,Business Services,Strategic Business Support,Web Governance,Communication & Computing,Comp Equip Purchases,HK01,22/02/2011,3025109,559.20,Revenue,DELL COMPUTER CORPORATION LTD,79790
North East Lincolnshire Council,http://statistics.data.gov.uk/id/local-authority/00FC,Business Services,Strategic Business Support,Business Support (Sbs),Printing Station & Gen Off Exp,Postage Franking M/Chine Chrge,LE02,10/02/2011,3018150,"1,157.93",Revenue,ROYAL MAIL GROUP PLC,112918
North East Lincolnshire Council,http://statistics.data.gov.uk/id/local-authority/00FC,Business Services,Strategic Business Support,Business Support (Sbs),Printing Station & Gen Off Exp,Postage Franking M/Chine Chrge,LE02,08/02/2011,3017505,"1,208.96",Revenue,ROYAL MAIL GROUP PLC,112918
North East Lincolnshire Council,http://statistics.data.gov.uk/id/local-authority/00FC,Business Services,Strategic Business Support,Business Support (Sbs),Printing Station & Gen Off Exp,Postage Franking M/Chine Chrge,LE02,21/02/2011,3023858,"1,560.19",Revenue,ROYAL MAIL GROUP PLC,112918
North East Lincolnshire Council,http://statistics.data.gov.uk/id/local-authority/00FC,Business Services,Strategic Business Support,Business Support (Sbs),Printing Station & Gen Off Exp,Postage Franking M/Chine Chrge,LE02,08/02/2011,3017504,"1,583.23",Revenue,ROYAL MAIL GROUP PLC,112918
North East Lincolnshire Council,http://statistics.data.gov.uk/id/local-authority/00FC,Business Services,Strategic Business Support,Business Support (Sbs),Printing Station & Gen Off Exp,Postage Franking M/Chine Chrge,LE02,25/02/2011,3026764,"1,583.37",Revenue,ROYAL MAIL GROUP PLC,112918
North East Lincolnshire Council,http://statistics.data.gov.uk/id/local-authority/00FC,Business Services,Strategic Business Support,Information Technology,Direct Employee Expenses,Pay Employment Agency Staff,AA53,14/02/2011,3020110,652.46,Revenue,BADENOCH & CLARK,147483
North East Lincolnshire Council,http://statistics.data.gov.uk/id/local-authority/00FC,Business Services,Strategic Business Support,Information Technology,Communication & Computing,Comp Equip Pc Equipt,HK02,23/02/2011,3025421,"1,686.50",Revenue,INSIGHT DIRECT (UK) LTD,102482
North East Lincolnshire Council,http://statistics.data.gov.uk/id/local-authority/00FC,Business Services,Strategic Business Support,Information Technology,Indirect Employee Expenses,Train Basic Skill - Course Fee,BX01,17/02/2011,3021930,"3,300.00",Revenue,LEEDS METROPOLITAN UNIVERSITY,160860
North East Lincolnshire Council,http://statistics.data.gov.uk/id/local-authority/00FC,Business Services,Strategic Business Support,Information Technology,Communication & Computing,Comp Equip Pc Equipt,HK02,17/02/2011,3021890,"3,372.90",Revenue,INSIGHT DIRECT (UK) LTD,102482
North East Lincolnshire Council,http://statistics.data.gov.uk/id/local-authority/00FC,Business Services,Strategic Business Support,Information Technology,Communication & Computing,Printers,HK19,14/02/2011,3020001,516.66,Revenue,LYRECO UK LIMITED,117289
North East Lincolnshire Council,http://statistics.data.gov.uk/id/local-authority/00FC,Business Services,Strategic Business Support,Information Technology,Equipment/Furniture/Materials,Equip Purchases,HC01,04/02/2011,3014413,870.84,Revenue,VIGLEN LIMITED,78202
North East Lincolnshire Council,http://statistics.data.gov.uk/id/local-authority/00FC,Business Services,Strategic Business Support,Information Technology,Equipment/Furniture/Materials,Equip Purchases,HC01,21/02/2011,3023592,"1,389.34",Revenue,HEWLETT-PACKARD LIMITED,171095
North East Lincolnshire Council,http://statistics.data.gov.uk/id/local-authority/00FC,Business Services,Strategic Business Support,Information Technology,Communication & Computing,Telephone Mobile Phones,LG13,23/02/2011,3025335,-71.92,Revenue,VODAFONE LIMITED,139012
North East Lincolnshire Council,http://statistics.data.gov.uk/id/local-authority/00FC,Business Services,Strategic Business Support,Information Technology,Communication & Computing,Telephone Rental Charges,LG05,22/02/2011,3025003,553.37,Revenue,NTL,153928
North East Lincolnshire Council,http://statistics.data.gov.uk/id/local-authority/00FC,Business Services,Strategic Business Support,Information Technology,Communication & Computing,Telephone Rental Charges,LG05,23/02/2011,3025298,585.00,Revenue,NTL GROUP LIMITED,140731
North East Lincolnshire Council,http://statistics.data.gov.uk/id/local-authority/00FC,Business Services,Strategic Business Support,Information Technology,Communication & Computing,Telephone Rental Charges,LG05,28/02/2011,3027962,585.00,Revenue,NTL GROUP LIMITED,140731
North East Lincolnshire Council,http://statistics.data.gov.uk/id/local-authority/00FC,Business Services,Strategic Business Support,Information Technology,Communication & Computing,Telephone Rental Charges,LG05,16/02/2011,3021598,639.25,Revenue,NTL,153928
North East Lincolnshire Council,http://statistics.data.gov.uk/id/local-authority/00FC,Business Services,Strategic Business Support,Information Technology,Communication & Computing,Telephone Call Charges,LG06,23/02/2011,3025301,804.78,Revenue,NTL GROUP LIMITED,140731
North East Lincolnshire Council,http://statistics.data.gov.uk/id/local-authority/00FC,Business Services,Strategic Business Support,Information Technology,Communication & Computing,Telephone Call Charges,LG06,23/02/2011,3025313,986.73,Revenue,NTL GROUP LIMITED,140731
North East Lincolnshire Council,http://statistics.data.gov.uk/id/local-authority/00FC,Business Services,Strategic Business Support,Information Technology,Communication & Computing,Telephone Rental Charges,LG05,22/02/2011,3025005,"3,440.37",Revenue,NTL,153928
North East Lincolnshire Council,http://statistics.data.gov.uk/id/local-authority/00FC,Business Services,Strategic Business Support,Information Technology,Communication & Computing,Telephone Rental Charges,LG05,23/02/2011,3025296,"3,466.95",Revenue,NTL GROUP LIMITED,140731
North East Lincolnshire Council,http://statistics.data.gov.uk/id/local-authority/00FC,Business Services,Strategic Business Support,Information Technology,Communication & Computing,Telephone Rental Charges,LG05,28/02/2011,3027966,"3,473.18",Revenue,NTL GROUP LIMITED,140731
North East Lincolnshire Council,http://statistics.data.gov.uk/id/local-authority/00FC,Business Services,Strategic Business Support,Information Technology,Communication & Computing,Telephone Call Charges,LG06,16/02/2011,3021598,"4,354.35",Revenue,NTL,153928
North East Lincolnshire Council,http://statistics.data.gov.uk/id/local-authority/00FC,Business Services,Strategic Business Support,Information Technology,Communication & Computing,Telephone Mobile Phones,LG13,28/02/2011,3028043,"5,146.23",Revenue,VODAFONE LIMITED,139012
North East Lincolnshire Council,http://statistics.data.gov.uk/id/local-authority/00FC,Business Services,Strategic Business Support,Information Technology,Communication & Computing,Telephone Mobile Phones,LG13,28/02/2011,3028043,"8,466.84",Revenue,VODAFONE LIMITED,139012
North East Lincolnshire Council,http://statistics.data.gov.uk/id/local-authority/00FC,Business Services,Strategic Business Support,Information Technology,Communication & Computing,Comp Equip Pc Equipt,HK02,25/02/2011,3026618,501.18,Revenue,INSIGHT DIRECT (UK) LTD,102482
North East Lincolnshire Council,http://statistics.data.gov.uk/id/local-authority/00FC,Business Services,Strategic Business Support,Information Technology,Communication & Computing,Comp Equip Pc Equipt,HK02,25/02/2011,3026618,514.84,Revenue,INSIGHT DIRECT (UK) LTD,102482
North East Lincolnshire Council,http://statistics.data.gov.uk/id/local-authority/00FC,Business Services,Strategic Business Support,Information Technology,Communication & Computing,Comp Equip Pc Equipt,HK02,08/02/2011,3017437,888.36,Revenue,DELL COMPUTER CORPORATION LTD,79790
North East Lincolnshire Council,http://statistics.data.gov.uk/id/local-authority/00FC,Business Services,Strategic Business Support,Information Technology,Communication & Computing,Comp Equip Pc Equipt,HK02,14/02/2011,3019653,953.19,Revenue,INSIGHT DIRECT (UK) LTD,102482
North East Lincolnshire Council,http://statistics.data.gov.uk/id/local-authority/00FC,Business Services,Strategic Business Support,Information Technology,Communication & Computing,Comp Equip Pc Equipt,HK02,08/02/2011,3017416,989.98,Revenue,INSIGHT DIRECT (UK) LTD,102482
North East Lincolnshire Council,http://statistics.data.gov.uk/id/local-authority/00FC,Business Services,Strategic Business Support,Information Technology,Communication & Computing,Comp Equip Pc Equipt,HK02,17/02/2011,3021891,992.66,Revenue,DELL COMPUTER CORPORATION LTD,79790
North East Lincolnshire Council,http://statistics.data.gov.uk/id/local-authority/00FC,Business Services,Strategic Business Support,Information Technology,Communication & Computing,Comp Equip Pc Equipt,HK02,08/02/2011,3017425,"1,053.30",Revenue,INSIGHT DIRECT (UK) LTD,102482
North East Lincolnshire Council,http://statistics.data.gov.uk/id/local-authority/00FC,Business Services,Strategic Business Support,Information Technology,Communication & Computing,Comp Equip Pc Equipt,HK02,17/02/2011,3021892,"1,058.66",Revenue,DELL COMPUTER CORPORATION LTD,79790
North East Lincolnshire Council,http://statistics.data.gov.uk/id/local-authority/00FC,Business Services,Strategic Business Support,Information Technology,Communication & Computing,Comp Equip Pc Equipt,HK02,08/02/2011,3017437,"3,828.00",Revenue,DELL COMPUTER CORPORATION LTD,79790
North East Lincolnshire Council,http://statistics.data.gov.uk/id/local-authority/00FC,Business Services,Strategic Business Support,Information Technology,Miscellaneous Expenses,Hospitality,MJ01,25/02/2011,3026675,-17.50,Revenue,EUROPARC HOSPITALITY SERVICES LTD,179273
North East Lincolnshire Council,http://statistics.data.gov.uk/id/local-authority/00FC,Business Services,Strategic Business Support,Information Technology,Miscellaneous Expenses,Hospitality,MJ01,25/02/2011,3026760,-17.50,Revenue,EUROPARC HOSPITALITY SERVICES LTD,179273
North East Lincolnshire Council,http://statistics.data.gov.uk/id/local-authority/00FC,Business Services,Strategic Business Support,Information Technology,Grants & Subscriptions,Subscriptions General,MH01,28/02/2011,3028265,"1,330.00",Revenue,SOCITM LTD,78352
North East Lincolnshire Council,http://statistics.data.gov.uk/id/local-authority/00FC,Business Services,Strategic Business Support,Information Technology,Direct Employee Expenses,Pay Employment Agency Staff,AA53,28/02/2011,3028262,"4,272.32",Revenue,BADENOCH & CLARK,147483
North East Lincolnshire Council,http://statistics.data.gov.uk/id/local-authority/00FC,Business Services,Strategic Business Support,Information Technology,Direct Employee Expenses,Pay Employment Agency Staff,AA53,25/02/2011,3026763,"4,272.32",Revenue,BADENOCH & CLARK,147483
North East Lincolnshire Council,http://statistics.data.gov.uk/id/local-authority/00FC,Business Services,Strategic Business Support,Information Technology,Consultants,Consult Work Consult+Special,PG01,24/02/2011,3026242,"4,700.00",Revenue,SOCITM CONSULTING LTD,173966
North East Lincolnshire Council,http://statistics.data.gov.uk/id/local-authority/00FC,Business Services,Strategic Business Support,Information Technology,Direct Employee Expenses,Pay Employment Agency Staff,AA53,17/02/2011,3019094,"6,260.00",Revenue,REDACTED PERSONAL DATA,REDACTED PERSONAL DATA
North East Lincolnshire Council,http://statistics.data.gov.uk/id/local-authority/00FC,Business Services,Strategic Business Support,Information Technology,Direct Employee Expenses,Pay Employment Agency Staff,AA53,14/02/2011,3020211,575.70,Revenue,BADENOCH & CLARK,147483
North East Lincolnshire Council,http://statistics.data.gov.uk/id/local-authority/00FC,Business Services,Strategic Business Support,Information Technology,Direct Employee Expenses,Pay Employment Agency Staff,AA53,04/02/2011,3014874,719.63,Revenue,BADENOCH & CLARK,147483
North East Lincolnshire Council,http://statistics.data.gov.uk/id/local-authority/00FC,Business Services,Strategic Business Support,Information Technology,Direct Employee Expenses,Pay Employment Agency Staff,AA53,14/02/2011,3020006,719.63,Revenue,BADENOCH & CLARK,147483
North East Lincolnshire Council,http://statistics.data.gov.uk/id/local-authority/00FC,Business Services,Strategic Business Support,Information Technology,Communication & Computing,Comp Equip Data Links Excl Als,HK04,16/02/2011,3021577,"-1,391.93",Revenue,NTL,153928
North East Lincolnshire Council,http://statistics.data.gov.uk/id/local-authority/00FC,Business Services,Strategic Business Support,Information Technology,Communication & Computing,Comp Equip Data Links Excl Als,HK04,16/02/2011,3021598,780.00,Revenue,NTL,153928
North East Lincolnshire Council,http://statistics.data.gov.uk/id/local-authority/00FC,Business Services,Strategic Business Support,Information Technology,Communication & Computing,Comp Equip Data Links Excl Als,HK04,23/02/2011,3025306,844.85,Revenue,NTL GROUP LIMITED,140731
North East Lincolnshire Council,http://statistics.data.gov.uk/id/local-authority/00FC,Business Services,Strategic Business Support,Information Technology,Communication & Computing,Comp Equip Data Links Excl Als,HK04,23/02/2011,3025310,844.85,Revenue,NTL GROUP LIMITED,140731
North East Lincolnshire Council,http://statistics.data.gov.uk/id/local-authority/00FC,Business Services,Strategic Business Support,Information Technology,Repairs & Maintenance,Fixed Plant General Maint,CG01,28/02/2011,3028041,"1,024.00",Revenue,ASSURED FIRE & SECURITY,170952
North East Lincolnshire Council,http://statistics.data.gov.uk/id/local-authority/00FC,Business Services,Strategic Business Support,Information Technology,Communication & Computing,Comp Equip Data Links Excl Als,HK04,16/02/2011,3021598,"1,131.00",Revenue,NTL,153928
North East Lincolnshire Council,http://statistics.data.gov.uk/id/local-authority/00FC,Business Services,Strategic Business Support,Information Technology,Repairs & Maintenance,Fixed Plant General Maint,CG01,24/02/2011,3026078,"1,238.88",Revenue,CLIMATE CONTROL LTD,174272
North East Lincolnshire Council,http://statistics.data.gov.uk/id/local-authority/00FC,Business Services,Strategic Business Support,Information Technology,Communication & Computing,Comp Equip Data Links Excl Als,HK04,16/02/2011,3021598,"1,560.00",Revenue,NTL,153928
North East Lincolnshire Council,http://statistics.data.gov.uk/id/local-authority/00FC,Business Services,Strategic Business Support,Information Technology,Communication & Computing,Upgrades,HK20,09/02/2011,3017810,"7,171.00",Revenue,TRUSTMARQUE SOLUTIONS LTD,135447
North East Lincolnshire Council,http://statistics.data.gov.uk/id/local-authority/00FC,Business Services,Strategic Business Support,Information Technology,Indirect Employee Expenses,Train Basic Skill - Course Fee,BX01,28/02/2011,3028040,"9,000.00",Revenue,QA LIMITED,174973
North East Lincolnshire Council,http://statistics.data.gov.uk/id/local-authority/00FC,Business Services,Strategic Business Support,Information Technology,Communication & Computing,Comp Equip Disaster Recovery,HK13,01/02/2011,3012938,"22,000.00",Revenue,ICM BUSINESS CONTINUITY SERVICES LTD,173844
North East Lincolnshire Council,http://statistics.data.gov.uk/id/local-authority/00FC,Business Services,Strategic Business Support,Information Technology,Other Agencies,Oth Ext Serv General,PY01,23/02/2011,3025499,800.00,Revenue,AR PRINTING LTD,14948
North East Lincolnshire Council,http://statistics.data.gov.uk/id/local-authority/00FC,Business Services,Strategic Business Support,Information Technology,Equipment/Furniture/Materials,Equip Purchases,HC01,07/02/2011,3015957,"1,123.38",Revenue,ELLIOTT BAXTER & COMPANY LIMITED,170634
North East Lincolnshire Council,http://statistics.data.gov.uk/id/local-authority/00FC,Business Services,Strategic Business Support,Information Technology,Equipment/Furniture/Materials,Off Equip Photocop Rent/Copies,HN71,07/02/2011,3015460,"1,212.73",Revenue,UNITED CARLTON OFFICE SYSTEMS LTD,161525
North East Lincolnshire Council,http://statistics.data.gov.uk/id/local-authority/00FC,Business Services,Strategic Business Support,Information Technology,Other Agencies,Oth Ext Serv General,PY01,14/02/2011,3020014,"2,200.00",Revenue,AR PRINTING LTD,14948
North East Lincolnshire Council,http://statistics.data.gov.uk/id/local-authority/00FC,Business Services,Strategic Business Support,Information Technology,Equipment/Furniture/Materials,Off Equip Photocop Rent/Copies,HN71,07/02/2011,3015458,"2,825.53",Revenue,UNITED CARLTON OFFICE SYSTEMS LTD,161525
North East Lincolnshire Council,http://statistics.data.gov.uk/id/local-authority/00FC,Business Services,Strategic Business Support,Information Technology,Equipment/Furniture/Materials,Off Equip Photocop Rent/Copies,HN71,16/02/2011,3021422,"3,004.83",Revenue,XEROX FINANCE,2682
North East Lincolnshire Council,http://statistics.data.gov.uk/id/local-authority/00FC,Business Services,Law & Democratic Services,Democratic Services,Indirect Employee Expenses,Train Basic Skill - Course Fee,BX01,14/02/2011,3020049,636.00,Revenue,HALAROSE LIMITED,170144
North East Lincolnshire Council,http://statistics.data.gov.uk/id/local-authority/00FC,Business Services,Law & Democratic Services,Democratic Services,Expenses,Trav/Subs Memb Leader'S Travel,MB08,23/02/2011,3025653,-5.27,Revenue,NYS CORPORATE,177749
North East Lincolnshire Council,http://statistics.data.gov.uk/id/local-authority/00FC,Business Services,Law & Democratic Services,Town Hall,Catering,Provisions General,KG01,18/02/2011,3023307,-7.00,Revenue,VENDING ENTERPRISES,33191
North East Lincolnshire Council,http://statistics.data.gov.uk/id/local-authority/00FC,Business Services,Law & Democratic Services,Town Hall,Miscellaneous Expenses,Hospitality,MJ01,03/02/2011,3014007,712.50,Revenue,VALLIN CATERING,2522
North East Lincolnshire Council,http://statistics.data.gov.uk/id/local-authority/00FC,Business Services,Law & Democratic Services,Legal Services,Direct Employee Expenses,Pay Employment Agency Staff,AA53,07/02/2011,3016289,800.00,Revenue,REDACTED PERSONAL DATA,REDACTED PERSONAL DATA
North East Lincolnshire Council,http://statistics.data.gov.uk/id/local-authority/00FC,Business Services,Law & Democratic Services,Legal Services,Direct Employee Expenses,Pay Employment Agency Staff,AA53,07/02/2011,3016290,800.00,Revenue,REDACTED PERSONAL DATA,REDACTED PERSONAL DATA
North East Lincolnshire Council,http://statistics.data.gov.uk/id/local-authority/00FC,Business Services,Law & Democratic Services,Legal Services,Direct Employee Expenses,Pay Employment Agency Staff,AA53,10/02/2011,3018162,800.00,Revenue,REDACTED PERSONAL DATA,REDACTED PERSONAL DATA
North East Lincolnshire Council,http://statistics.data.gov.uk/id/local-authority/00FC,Business Services,Law & Democratic Services,Legal Services,Direct Employee Expenses,Pay Employment Agency Staff,AA53,14/02/2011,3019667,"1,185.28",Revenue,BADENOCH & CLARK,147483
North East Lincolnshire Council,http://statistics.data.gov.uk/id/local-authority/00FC,Business Services,Law & Democratic Services,Legal Services,Direct Employee Expenses,Pay Employment Agency Staff,AA53,02/02/2011,3013610,"1,185.28",Revenue,BADENOCH & CLARK,147483
North East Lincolnshire Council,http://statistics.data.gov.uk/id/local-authority/00FC,Business Services,Law & Democratic Services,Legal Services,Direct Employee Expenses,Pay Employment Agency Staff,AA53,07/02/2011,3016288,"1,185.28",Revenue,BADENOCH & CLARK,147483
North East Lincolnshire Council,http://statistics.data.gov.uk/id/local-authority/00FC,Business Services,Law & Democratic Services,Legal Services,Direct Employee Expenses,Pay Employment Agency Staff,AA53,14/02/2011,3020187,"1,185.28",Revenue,BADENOCH & CLARK,147483
North East Lincolnshire Council,http://statistics.data.gov.uk/id/local-authority/00FC,Business Services,Law & Democratic Services,Legal Services,Miscellaneous Expenses,Land Reg Stamps Fees,LM02,03/02/2011,3014015,"1,606.50",Revenue,HM LAND REGISTRY - NW,175040
North East Lincolnshire Council,http://statistics.data.gov.uk/id/local-authority/00FC,Business Services,Law & Democratic Services,Legal Services,Direct Employee Expenses,Pay Employment Agency Staff,AA53,07/02/2011,3016284,"6,249.64",Revenue,AD LITEM LEGAL SERVICES,173702
North East Lincolnshire Council,http://statistics.data.gov.uk/id/local-authority/00FC,Business Services,Law & Democratic Services,Legal Services,Miscellaneous Expenses,Legal Fees Court Costs,LS02,22/02/2011,3024522,700.00,Revenue,HMCS,159247
North East Lincolnshire Council,http://statistics.data.gov.uk/id/local-authority/00FC,Business Services,Law & Democratic Services,Coroners,Other Agencies,Oth Ext Serv Post Mortems,PY12,10/02/2011,3018176,-351.00,Revenue,NORTHERN LINCOLNSHIRE & GOOLE HOSPITALS,132777
North East Lincolnshire Council,http://statistics.data.gov.uk/id/local-authority/00FC,Business Services,Law & Democratic Services,Coroners,Rents,Rent Hire Of Premises,FJ02,02/02/2011,3013616,595.00,Revenue,CLEETHORPES CHARTER TRUSTEES,159858
North East Lincolnshire Council,http://statistics.data.gov.uk/id/local-authority/00FC,Business Services,Law & Democratic Services,Coroners,Other Agencies,Oth Ext Serv Post Mortems,PY12,02/02/2011,3013613,638.40,Revenue,REDACTED PERSONAL DATA,REDACTED PERSONAL DATA
North East Lincolnshire Council,http://statistics.data.gov.uk/id/local-authority/00FC,Business Services,Law & Democratic Services,Coroners,Other Agencies,Oth Ext Serv Post Mortems,PY12,23/02/2011,3025489,943.00,Revenue,REDACTED PERSONAL DATA,REDACTED PERSONAL DATA
North East Lincolnshire Council,http://statistics.data.gov.uk/id/local-authority/00FC,Business Services,Law & Democratic Services,Coroners,Other Agencies,Oth Ext Serv Post Mortems,PY12,07/02/2011,3016281,946.45,Revenue,THE FORENSIC SCIENCE SERVICE,159496
North East Lincolnshire Council,http://statistics.data.gov.uk/id/local-authority/00FC,Business Services,Law & Democratic Services,Coroners,Other Agencies,Oth Ext Serv Post Mortems,PY12,18/02/2011,3023310,"1,064.80",Revenue,REDACTED PERSONAL DATA,REDACTED PERSONAL DATA
North East Lincolnshire Council,http://statistics.data.gov.uk/id/local-authority/00FC,Business Services,Law & Democratic Services,Coroners,Other Agencies,Oth Ext Serv Post Mortems,PY12,02/02/2011,3013617,"1,452.00",Revenue,REDACTED PERSONAL DATA,REDACTED PERSONAL DATA
North East Lincolnshire Council,http://statistics.data.gov.uk/id/local-authority/00FC,Business Services,Law & Democratic Services,Coroners,Other Agencies,Oth Ext Serv Post Mortems,PY12,23/02/2011,3025487,"1,463.80",Revenue,REDACTED PERSONAL DATA,REDACTED PERSONAL DATA
North East Lincolnshire Council,http://statistics.data.gov.uk/id/local-authority/00FC,Business Services,Law & Democratic Services,Coroners,Other Agencies,Oth Ext Serv Post Mortems,PY12,02/02/2011,3013604,"6,482.00",Revenue,NORTHERN LINCOLNSHIRE & GOOLE HOSPITALS,132777
North East Lincolnshire Council,http://statistics.data.gov.uk/id/local-authority/00FC,Business Services,Law & Democratic Services,Coroners,Other Agencies,Oth Ext Serv Post Mortems,PY12,10/02/2011,3018154,"6,892.00",Revenue,NORTHERN LINCOLNSHIRE & GOOLE HOSPITALS,132777
North East Lincolnshire Council,http://statistics.data.gov.uk/id/local-authority/00FC,Business Services,Law & Democratic Services,Coroners,Other Agencies,Oth Ext Serv Post Mortems,PY12,02/02/2011,3013607,"8,191.00",Revenue,NORTHERN LINCOLNSHIRE & GOOLE HOSPITALS,132777
North East Lincolnshire Council,http://statistics.data.gov.uk/id/local-authority/00FC,Business Services,Law & Democratic Services,Coroners,Other Agencies,Oth Ext Serv Post Mortems,PY12,14/02/2011,3020025,"8,588.00",Revenue,NORTHERN LINCOLNSHIRE & GOOLE HOSPITALS,132777
North East Lincolnshire Council,http://statistics.data.gov.uk/id/local-authority/00FC,Business Services,Law & Democratic Services,Registrars,Grants & Subscriptions,Subscriptions General,MH01,28/02/2011,3027985,555.00,Revenue,OISC,181820
North East Lincolnshire Council,http://statistics.data.gov.uk/id/local-authority/00FC,Chief Executive,Chief Executive,Recharges To Corp Management,Other Agencies,Audit Commission Fees,PA01,04/02/2011,3014624,"-9,525.00",Revenue,AUDIT COMMISSION,177
North East Lincolnshire Council,http://statistics.data.gov.uk/id/local-authority/00FC,Chief Executive,Chief Executive,Recharges To Corp Management,Other Agencies,Audit Commission Fees,PA01,17/02/2011,3021918,595.00,Revenue,AUDIT COMMISSION,177
North East Lincolnshire Council,http://statistics.data.gov.uk/id/local-authority/00FC,Chief Executive,Chief Executive,Recharges To Corp Management,Other Agencies,Audit Commission Fees,PA01,17/02/2011,3021918,"24,383.00",Revenue,AUDIT COMMISSION,177
North East Lincolnshire Council,http://statistics.data.gov.uk/id/local-authority/00FC,Chief Executive,Chief Executive,Chief Exec & Support,Expenses,Trav/Subs Off Course/Semin Fee,MA03,25/02/2011,3027359,-265.00,Revenue,BARNSLEY METROPOLITAN BOROUGH COUNCIL,168163
North East Lincolnshire Council,http://statistics.data.gov.uk/id/local-authority/00FC,Chief Executive,Chief Executive,Chief Exec & Support,Grants & Subscriptions,Grnt Vol Org General,MG04,03/02/2011,3014091,522.00,Revenue,GRIMSBY & CLEETHORPES DISTRICT,181565
North East Lincolnshire Council,http://statistics.data.gov.uk/id/local-authority/00FC,Chief Executive,Chief Executive,Chief Exec & Support,Miscellaneous Expenses,Other Expenses General,NZ01,25/02/2011,3027353,-300.00,Revenue,HART STREET NHWG,174268
North East Lincolnshire Council,http://statistics.data.gov.uk/id/local-authority/00FC,Chief Executive,Chief Executive,Chief Exec & Support,Grants & Subscriptions,Grnt Vol Org General,MG04,17/02/2011,3022016,500.00,Revenue,KEW ROAD NEIGHBOURHOOD WATCH,181714
North East Lincolnshire Council,http://statistics.data.gov.uk/id/local-authority/00FC,Chief Executive,Chief Executive,Chief Exec & Support,Grants & Subscriptions,Grnt Vol Org General,MG04,25/02/2011,3027102,500.00,Revenue,GRIMSBY PRO-AM BOXING CLUB,181796
North East Lincolnshire Council,http://statistics.data.gov.uk/id/local-authority/00FC,Chief Executive,Chief Executive,Chief Exec & Support,Grants & Subscriptions,Grnt Vol Org General,MG04,03/02/2011,3014101,500.00,Revenue,ST ANDREWS HOSPICE,180760
North East Lincolnshire Council,http://statistics.data.gov.uk/id/local-authority/00FC,Chief Executive,Chief Executive,Chief Exec & Support,Grants & Subscriptions,Grnt Vol Org General,MG04,17/02/2011,3022026,500.00,Revenue,RAF ASSOCIATION GRIMSBY &,179766
North East Lincolnshire Council,http://statistics.data.gov.uk/id/local-authority/00FC,Chief Executive,Chief Executive,Chief Exec & Support,Grants & Subscriptions,Grnt Vol Org General,MG04,17/02/2011,3022021,500.00,Revenue,NORTH EAST LINCOLNSHIRE MOTOR PROJECT,181630
North East Lincolnshire Council,http://statistics.data.gov.uk/id/local-authority/00FC,Chief Executive,Chief Executive,Chief Exec & Support,Grants & Subscriptions,Grnt Vol Org General,MG04,08/02/2011,3017123,500.00,Revenue,GRIMSBY CLEETHORPES & DISTRICT,85935
North East Lincolnshire Council,http://statistics.data.gov.uk/id/local-authority/00FC,Chief Executive,Chief Executive,Chief Exec & Support,Grants & Subscriptions,Grnt Vol Org General,MG04,08/02/2011,3017129,500.00,Revenue,HUMBERSIDE FIRE & RESCUE SRVCE,163132
North East Lincolnshire Council,http://statistics.data.gov.uk/id/local-authority/00FC,Chief Executive,Chief Executive,Chief Exec & Support,Miscellaneous Expenses,Other Expenses General,NZ01,01/02/2011,3012899,500.00,Revenue,ST ANDREWS METHODIST CHURCH,167903
North East Lincolnshire Council,http://statistics.data.gov.uk/id/local-authority/00FC,Chief Executive,Chief Executive,Chief Exec & Support,Miscellaneous Expenses,Other Expenses General,NZ01,01/02/2011,3012901,500.00,Revenue,FRIENDS OF FED-UP,179638
North East Lincolnshire Council,http://statistics.data.gov.uk/id/local-authority/00FC,Chief Executive,Chief Executive,Chief Exec & Support,Miscellaneous Expenses,Other Expenses General,NZ01,01/02/2011,3012895,500.00,Revenue,GEORGE HARDWICK FOUNDATION,181571
North East Lincolnshire Council,http://statistics.data.gov.uk/id/local-authority/00FC,Chief Executive,Chief Executive,Chief Exec & Support,Grants & Subscriptions,Grnt Vol Org General,MG04,08/02/2011,3017125,581.63,Revenue,WALTHAM PARISH COUNCIL,165787
North East Lincolnshire Council,http://statistics.data.gov.uk/id/local-authority/00FC,Chief Executive,Chief Executive,Chief Exec & Support,Miscellaneous Expenses,Other Expenses General,NZ01,01/02/2011,3012897,669.00,Revenue,NUNSTHORPE TOGETHER,171921
North East Lincolnshire Council,http://statistics.data.gov.uk/id/local-authority/00FC,Chief Executive,Chief Executive,Chief Exec & Support,Grants & Subscriptions,Grnt Vol Org General,MG04,18/02/2011,3023424,700.00,Revenue,CONTRACT LINCS,176630
North East Lincolnshire Council,http://statistics.data.gov.uk/id/local-authority/00FC,Chief Executive,Chief Executive,Chief Exec & Support,Grants & Subscriptions,Grnt Vol Org General,MG04,17/02/2011,3022036,"1,000.00",Revenue,NORTH EAST LINCOLNSHIRE MOTOR PROJECT,181630
North East Lincolnshire Council,http://statistics.data.gov.uk/id/local-authority/00FC,Chief Executive,Chief Executive,Chief Exec & Support,Grants & Subscriptions,Grnt Vol Org General,MG04,23/02/2011,3025444,"1,000.00",Revenue,FRESHNEY FORWARD,175944
North East Lincolnshire Council,http://statistics.data.gov.uk/id/local-authority/00FC,Chief Executive,Chief Executive,Chief Exec & Support,Grants & Subscriptions,Grnt Vol Org General,MG04,08/02/2011,3017127,"1,000.00",Revenue,GRIMSBY & DISTRICT LIVE AT HOME SCHEME,177518
North East Lincolnshire Council,http://statistics.data.gov.uk/id/local-authority/00FC,Chief Executive,Chief Executive,Chief Exec & Support,Grants & Subscriptions,Grnt Vol Org General,MG04,25/02/2011,3026603,"1,000.00",Revenue,1ST CLEETHORPES SEA SCOUTS GROUP,181794
North East Lincolnshire Council,http://statistics.data.gov.uk/id/local-authority/00FC,Chief Executive,Chief Executive,Chief Exec & Support,Grants & Subscriptions,Grnt Vol Org General,MG04,08/02/2011,3017122,"1,000.00",Revenue,GRIMSBY CLEETHORPES & DISTRICT,85935
North East Lincolnshire Council,http://statistics.data.gov.uk/id/local-authority/00FC,Chief Executive,Chief Executive,Chief Exec & Support,Grants & Subscriptions,Grnt Vol Org General,MG04,08/02/2011,3017120,"1,000.00",Revenue,NORTH EAST LINCOLNSHIRE MOTOR PROJECT,181630
North East Lincolnshire Council,http://statistics.data.gov.uk/id/local-authority/00FC,Chief Executive,Chief Executive,Chief Exec & Support,Grants & Subscriptions,Grnt Vol Org General,MG04,25/02/2011,3026609,"1,000.00",Revenue,CLEETHORPES IN BLOOM,165551
North East Lincolnshire Council,http://statistics.data.gov.uk/id/local-authority/00FC,Chief Executive,Chief Executive,Chief Exec & Support,Grants & Subscriptions,Grnt Vol Org General,MG04,25/02/2011,3026614,"1,000.00",Revenue,BRADLEY PARISH COUNCIL,162237
North East Lincolnshire Council,http://statistics.data.gov.uk/id/local-authority/00FC,Chief Executive,Chief Executive,Chief Exec & Support,Grants & Subscriptions,Grnt Vol Org General,MG04,24/02/2011,3026180,"1,160.00",Revenue,CLEETHORPES EVENTS LTD,171302
North East Lincolnshire Council,http://statistics.data.gov.uk/id/local-authority/00FC,Chief Executive,Chief Executive,Chief Exec & Support,Grants & Subscriptions,Grnt Vol Org General,MG04,14/02/2011,3019680,"1,170.00",Revenue,ARNE FABRICATIONS,179277
North East Lincolnshire Council,http://statistics.data.gov.uk/id/local-authority/00FC,Chief Executive,Chief Executive,Chief Exec & Support,Grants & Subscriptions,Grnt Vol Org General,MG04,25/02/2011,3026616,"1,200.00",Revenue,GRIMSBY CLEETHORPES & DISTRICT SCOUTS,171020
North East Lincolnshire Council,http://statistics.data.gov.uk/id/local-authority/00FC,Chief Executive,Chief Executive,Chief Exec & Support,Grants & Subscriptions,Grnt Vol Org General,MG04,08/02/2011,3017121,"1,200.00",Revenue,HUMBERSTON ALLOTMENT HOLDERS ASS,181631
North East Lincolnshire Council,http://statistics.data.gov.uk/id/local-authority/00FC,Chief Executive,Chief Executive,Chief Exec & Support,Grants & Subscriptions,Grnt Vol Org General,MG04,25/02/2011,3026608,"1,500.00",Revenue,RAF ASSOCIATION GRIMSBY &,179766
North East Lincolnshire Council,http://statistics.data.gov.uk/id/local-authority/00FC,Chief Executive,Chief Executive,Chief Exec & Support,Grants & Subscriptions,Grnt Vol Org General,MG04,08/02/2011,3017126,"1,600.00",Revenue,ASHBY CUM FENBY PARISH COUNCIL,165529
North East Lincolnshire Council,http://statistics.data.gov.uk/id/local-authority/00FC,Chief Executive,Chief Executive,Chief Exec & Support,Grants & Subscriptions,Grnt Vol Org General,MG04,17/02/2011,3022034,"2,000.00",Revenue,CLEETHORPES IN BLOOM,165551
North East Lincolnshire Council,http://statistics.data.gov.uk/id/local-authority/00FC,Chief Executive,Chief Executive,Chief Exec & Support,Grants & Subscriptions,Grnt Vol Org General,MG04,25/02/2011,3026610,"2,000.00",Revenue,TOURISM NORTH EAST LINCS,181186
North East Lincolnshire Council,http://statistics.data.gov.uk/id/local-authority/00FC,Chief Executive,Chief Executive,Chief Exec & Support,Grants & Subscriptions,Grnt Vol Org General,MG04,25/02/2011,3026615,"2,000.00",Revenue,IRBY UPON HUMBER PARISH COUNCIL,178192
North East Lincolnshire Council,http://statistics.data.gov.uk/id/local-authority/00FC,Chief Executive,Chief Executive,Chief Exec & Support,Grants & Subscriptions,Grnt Vol Org General,MG04,25/02/2011,3026611,"3,000.00",Revenue,CLEELINCS,173470
North East Lincolnshire Council,http://statistics.data.gov.uk/id/local-authority/00FC,Chief Executive,Chief Executive,Chief Exec & Support,Grants & Subscriptions,Grnt Vol Org General,MG04,25/02/2011,3026612,"5,000.00",Revenue,LACEBY PARISH COUNCIL,161918
North East Lincolnshire Council,http://statistics.data.gov.uk/id/local-authority/00FC,Chief Executive,Chief Executive,Chief Exec & Support,Grants & Subscriptions,Grnt Vol Org General,MG04,25/02/2011,3026613,"6,000.00",Revenue,HEALING PARISH COUNCIL,162236
North East Lincolnshire Council,http://statistics.data.gov.uk/id/local-authority/00FC,Children & Family Services,Commissioning Pships & Perform,Additional & Enhanced Needs,Equipment/Furniture/Materials,Off Equip Photocop Rent/Copies,HN71,28/02/2011,3027990,612.20,Revenue,UNITED CARLTON OFFICE SYSTEMS LTD,161525
North East Lincolnshire Council,http://statistics.data.gov.uk/id/local-authority/00FC,Children & Family Services,Commissioning Pships & Perform,Cfs Assets & Pc Programme,Printing Station & Gen Off Exp,Print & Stat General,LA01,16/02/2011,3021561,"-1,253.97",Revenue,LYRECO UK LIMITED,117289
North East Lincolnshire Council,http://statistics.data.gov.uk/id/local-authority/00FC,Children & Family Services,Commissioning Pships & Perform,Cfs Assets & Pc Programme,Printing Station & Gen Off Exp,Print & Stat General,LA01,16/02/2011,3021563,"1,742.14",Revenue,LYRECO UK LIMITED,117289
North East Lincolnshire Council,http://statistics.data.gov.uk/id/local-authority/00FC,Children & Family Services,Commissioning Pships & Perform,Commissioning & Performance,Equipment/Furniture/Materials,Off Equip Photocop Rent/Copies,HN71,09/02/2011,3017933,520.29,Revenue,UNITED CARLTON OFFICE SYSTEMS LTD,161525
North East Lincolnshire Council,http://statistics.data.gov.uk/id/local-authority/00FC,Children & Family Services,Commissioning Pships & Perform,Commissioning Of Bsf,Rents,Rent Portacabins,FJ06,14/02/2011,3020046,"22,354.53",Revenue,PORTAKABIN LTD,133283
North East Lincolnshire Council,http://statistics.data.gov.uk/id/local-authority/00FC,Children & Family Services,Commissioning Pships & Perform,Commissioning & Performance,Catering,Purchase School Meals,KH01,17/02/2011,3021995,REDACTED COMMERCIALLY SENSITIVE INFORMATION,Revenue,CYGNET FOODS,153360
North East Lincolnshire Council,http://statistics.data.gov.uk/id/local-authority/00FC,Children & Family Services,Commissioning Pships & Perform,Commissioning & Performance,Catering,Provisions Milk,KG02,23/02/2011,3025339,"4,378.72",Revenue,DAIRY CREST LTD,164121
North East Lincolnshire Council,http://statistics.data.gov.uk/id/local-authority/00FC,Children & Family Services,Commissioning Pships & Perform,Commissioning & Performance,Catering,Purchase School Meals,KH01,17/02/2011,3021993,REDACTED COMMERCIALLY SENSITIVE INFORMATION,Revenue,CYGNET FOODS,153360
North East Lincolnshire Council,http://statistics.data.gov.uk/id/local-authority/00FC,Children & Family Services,Commissioning Pships & Perform,Commissioning & Performance,Catering,Purchase School Meals,KH01,17/02/2011,3022062,REDACTED COMMERCIALLY SENSITIVE INFORMATION,Revenue,CYGNET FOODS,153360
North East Lincolnshire Council,http://statistics.data.gov.uk/id/local-authority/00FC,Children & Family Services,Commissioning Pships & Perform,Additional & Enhanced Needs,Private Contractors,Children And Families Tpp,QC01,08/02/2011,3017366,912.00,Revenue,DKM ASSESSMENT & VERIFICATION LTD,161171
North East Lincolnshire Council,http://statistics.data.gov.uk/id/local-authority/00FC,Children & Family Services,Commissioning Pships & Perform,Additional & Enhanced Needs,Contributions To Provisions,Contributions To Funds,NV01,22/02/2011,3025108,"2,475.00",Revenue,DKM ASSESSMENT & VERIFICATION LTD,161171
North East Lincolnshire Council,http://statistics.data.gov.uk/id/local-authority/00FC,Children & Family Services,Commissioning Pships & Perform,Additional & Enhanced Needs,Private Contractors,Outside Contractors,QH01,22/02/2011,3025116,"4,320.00",Revenue,RAINBOW,172872
North East Lincolnshire Council,http://statistics.data.gov.uk/id/local-authority/00FC,Children & Family Services,Commissioning Pships & Perform,Additional & Enhanced Needs,Private Contractors,Outside Contractors,QH01,11/02/2011,3019042,"4,762.17",Revenue,7KS LTD,170762
North East Lincolnshire Council,http://statistics.data.gov.uk/id/local-authority/00FC,Children & Family Services,Commissioning Pships & Perform,Additional & Enhanced Needs,Other Local Authorities,Oth Local Auth General,QG01,22/02/2011,3025113,"6,885.67",Revenue,NORTH LINCOLNSHIRE COUNCIL,127152
North East Lincolnshire Council,http://statistics.data.gov.uk/id/local-authority/00FC,Children & Family Services,Commissioning Pships & Perform,Additional & Enhanced Needs,Private Contractors,Children And Families Tpp,QC01,22/02/2011,3025115,"10,799.88",Revenue,QUALITY TIME CARE LTD,178943
North East Lincolnshire Council,http://statistics.data.gov.uk/id/local-authority/00FC,Children & Family Services,Commissioning Pships & Perform,Additional & Enhanced Needs,Private Contractors,Children And Families Tpp,QC01,22/02/2011,3025110,"11,200.00",Revenue,DKM ASSESSMENT & VERIFICATION LTD,161171
North East Lincolnshire Council,http://statistics.data.gov.uk/id/local-authority/00FC,Children & Family Services,Commissioning Pships & Perform,Additional & Enhanced Needs,Other Local Authorities,Oth Local Auth General,QG01,22/02/2011,3025111,"16,351.50",Revenue,DELAMERE FOREST SCHOOL LTD,180452
North East Lincolnshire Council,http://statistics.data.gov.uk/id/local-authority/00FC,Children & Family Services,Commissioning Pships & Perform,Additional & Enhanced Needs,Private Contractors,Children And Families Tpp,QC01,10/02/2011,3018221,"21,057.14",Revenue,ORACLE CARE LTD,181661
North East Lincolnshire Council,http://statistics.data.gov.uk/id/local-authority/00FC,Children & Family Services,Commissioning Pships & Perform,Additional & Enhanced Needs,Contributions To Provisions,Contributions To Funds,NV01,11/02/2011,3019039,"-1,045.00",Revenue,DKM ASSESSMENT & VERIFICATION LTD,161171
North East Lincolnshire Council,http://statistics.data.gov.uk/id/local-authority/00FC,Children & Family Services,Commissioning Pships & Perform,Additional & Enhanced Needs,Direct Employee Expenses,Pay Employment Agency Staff,AA53,22/02/2011,3025096,550.00,Revenue,RANDSTAD EDUCATION LTD,178168
North East Lincolnshire Council,http://statistics.data.gov.uk/id/local-authority/00FC,Children & Family Services,Commissioning Pships & Perform,Additional & Enhanced Needs,Direct Employee Expenses,Pay Employment Agency Staff,AA53,11/02/2011,3019052,550.00,Revenue,RANDSTAD EDUCATION LTD,178168
North East Lincolnshire Council,http://statistics.data.gov.uk/id/local-authority/00FC,Children & Family Services,Commissioning Pships & Perform,Additional & Enhanced Needs,Direct Employee Expenses,Pay Employment Agency Staff,AA53,11/02/2011,3019070,550.00,Revenue,RANDSTAD EDUCATION LTD,178168
North East Lincolnshire Council,http://statistics.data.gov.uk/id/local-authority/00FC,Children & Family Services,Commissioning Pships & Perform,Additional & Enhanced Needs,Direct Employee Expenses,Pay Employment Agency Staff,AA53,22/02/2011,3025121,550.00,Revenue,RANDSTAD EDUCATION LTD,178168
North East Lincolnshire Council,http://statistics.data.gov.uk/id/local-authority/00FC,Children & Family Services,Commissioning Pships & Perform,Additional & Enhanced Needs,Direct Employee Expenses,Pay Employment Agency Staff,AA53,22/02/2011,3025097,550.00,Revenue,RANDSTAD EDUCATION LTD,178168
North East Lincolnshire Council,http://statistics.data.gov.uk/id/local-authority/00FC,Children & Family Services,Commissioning Pships & Perform,Additional & Enhanced Needs,Direct Employee Expenses,Pay Employment Agency Staff,AA53,11/02/2011,3019054,550.00,Revenue,RANDSTAD EDUCATION LTD,178168
North East Lincolnshire Council,http://statistics.data.gov.uk/id/local-authority/00FC,Children & Family Services,Commissioning Pships & Perform,Additional & Enhanced Needs,Direct Employee Expenses,Pay Employment Agency Staff,AA53,11/02/2011,3019066,550.00,Revenue,RANDSTAD EDUCATION LTD,178168
North East Lincolnshire Council,http://statistics.data.gov.uk/id/local-authority/00FC,Children & Family Services,Commissioning Pships & Perform,Additional & Enhanced Needs,Direct Employee Expenses,Pay Employment Agency Staff,AA53,22/02/2011,3025094,550.00,Revenue,RANDSTAD EDUCATION LTD,178168
North East Lincolnshire Council,http://statistics.data.gov.uk/id/local-authority/00FC,Children & Family Services,Commissioning Pships & Perform,Additional & Enhanced Needs,Direct Employee Expenses,Pay Employment Agency Staff,AA53,28/02/2011,3028023,550.00,Revenue,RANDSTAD EDUCATION LTD,178168
North East Lincolnshire Council,http://statistics.data.gov.uk/id/local-authority/00FC,Children & Family Services,Commissioning Pships & Perform,Additional & Enhanced Needs,Direct Employee Expenses,Pay Employment Agency Staff,AA53,28/02/2011,3028037,550.00,Revenue,RANDSTAD EDUCATION LTD,178168
North East Lincolnshire Council,http://statistics.data.gov.uk/id/local-authority/00FC,Children & Family Services,Commissioning Pships & Perform,Additional & Enhanced Needs,Contributions To Provisions,Contributions To Funds,NV01,28/02/2011,3028042,780.44,Revenue,REDACTED PERSONAL DATA,REDACTED PERSONAL DATA
North East Lincolnshire Council,http://statistics.data.gov.uk/id/local-authority/00FC,Children & Family Services,Commissioning Pships & Perform,Additional & Enhanced Needs,Contributions To Provisions,Contributions To Funds,NV01,22/02/2011,3025103,"1,050.00",Revenue,DKM ASSESSMENT & VERIFICATION LTD,161171
North East Lincolnshire Council,http://statistics.data.gov.uk/id/local-authority/00FC,Children & Family Services,Commissioning Pships & Perform,Additional & Enhanced Needs,Contributions To Provisions,Contributions To Funds,NV01,22/02/2011,3025105,"1,050.00",Revenue,DKM ASSESSMENT & VERIFICATION LTD,161171
North East Lincolnshire Council,http://statistics.data.gov.uk/id/local-authority/00FC,Children & Family Services,Commissioning Pships & Perform,Additional & Enhanced Needs,Contributions To Provisions,Contributions To Funds,NV01,22/02/2011,3025107,"1,050.00",Revenue,DKM ASSESSMENT & VERIFICATION LTD,161171
North East Lincolnshire Council,http://statistics.data.gov.uk/id/local-authority/00FC,Children & Family Services,Commissioning Pships & Perform,Additional & Enhanced Needs,Contributions To Provisions,Contributions To Funds,NV01,11/02/2011,3019172,"1,116.16",Revenue,REDACTED PERSONAL DATA,REDACTED PERSONAL DATA
North East Lincolnshire Council,http://statistics.data.gov.uk/id/local-authority/00FC,Children & Family Services,Commissioning Pships & Perform,Additional & Enhanced Needs,Contributions To Provisions,Contributions To Funds,NV01,22/02/2011,3025106,"1,800.00",Revenue,DKM ASSESSMENT & VERIFICATION LTD,161171
North East Lincolnshire Council,http://statistics.data.gov.uk/id/local-authority/00FC,Children & Family Services,Commissioning Pships & Perform,Additional & Enhanced Needs,Contributions To Provisions,Contributions To Funds,NV01,11/02/2011,3019041,"2,090.00",Revenue,DKM ASSESSMENT & VERIFICATION LTD,161171
North East Lincolnshire Council,http://statistics.data.gov.uk/id/local-authority/00FC,Children & Family Services,Commissioning Pships & Perform,Additional & Enhanced Needs,Miscellaneous Expenses,Other Expenses General,NZ01,11/02/2011,3019043,"2,916.27",Revenue,7KS LTD,170762
North East Lincolnshire Council,http://statistics.data.gov.uk/id/local-authority/00FC,Children & Family Services,Commissioning Pships & Perform,Additional & Enhanced Needs,Miscellaneous Expenses,Other Expenses General,NZ01,11/02/2011,3019042,"2,916.27",Revenue,7KS LTD,170762
North East Lincolnshire Council,http://statistics.data.gov.uk/id/local-authority/00FC,Children & Family Services,Commissioning Pships & Perform,Additional & Enhanced Needs,Contributions To Provisions,Contributions To Funds,NV01,22/02/2011,3025102,"8,670.00",Revenue,SPACE PROJECT,151592
North East Lincolnshire Council,http://statistics.data.gov.uk/id/local-authority/00FC,Children & Family Services,Commissioning Pships & Perform,Additional & Enhanced Needs,Contributions To Provisions,Contributions To Funds,NV01,11/02/2011,3019043,"2,916.27",Revenue,7KS LTD,170762
North East Lincolnshire Council,http://statistics.data.gov.uk/id/local-authority/00FC,Children & Family Services,Commissioning Pships & Perform,Additional & Enhanced Needs,Contributions To Provisions,Contributions To Funds,NV01,11/02/2011,3019043,"2,916.27",Revenue,7KS LTD,170762
North East Lincolnshire Council,http://statistics.data.gov.uk/id/local-authority/00FC,Children & Family Services,Commissioning Pships & Perform,Cfs Assets & Pc Programme,Repairs & Maintenance,R & M Build Gen Ppty Services,CA51,07/02/2011,3015681,512.00,Revenue,HAITH'S HEATING LTD,140813
North East Lincolnshire Council,http://statistics.data.gov.uk/id/local-authority/00FC,Children & Family Services,Commissioning Pships & Perform,Cfs Assets & Pc Programme,Repairs & Maintenance,R & M Build Spec Planned Maint,CB65,07/02/2011,3015423,"1,625.00",Revenue,HAITH'S HEATING LTD,140813
North East Lincolnshire Council,http://statistics.data.gov.uk/id/local-authority/00FC,Children & Family Services,Commissioning Pships & Perform,Cfs Assets & Pc Programme,Repairs & Maintenance,R & M Build Spec Planned Maint,CB65,22/02/2011,3024957,"3,157.93",Revenue,HUMBERSTON MATHS & COMPUTING COLLEGE,180763
North East Lincolnshire Council,http://statistics.data.gov.uk/id/local-authority/00FC,Children & Family Services,Commissioning Pships & Perform,Cfs Assets & Pc Programme,Energy Costs,Electricity General,FB01,23/02/2011,3025373,556.85,Revenue,NPOWER LIMITED,147188
North East Lincolnshire Council,http://statistics.data.gov.uk/id/local-authority/00FC,Children & Family Services,Commissioning Pships & Perform,Cfs Assets & Pc Programme,Energy Costs,Electricity General,FB01,08/02/2011,3017254,680.59,Revenue,NPOWER LIMITED,147188
North East Lincolnshire Council,http://statistics.data.gov.uk/id/local-authority/00FC,Children & Family Services,Commissioning Pships & Perform,Cfs Assets & Pc Programme,Water Services,Water - Charges Rv,FH01,08/02/2011,3017450,"1,101.01",Revenue,ANGLIAN WATER,109
North East Lincolnshire Council,http://statistics.data.gov.uk/id/local-authority/00FC,Children & Family Services,Commissioning Pships & Perform,Cfs Assets & Pc Programme,Energy Costs,Gas,FA01,01/02/2011,3012476,"2,232.58",Revenue,BRITISH GAS TRADING LTD,154726
North East Lincolnshire Council,http://statistics.data.gov.uk/id/local-authority/00FC,Children & Family Services,Commissioning Pships & Perform,Childrens Trust,Printing Station & Gen Off Exp,Postage Franking M/Chine Chrge,LE02,07/02/2011,3016282,912.00,Revenue,NEOPOST FINANCE LIMITED,110788
North East Lincolnshire Council,http://statistics.data.gov.uk/id/local-authority/00FC,Children & Family Services,Commissioning Pships & Perform,School Access Govrn Stdnt Serv,Contract Hire/Operating Leases,Cont Vehicle Parent Out County,GN11,25/02/2011,3027362,REDACTED COMMERCIALLY SENSITIVE INFORMATION,Revenue,REDACTED PERSONAL DATA,REDACTED PERSONAL DATA
North East Lincolnshire Council,http://statistics.data.gov.uk/id/local-authority/00FC,Children & Family Services,Commissioning Pships & Perform,School Access Govrn Stdnt Serv,Contract Hire/Operating Leases,Cont Veh Sen School,GN08,10/02/2011,3018334,REDACTED COMMERCIALLY SENSITIVE INFORMATION,Revenue,MINICABS CLEETHORPES (LINCS) LTD,172873
North East Lincolnshire Council,http://statistics.data.gov.uk/id/local-authority/00FC,Children & Family Services,Commissioning Pships & Perform,School Access Govrn Stdnt Serv,Contract Hire/Operating Leases,Cont Veh Sen School,GN08,16/02/2011,3021367,REDACTED COMMERCIALLY SENSITIVE INFORMATION,Revenue,REVELLS TAXIS (ED/SOC SERV),2045
North East Lincolnshire Council,http://statistics.data.gov.uk/id/local-authority/00FC,Children & Family Services,Commissioning Pships & Perform,School Access Govrn Stdnt Serv,Contract Hire/Operating Leases,Cont Veh Sen School,GN08,10/02/2011,3018399,REDACTED COMMERCIALLY SENSITIVE INFORMATION,Revenue,LINKS TAXIS,1524
North East Lincolnshire Council,http://statistics.data.gov.uk/id/local-authority/00FC,Children & Family Services,Commissioning Pships & Perform,School Access Govrn Stdnt Serv,Contract Hire/Operating Leases,Cont Veh Sen School,GN08,16/02/2011,3021347,REDACTED COMMERCIALLY SENSITIVE INFORMATION,Revenue,REVELLS TAXIS (ED/SOC SERV),2045
North East Lincolnshire Council,http://statistics.data.gov.uk/id/local-authority/00FC,Children & Family Services,Commissioning Pships & Perform,School Access Govrn Stdnt Serv,Contract Hire/Operating Leases,Cont Veh Sen School,GN08,10/02/2011,3018326,REDACTED COMMERCIALLY SENSITIVE INFORMATION,Revenue,WHEELCHAIR FRIENDLY TAXI SERVICE,168857
North East Lincolnshire Council,http://statistics.data.gov.uk/id/local-authority/00FC,Children & Family Services,Commissioning Pships & Perform,School Access Govrn Stdnt Serv,Contract Hire/Operating Leases,Cont Veh Sen School,GN08,10/02/2011,3018397,REDACTED COMMERCIALLY SENSITIVE INFORMATION,Revenue,LINKS TAXIS,1524
North East Lincolnshire Council,http://statistics.data.gov.uk/id/local-authority/00FC,Children & Family Services,Commissioning Pships & Perform,School Access Govrn Stdnt Serv,Contract Hire/Operating Leases,Cont Veh Sen School,GN08,10/02/2011,3018330,REDACTED COMMERCIALLY SENSITIVE INFORMATION,Revenue,MINICABS CLEETHORPES (LINCS) LTD,172873
North East Lincolnshire Council,http://statistics.data.gov.uk/id/local-authority/00FC,Children & Family Services,Commissioning Pships & Perform,School Access Govrn Stdnt Serv,Contract Hire/Operating Leases,Cont Veh Sen School,GN08,10/02/2011,3018401,REDACTED COMMERCIALLY SENSITIVE INFORMATION,Revenue,LINKS TAXIS,1524
North East Lincolnshire Council,http://statistics.data.gov.uk/id/local-authority/00FC,Children & Family Services,Commissioning Pships & Perform,School Access Govrn Stdnt Serv,Contract Hire/Operating Leases,Cont Veh Sen School,GN08,10/02/2011,3018398,REDACTED COMMERCIALLY SENSITIVE INFORMATION,Revenue,LINKS TAXIS,1524
North East Lincolnshire Council,http://statistics.data.gov.uk/id/local-authority/00FC,Children & Family Services,Commissioning Pships & Perform,School Access Govrn Stdnt Serv,Contract Hire/Operating Leases,Cont Veh Sen School,GN08,10/02/2011,3018332,REDACTED COMMERCIALLY SENSITIVE INFORMATION,Revenue,MINICABS CLEETHORPES (LINCS) LTD,172873
North East Lincolnshire Council,http://statistics.data.gov.uk/id/local-authority/00FC,Children & Family Services,Commissioning Pships & Perform,School Access Govrn Stdnt Serv,Contract Hire/Operating Leases,Cont Veh Sen School,GN08,15/02/2011,3021119,REDACTED COMMERCIALLY SENSITIVE INFORMATION,Revenue,LINKS TAXIS,1524
North East Lincolnshire Council,http://statistics.data.gov.uk/id/local-authority/00FC,Children & Family Services,Commissioning Pships & Perform,School Access Govrn Stdnt Serv,Contract Hire/Operating Leases,Cont Veh Sen School,GN08,10/02/2011,3018325,REDACTED COMMERCIALLY SENSITIVE INFORMATION,Revenue,WHEELCHAIR FRIENDLY TAXI SERVICE,168857
North East Lincolnshire Council,http://statistics.data.gov.uk/id/local-authority/00FC,Children & Family Services,Commissioning Pships & Perform,School Access Govrn Stdnt Serv,Contract Hire/Operating Leases,Cont Veh Sen School,GN08,10/02/2011,3018341,REDACTED COMMERCIALLY SENSITIVE INFORMATION,Revenue,MINICABS CLEETHORPES (LINCS) LTD,172873
North East Lincolnshire Council,http://statistics.data.gov.uk/id/local-authority/00FC,Children & Family Services,Commissioning Pships & Perform,School Access Govrn Stdnt Serv,Contract Hire/Operating Leases,Cont Veh Sen School,GN08,10/02/2011,3018452,REDACTED COMMERCIALLY SENSITIVE INFORMATION,Revenue,AMVALE LIMITED,106463
North East Lincolnshire Council,http://statistics.data.gov.uk/id/local-authority/00FC,Children & Family Services,Commissioning Pships & Perform,School Access Govrn Stdnt Serv,Contract Hire/Operating Leases,Cont Vehicle Disaffected,GN16,15/02/2011,3021111,REDACTED COMMERCIALLY SENSITIVE INFORMATION,Revenue,LINKS TAXIS,1524
North East Lincolnshire Council,http://statistics.data.gov.uk/id/local-authority/00FC,Children & Family Services,Commissioning Pships & Perform,School Access Govrn Stdnt Serv,Contract Hire/Operating Leases,Cont Vehicle Disaffected,GN16,15/02/2011,3021112,REDACTED COMMERCIALLY SENSITIVE INFORMATION,Revenue,LINKS TAXIS,1524
North East Lincolnshire Council,http://statistics.data.gov.uk/id/local-authority/00FC,Children & Family Services,Commissioning Pships & Perform,School Access Govrn Stdnt Serv,Private Contractors,Concessionary Fares,PK01,17/02/2011,3022006,REDACTED COMMERCIALLY SENSITIVE INFORMATION,Revenue,STAGECOACH SERVICES,146590
North East Lincolnshire Council,http://statistics.data.gov.uk/id/local-authority/00FC,Children & Family Services,Commissioning Pships & Perform,School Access Govrn Stdnt Serv,Private Contractors,Concessionary Fares,PK01,10/02/2011,3018380,REDACTED COMMERCIALLY SENSITIVE INFORMATION,Revenue,MINICABS CLEETHORPES (LINCS) LTD,172873
North East Lincolnshire Council,http://statistics.data.gov.uk/id/local-authority/00FC,Children & Family Services,Commissioning Pships & Perform,School Access Govrn Stdnt Serv,Contract Hire/Operating Leases,Cont Vehicle Cont Vehicle,GN09,10/02/2011,3018388,REDACTED COMMERCIALLY SENSITIVE INFORMATION,Revenue,LINKS TAXIS,1524
North East Lincolnshire Council,http://statistics.data.gov.uk/id/local-authority/00FC,Children & Family Services,Commissioning Pships & Perform,School Access Govrn Stdnt Serv,Contract Hire/Operating Leases,Cont Vehicle Cont Vehicle,GN09,16/02/2011,3021364,REDACTED COMMERCIALLY SENSITIVE INFORMATION,Revenue,REVELLS TAXIS (ED/SOC SERV),2045
North East Lincolnshire Council,http://statistics.data.gov.uk/id/local-authority/00FC,Children & Family Services,Commissioning Pships & Perform,School Access Govrn Stdnt Serv,Contract Hire/Operating Leases,Cont Vehicle Hire Tspt Other,GN06,10/02/2011,3018335,REDACTED COMMERCIALLY SENSITIVE INFORMATION,Revenue,MINICABS CLEETHORPES (LINCS) LTD,172873
North East Lincolnshire Council,http://statistics.data.gov.uk/id/local-authority/00FC,Children & Family Services,Commissioning Pships & Perform,School Access Govrn Stdnt Serv,Contract Hire/Operating Leases,Cont Vehicle Hire Tspt Swim,GN04,10/02/2011,3018445,REDACTED COMMERCIALLY SENSITIVE INFORMATION,Revenue,AMVALE LIMITED,106463
North East Lincolnshire Council,http://statistics.data.gov.uk/id/local-authority/00FC,Children & Family Services,Commissioning Pships & Perform,School Access Govrn Stdnt Serv,Contract Hire/Operating Leases,Cont Vehicle Cont Vehicle,GN09,08/02/2011,3017142,REDACTED COMMERCIALLY SENSITIVE INFORMATION,Revenue,THE BUS RUN,155905
North East Lincolnshire Council,http://statistics.data.gov.uk/id/local-authority/00FC,Children & Family Services,Commissioning Pships & Perform,School Access Govrn Stdnt Serv,Contract Hire/Operating Leases,Cont Vehicle Cont Vehicle,GN09,10/02/2011,3018454,REDACTED COMMERCIALLY SENSITIVE INFORMATION,Revenue,AMVALE LIMITED,106463
North East Lincolnshire Council,http://statistics.data.gov.uk/id/local-authority/00FC,Children & Family Services,Commissioning Pships & Perform,School Access Govrn Stdnt Serv,Contract Hire/Operating Leases,Cont Veh Sen School,GN08,10/02/2011,3018450,REDACTED COMMERCIALLY SENSITIVE INFORMATION,Revenue,AMVALE LIMITED,106463
North East Lincolnshire Council,http://statistics.data.gov.uk/id/local-authority/00FC,Children & Family Services,Commissioning Pships & Perform,School Access Govrn Stdnt Serv,Contract Hire/Operating Leases,Cont Vehicle Cont Vehicle,GN09,08/02/2011,3017138,REDACTED COMMERCIALLY SENSITIVE INFORMATION,Revenue,HUXMANOR LTD,150193
North East Lincolnshire Council,http://statistics.data.gov.uk/id/local-authority/00FC,Children & Family Services,Commissioning Pships & Perform,School Access Govrn Stdnt Serv,Contract Hire/Operating Leases,Cont Vehicle Cont Vehicle,GN09,10/02/2011,3018350,REDACTED COMMERCIALLY SENSITIVE INFORMATION,Revenue,REDACTED PERSONAL DATA,REDACTED PERSONAL DATA
North East Lincolnshire Council,http://statistics.data.gov.uk/id/local-authority/00FC,Children & Family Services,Commissioning Pships & Perform,School Access Govrn Stdnt Serv,Private Contractors,Concessionary Fare Scheme Cost,PK02,02/02/2011,3013515,REDACTED COMMERCIALLY SENSITIVE INFORMATION,Revenue,STAGECOACH SERVICES,146590
North East Lincolnshire Council,http://statistics.data.gov.uk/id/local-authority/00FC,Children & Family Services,Commissioning Pships & Perform,School Access Govrn Stdnt Serv,Private Contractors,Pass Upgrade,PK03,02/02/2011,3013515,REDACTED COMMERCIALLY SENSITIVE INFORMATION,Revenue,STAGECOACH SERVICES,146590
North East Lincolnshire Council,http://statistics.data.gov.uk/id/local-authority/00FC,Children & Family Services,Commissioning Pships & Perform,School Access Govrn Stdnt Serv,Contract Hire/Operating Leases,Cont Veh Sen School,GN08,18/02/2011,3023401,REDACTED COMMERCIALLY SENSITIVE INFORMATION,Revenue,SHERWOOD TRAVEL,75983
North East Lincolnshire Council,http://statistics.data.gov.uk/id/local-authority/00FC,Children & Family Services,Commissioning Pships & Perform,School Access Govrn Stdnt Serv,Contract Hire/Operating Leases,Cont Vehicle Cont Vehicle,GN09,10/02/2011,3018311,REDACTED COMMERCIALLY SENSITIVE INFORMATION,Revenue,E M EMMERSON,4355
North East Lincolnshire Council,http://statistics.data.gov.uk/id/local-authority/00FC,Children & Family Services,Commissioning Pships & Perform,School Access Govrn Stdnt Serv,Contract Hire/Operating Leases,Cont Vehicle Cont Vehicle,GN09,10/02/2011,3018440,REDACTED COMMERCIALLY SENSITIVE INFORMATION,Revenue,MILLMAN COACHES,41357
North East Lincolnshire Council,http://statistics.data.gov.uk/id/local-authority/00FC,Children & Family Services,Commissioning Pships & Perform,School Access Govrn Stdnt Serv,Private Contractors,Concessionary Fare Scheme Cost,PK02,17/02/2011,3022006,REDACTED COMMERCIALLY SENSITIVE INFORMATION,Revenue,STAGECOACH SERVICES,146590
North East Lincolnshire Council,http://statistics.data.gov.uk/id/local-authority/00FC,Children & Family Services,Commissioning Pships & Perform,School Access Govrn Stdnt Serv,Contract Hire/Operating Leases,Cont Vehicle Cont Vehicle,GN09,10/02/2011,3018437,REDACTED COMMERCIALLY SENSITIVE INFORMATION,Revenue,MILLMAN COACHES,41357
North East Lincolnshire Council,http://statistics.data.gov.uk/id/local-authority/00FC,Children & Family Services,Commissioning Pships & Perform,School Access Govrn Stdnt Serv,Private Contractors,Pass Upgrade,PK03,17/02/2011,3022006,REDACTED COMMERCIALLY SENSITIVE INFORMATION,Revenue,STAGECOACH SERVICES,146590
North East Lincolnshire Council,http://statistics.data.gov.uk/id/local-authority/00FC,Children & Family Services,Commissioning Pships & Perform,School Access Govrn Stdnt Serv,Contract Hire/Operating Leases,Cont Vehicle Cont Vehicle,GN09,17/02/2011,3022017,REDACTED COMMERCIALLY SENSITIVE INFORMATION,Revenue,STAGECOACH SERVICES,146590
North East Lincolnshire Council,http://statistics.data.gov.uk/id/local-authority/00FC,Children & Family Services,Commissioning Pships & Perform,School Access Govrn Stdnt Serv,Miscellaneous Expenses,Other Expenses General,NZ01,25/02/2011,3027361,-250.00,Revenue,REDACTED PERSONAL DATA,REDACTED PERSONAL DATA
North East Lincolnshire Council,http://statistics.data.gov.uk/id/local-authority/00FC,Children & Family Services,Commissioning Pships & Perform,School Access Govrn Stdnt Serv,Contract Hire/Operating Leases,Cont Veh Sen School,GN08,15/02/2011,3021105,REDACTED COMMERCIALLY SENSITIVE INFORMATION,Revenue,LINKS TAXIS,1524
North East Lincolnshire Council,http://statistics.data.gov.uk/id/local-authority/00FC,Children & Family Services,Commissioning Pships & Perform,School Access Govrn Stdnt Serv,Contract Hire/Operating Leases,Cont Veh Sen School,GN08,10/02/2011,3018384,REDACTED COMMERCIALLY SENSITIVE INFORMATION,Revenue,LINKS TAXIS,1524
North East Lincolnshire Council,http://statistics.data.gov.uk/id/local-authority/00FC,Children & Family Services,Commissioning Pships & Perform,School Access Govrn Stdnt Serv,Contract Hire/Operating Leases,Cont Veh Sen School,GN08,10/02/2011,3018463,REDACTED COMMERCIALLY SENSITIVE INFORMATION,Revenue,LINKS TAXIS,1524
North East Lincolnshire Council,http://statistics.data.gov.uk/id/local-authority/00FC,Children & Family Services,Commissioning Pships & Perform,School Access Govrn Stdnt Serv,Contract Hire/Operating Leases,Cont Vehicle Disaffected,GN16,10/02/2011,3018492,REDACTED COMMERCIALLY SENSITIVE INFORMATION,Revenue,LINKS TAXIS,1524
North East Lincolnshire Council,http://statistics.data.gov.uk/id/local-authority/00FC,Children & Family Services,Commissioning Pships & Perform,School Access Govrn Stdnt Serv,Contract Hire/Operating Leases,Cont Veh Sen School,GN08,10/02/2011,3018492,REDACTED COMMERCIALLY SENSITIVE INFORMATION,Revenue,LINKS TAXIS,1524
North East Lincolnshire Council,http://statistics.data.gov.uk/id/local-authority/00FC,Children & Family Services,Commissioning Pships & Perform,School Access Govrn Stdnt Serv,Contract Hire/Operating Leases,Cont Veh Sen School,GN08,10/02/2011,3018472,REDACTED COMMERCIALLY SENSITIVE INFORMATION,Revenue,LINKS TAXIS,1524
North East Lincolnshire Council,http://statistics.data.gov.uk/id/local-authority/00FC,Children & Family Services,Commissioning Pships & Perform,School Access Govrn Stdnt Serv,Contract Hire/Operating Leases,Cont Veh Sen School,GN08,10/02/2011,3018403,REDACTED COMMERCIALLY SENSITIVE INFORMATION,Revenue,LINKS TAXIS,1524
North East Lincolnshire Council,http://statistics.data.gov.uk/id/local-authority/00FC,Children & Family Services,Commissioning Pships & Perform,School Access Govrn Stdnt Serv,Contract Hire/Operating Leases,Cont Veh Sen School,GN08,10/02/2011,3018479,REDACTED COMMERCIALLY SENSITIVE INFORMATION,Revenue,LINKS TAXIS,1524
North East Lincolnshire Council,http://statistics.data.gov.uk/id/local-authority/00FC,Children & Family Services,Commissioning Pships & Perform,School Access Govrn Stdnt Serv,Contract Hire/Operating Leases,Cont Vehicle Sen Alone Travel,GN13,10/02/2011,3018467,REDACTED COMMERCIALLY SENSITIVE INFORMATION,Revenue,LINKS TAXIS,1524
North East Lincolnshire Council,http://statistics.data.gov.uk/id/local-authority/00FC,Children & Family Services,Commissioning Pships & Perform,School Access Govrn Stdnt Serv,Contract Hire/Operating Leases,Cont Veh Sen School,GN08,10/02/2011,3018470,REDACTED COMMERCIALLY SENSITIVE INFORMATION,Revenue,LINKS TAXIS,1524
North East Lincolnshire Council,http://statistics.data.gov.uk/id/local-authority/00FC,Children & Family Services,Commissioning Pships & Perform,School Access Govrn Stdnt Serv,Private Contractors,Concessionary Fares,PK01,15/02/2011,3021107,REDACTED COMMERCIALLY SENSITIVE INFORMATION,Revenue,LINKS TAXIS,1524
North East Lincolnshire Council,http://statistics.data.gov.uk/id/local-authority/00FC,Children & Family Services,Commissioning Pships & Perform,School Access Govrn Stdnt Serv,Contract Hire/Operating Leases,Cont Veh Sen School,GN08,16/02/2011,3021337,REDACTED COMMERCIALLY SENSITIVE INFORMATION,Revenue,REVELLS TAXIS (ED/SOC SERV),2045
North East Lincolnshire Council,http://statistics.data.gov.uk/id/local-authority/00FC,Children & Family Services,Commissioning Pships & Perform,School Access Govrn Stdnt Serv,Contract Hire/Operating Leases,Cont Veh Sen School,GN08,15/02/2011,3021102,REDACTED COMMERCIALLY SENSITIVE INFORMATION,Revenue,LINKS TAXIS,1524
North East Lincolnshire Council,http://statistics.data.gov.uk/id/local-authority/00FC,Children & Family Services,Commissioning Pships & Perform,School Access Govrn Stdnt Serv,Contract Hire/Operating Leases,Cont Veh Sen School,GN08,18/02/2011,3023399,REDACTED COMMERCIALLY SENSITIVE INFORMATION,Revenue,REVELLS TAXIS (ED/SOC SERV),2045
North East Lincolnshire Council,http://statistics.data.gov.uk/id/local-authority/00FC,Children & Family Services,Commissioning Pships & Perform,School Access Govrn Stdnt Serv,Contract Hire/Operating Leases,Cont Vehicle Disaffected,GN16,10/02/2011,3018393,REDACTED COMMERCIALLY SENSITIVE INFORMATION,Revenue,LINKS TAXIS,1524
North East Lincolnshire Council,http://statistics.data.gov.uk/id/local-authority/00FC,Children & Family Services,Commissioning Pships & Perform,School Access Govrn Stdnt Serv,Contract Hire/Operating Leases,Cont Veh Sen School,GN08,10/02/2011,3018483,REDACTED COMMERCIALLY SENSITIVE INFORMATION,Revenue,LINKS TAXIS,1524
North East Lincolnshire Council,http://statistics.data.gov.uk/id/local-authority/00FC,Children & Family Services,Commissioning Pships & Perform,School Access Govrn Stdnt Serv,Contract Hire/Operating Leases,Cont Veh Sen School,GN08,10/02/2011,3018385,REDACTED COMMERCIALLY SENSITIVE INFORMATION,Revenue,LINKS TAXIS,1524
North East Lincolnshire Council,http://statistics.data.gov.uk/id/local-authority/00FC,Children & Family Services,Commissioning Pships & Perform,School Access Govrn Stdnt Serv,Contract Hire/Operating Leases,Cont Veh Sen School,GN08,17/02/2011,3022024,REDACTED COMMERCIALLY SENSITIVE INFORMATION,Revenue,REVELLS TAXIS (ED/SOC SERV),2045
North East Lincolnshire Council,http://statistics.data.gov.uk/id/local-authority/00FC,Children & Family Services,Commissioning Pships & Perform,School Access Govrn Stdnt Serv,Contract Hire/Operating Leases,Cont Vehicle Disaffected,GN16,15/02/2011,3021113,REDACTED COMMERCIALLY SENSITIVE INFORMATION,Revenue,LINKS TAXIS,1524
North East Lincolnshire Council,http://statistics.data.gov.uk/id/local-authority/00FC,Children & Family Services,Commissioning Pships & Perform,School Access Govrn Stdnt Serv,Contract Hire/Operating Leases,Cont Veh Sen School,GN08,10/02/2011,3018394,REDACTED COMMERCIALLY SENSITIVE INFORMATION,Revenue,LINKS TAXIS,1524
North East Lincolnshire Council,http://statistics.data.gov.uk/id/local-authority/00FC,Children & Family Services,Commissioning Pships & Perform,School Access Govrn Stdnt Serv,Contract Hire/Operating Leases,Cont Vehicle Disaffected,GN16,10/02/2011,3018380,REDACTED COMMERCIALLY SENSITIVE INFORMATION,Revenue,MINICABS CLEETHORPES (LINCS) LTD,172873
North East Lincolnshire Council,http://statistics.data.gov.uk/id/local-authority/00FC,Children & Family Services,Commissioning Pships & Perform,School Access Govrn Stdnt Serv,Contract Hire/Operating Leases,Cont Veh Sen School,GN08,10/02/2011,3018329,REDACTED COMMERCIALLY SENSITIVE INFORMATION,Revenue,COUNTRY CABS,170676
North East Lincolnshire Council,http://statistics.data.gov.uk/id/local-authority/00FC,Children & Family Services,Commissioning Pships & Perform,School Access Govrn Stdnt Serv,Contract Hire/Operating Leases,Cont Veh Sen School,GN08,10/02/2011,3018340,REDACTED COMMERCIALLY SENSITIVE INFORMATION,Revenue,MINICABS CLEETHORPES (LINCS) LTD,172873
North East Lincolnshire Council,http://statistics.data.gov.uk/id/local-authority/00FC,Children & Family Services,Commissioning Pships & Perform,School Access Govrn Stdnt Serv,Direct Transport Costs,Hired Transport Hire Vehicle,GA01,01/02/2011,3012905,REDACTED COMMERCIALLY SENSITIVE INFORMATION,Revenue,AMVALE LIMITED,106463
North East Lincolnshire Council,http://statistics.data.gov.uk/id/local-authority/00FC,Children & Family Services,Commissioning Pships & Perform,School Access Govrn Stdnt Serv,Direct Transport Costs,Hired Transport Hire Vehicle,GA01,01/02/2011,3012907,REDACTED COMMERCIALLY SENSITIVE INFORMATION,Revenue,AMVALE LIMITED,106463
North East Lincolnshire Council,http://statistics.data.gov.uk/id/local-authority/00FC,Children & Family Services,Commissioning Pships & Perform,School Access Govrn Stdnt Serv,Contract Hire/Operating Leases,Cont Veh Sen School,GN08,10/02/2011,3018485,REDACTED COMMERCIALLY SENSITIVE INFORMATION,Revenue,LINKS TAXIS,1524
North East Lincolnshire Council,http://statistics.data.gov.uk/id/local-authority/00FC,Children & Family Services,Commissioning Pships & Perform,School Access Govrn Stdnt Serv,Contract Hire/Operating Leases,Cont Veh Sen School,GN08,10/02/2011,3018395,REDACTED COMMERCIALLY SENSITIVE INFORMATION,Revenue,LINKS TAXIS,1524
North East Lincolnshire Council,http://statistics.data.gov.uk/id/local-authority/00FC,Children & Family Services,Commissioning Pships & Perform,School Access Govrn Stdnt Serv,Contract Hire/Operating Leases,Cont Veh Sen School,GN08,10/02/2011,3018493,REDACTED COMMERCIALLY SENSITIVE INFORMATION,Revenue,LINKS TAXIS,1524
North East Lincolnshire Council,http://statistics.data.gov.uk/id/local-authority/00FC,Children & Family Services,Commissioning Pships & Perform,School Access Govrn Stdnt Serv,Contract Hire/Operating Leases,Cont Vehicle Disaffected,GN16,15/02/2011,3021100,REDACTED COMMERCIALLY SENSITIVE INFORMATION,Revenue,LINKS TAXIS,1524
North East Lincolnshire Council,http://statistics.data.gov.uk/id/local-authority/00FC,Children & Family Services,Commissioning Pships & Perform,School Access Govrn Stdnt Serv,Contract Hire/Operating Leases,Cont Veh Sen School,GN08,10/02/2011,3018343,REDACTED COMMERCIALLY SENSITIVE INFORMATION,Revenue,MINICABS CLEETHORPES (LINCS) LTD,172873
North East Lincolnshire Council,http://statistics.data.gov.uk/id/local-authority/00FC,Children & Family Services,Commissioning Pships & Perform,School Access Govrn Stdnt Serv,Contract Hire/Operating Leases,Cont Veh Sen School,GN08,17/02/2011,3022031,REDACTED COMMERCIALLY SENSITIVE INFORMATION,Revenue,REVELLS TAXIS (ED/SOC SERV),2045
North East Lincolnshire Council,http://statistics.data.gov.uk/id/local-authority/00FC,Children & Family Services,Commissioning Pships & Perform,School Access Govrn Stdnt Serv,Private Contractors,Concessionary Fares,PK01,17/02/2011,3022031,REDACTED COMMERCIALLY SENSITIVE INFORMATION,Revenue,REVELLS TAXIS (ED/SOC SERV),2045
North East Lincolnshire Council,http://statistics.data.gov.uk/id/local-authority/00FC,Children & Family Services,Commissioning Pships & Perform,School Access Govrn Stdnt Serv,Contract Hire/Operating Leases,Cont Veh Sen School,GN08,15/02/2011,3021134,REDACTED COMMERCIALLY SENSITIVE INFORMATION,Revenue,MINICABS CLEETHORPES (LINCS) LTD,172873
North East Lincolnshire Council,http://statistics.data.gov.uk/id/local-authority/00FC,Children & Family Services,Commissioning Pships & Perform,School Access Govrn Stdnt Serv,Contract Hire/Operating Leases,Cont Veh Sen School,GN08,10/02/2011,3018389,REDACTED COMMERCIALLY SENSITIVE INFORMATION,Revenue,LINKS TAXIS,1524
North East Lincolnshire Council,http://statistics.data.gov.uk/id/local-authority/00FC,Children & Family Services,Commissioning Pships & Perform,School Access Govrn Stdnt Serv,Private Contractors,Concessionary Fares,PK01,10/02/2011,3018389,REDACTED COMMERCIALLY SENSITIVE INFORMATION,Revenue,LINKS TAXIS,1524
North East Lincolnshire Council,http://statistics.data.gov.uk/id/local-authority/00FC,Children & Family Services,Commissioning Pships & Perform,School Access Govrn Stdnt Serv,Contract Hire/Operating Leases,Cont Veh Sen School,GN08,10/02/2011,3018323,REDACTED COMMERCIALLY SENSITIVE INFORMATION,Revenue,WHEELCHAIR FRIENDLY TAXI SERVICE,168857
North East Lincolnshire Council,http://statistics.data.gov.uk/id/local-authority/00FC,Children & Family Services,Commissioning Pships & Perform,School Access Govrn Stdnt Serv,Contract Hire/Operating Leases,Cont Veh Sen School,GN08,10/02/2011,3018488,REDACTED COMMERCIALLY SENSITIVE INFORMATION,Revenue,LINKS TAXIS,1524
North East Lincolnshire Council,http://statistics.data.gov.uk/id/local-authority/00FC,Children & Family Services,Commissioning Pships & Perform,School Access Govrn Stdnt Serv,Contract Hire/Operating Leases,Cont Veh Sen School,GN08,15/02/2011,3021116,REDACTED COMMERCIALLY SENSITIVE INFORMATION,Revenue,LINKS TAXIS,1524
North East Lincolnshire Council,http://statistics.data.gov.uk/id/local-authority/00FC,Children & Family Services,Commissioning Pships & Perform,School Access Govrn Stdnt Serv,Contract Hire/Operating Leases,Cont Veh Sen School,GN08,10/02/2011,3018387,REDACTED COMMERCIALLY SENSITIVE INFORMATION,Revenue,LINKS TAXIS,1524
North East Lincolnshire Council,http://statistics.data.gov.uk/id/local-authority/00FC,Children & Family Services,Commissioning Pships & Perform,School Access Govrn Stdnt Serv,Contract Hire/Operating Leases,Cont Veh Sen School,GN08,10/02/2011,3018346,REDACTED COMMERCIALLY SENSITIVE INFORMATION,Revenue,MINICABS CLEETHORPES (LINCS) LTD,172873
North East Lincolnshire Council,http://statistics.data.gov.uk/id/local-authority/00FC,Children & Family Services,Commissioning Pships & Perform,School Access Govrn Stdnt Serv,Contract Hire/Operating Leases,Cont Veh Sen School,GN08,10/02/2011,3018396,REDACTED COMMERCIALLY SENSITIVE INFORMATION,Revenue,LINKS TAXIS,1524
North East Lincolnshire Council,http://statistics.data.gov.uk/id/local-authority/00FC,Children & Family Services,Commissioning Pships & Perform,School Access Govrn Stdnt Serv,Contract Hire/Operating Leases,Cont Veh Sen School,GN08,15/02/2011,3021117,REDACTED COMMERCIALLY SENSITIVE INFORMATION,Revenue,LINKS TAXIS,1524
North East Lincolnshire Council,http://statistics.data.gov.uk/id/local-authority/00FC,Children & Family Services,Commissioning Pships & Perform,School Access Govrn Stdnt Serv,Contract Hire/Operating Leases,Cont Veh Sen School,GN08,10/02/2011,3018321,REDACTED COMMERCIALLY SENSITIVE INFORMATION,Revenue,TREV'S MINIBUS,114758
North East Lincolnshire Council,http://statistics.data.gov.uk/id/local-authority/00FC,Children & Family Services,Commissioning Pships & Perform,School Access Govrn Stdnt Serv,Contract Hire/Operating Leases,Cont Veh Sen School,GN08,10/02/2011,3018453,REDACTED COMMERCIALLY SENSITIVE INFORMATION,Revenue,AMVALE LIMITED,106463
North East Lincolnshire Council,http://statistics.data.gov.uk/id/local-authority/00FC,Children & Family Services,Commissioning Pships & Perform,School Access Govrn Stdnt Serv,Contract Hire/Operating Leases,Cont Veh Sen School,GN08,08/02/2011,3017139,REDACTED COMMERCIALLY SENSITIVE INFORMATION,Revenue,HUXMANOR LTD,150193
North East Lincolnshire Council,http://statistics.data.gov.uk/id/local-authority/00FC,Children & Family Services,Commissioning Pships & Perform,School Access Govrn Stdnt Serv,Contract Hire/Operating Leases,Cont Veh Sen School,GN08,08/02/2011,3017143,REDACTED COMMERCIALLY SENSITIVE INFORMATION,Revenue,CABBYCARS,73521
North East Lincolnshire Council,http://statistics.data.gov.uk/id/local-authority/00FC,Children & Family Services,Commissioning Pships & Perform,School Access Govrn Stdnt Serv,Contract Hire/Operating Leases,Cont Veh Sen School,GN08,10/02/2011,3018338,REDACTED COMMERCIALLY SENSITIVE INFORMATION,Revenue,REDACTED PERSONAL DATA,REDACTED PERSONAL DATA
North East Lincolnshire Council,http://statistics.data.gov.uk/id/local-authority/00FC,Children & Family Services,Commissioning Pships & Perform,School Access Govrn Stdnt Serv,Contract Hire/Operating Leases,Cont Veh Sen School,GN08,08/02/2011,3017140,REDACTED COMMERCIALLY SENSITIVE INFORMATION,Revenue,HUXMANOR LTD,150193
North East Lincolnshire Council,http://statistics.data.gov.uk/id/local-authority/00FC,Children & Family Services,Commissioning Pships & Perform,School Access Govrn Stdnt Serv,Contract Hire/Operating Leases,Cont Veh Sen School,GN08,15/02/2011,3021104,REDACTED COMMERCIALLY SENSITIVE INFORMATION,Revenue,LINKS TAXIS,1524
North East Lincolnshire Council,http://statistics.data.gov.uk/id/local-authority/00FC,Children & Family Services,Commissioning Pships & Perform,School Access Govrn Stdnt Serv,Contract Hire/Operating Leases,Cont Veh Sen School,GN08,10/02/2011,3018449,REDACTED COMMERCIALLY SENSITIVE INFORMATION,Revenue,AMVALE LIMITED,106463
North East Lincolnshire Council,http://statistics.data.gov.uk/id/local-authority/00FC,Children & Family Services,Commissioning Pships & Perform,School Access Govrn Stdnt Serv,Contract Hire/Operating Leases,Cont Veh Sen School,GN08,10/02/2011,3018451,REDACTED COMMERCIALLY SENSITIVE INFORMATION,Revenue,AMVALE LIMITED,106463
North East Lincolnshire Council,http://statistics.data.gov.uk/id/local-authority/00FC,Children & Family Services,Commissioning Pships & Perform,School Access Govrn Stdnt Serv,Contract Hire/Operating Leases,Cont Vehicle Sen Alone Travel,GN13,10/02/2011,3018390,REDACTED COMMERCIALLY SENSITIVE INFORMATION,Revenue,LINKS TAXIS,1524
North East Lincolnshire Council,http://statistics.data.gov.uk/id/local-authority/00FC,Children & Family Services,Commissioning Pships & Perform,School Access Govrn Stdnt Serv,Contract Hire/Operating Leases,Cont Veh Sen School,GN08,10/02/2011,3018402,REDACTED COMMERCIALLY SENSITIVE INFORMATION,Revenue,LINKS TAXIS,1524
North East Lincolnshire Council,http://statistics.data.gov.uk/id/local-authority/00FC,Children & Family Services,Commissioning Pships & Perform,School Access Govrn Stdnt Serv,Contract Hire/Operating Leases,Cont Veh Sen School,GN08,10/02/2011,3018438,REDACTED COMMERCIALLY SENSITIVE INFORMATION,Revenue,MILLMAN COACHES,41357
North East Lincolnshire Council,http://statistics.data.gov.uk/id/local-authority/00FC,Children & Family Services,Commissioning Pships & Perform,School Access Govrn Stdnt Serv,Contract Hire/Operating Leases,Cont Veh Sen School,GN08,10/02/2011,3018439,REDACTED COMMERCIALLY SENSITIVE INFORMATION,Revenue,MILLMAN COACHES,41357
North East Lincolnshire Council,http://statistics.data.gov.uk/id/local-authority/00FC,Children & Family Services,Commissioning Pships & Perform,School Access Govrn Stdnt Serv,Contract Hire/Operating Leases,Cont Veh Sen School,GN08,10/02/2011,3018447,REDACTED COMMERCIALLY SENSITIVE INFORMATION,Revenue,AMVALE LIMITED,106463
North East Lincolnshire Council,http://statistics.data.gov.uk/id/local-authority/00FC,Children & Family Services,Commissioning Pships & Perform,School Access Govrn Stdnt Serv,Contract Hire/Operating Leases,Cont Veh Sen School,GN08,10/02/2011,3018448,REDACTED COMMERCIALLY SENSITIVE INFORMATION,Revenue,AMVALE LIMITED,106463
North East Lincolnshire Council,http://statistics.data.gov.uk/id/local-authority/00FC,Children & Family Services,Commissioning Pships & Perform,School Access Govrn Stdnt Serv,Contract Hire/Operating Leases,Cont Veh Sen School,GN08,18/02/2011,3023402,REDACTED COMMERCIALLY SENSITIVE INFORMATION,Revenue,SHERWOOD TRAVEL,75983
North East Lincolnshire Council,http://statistics.data.gov.uk/id/local-authority/00FC,Children & Family Services,Commissioning Pships & Perform,Strategic Management,Miscellaneous Expenses,Other Expenses General,NZ01,14/02/2011,3020232,851.06,Revenue,S & S LEISURE LTD,101811
North East Lincolnshire Council,http://statistics.data.gov.uk/id/local-authority/00FC,Children & Family Services,Commissioning Pships & Perform,Strategic Management,Miscellaneous Expenses,Other Expenses General,NZ01,14/02/2011,3020144,"13,169.20",Revenue,BARBARA HUGHES LIMITED,176129
North East Lincolnshire Council,http://statistics.data.gov.uk/id/local-authority/00FC,Children & Family Services,Commissioning Pships & Perform,Strategic Management,Indirect Employee Expenses,Train Basic Skill - Course Fee,BX01,21/02/2011,3023948,782.58,Revenue,NATIONAL CHILDREN'S BUREAU,76884
North East Lincolnshire Council,http://statistics.data.gov.uk/id/local-authority/00FC,Children & Family Services,Commissioning Pships & Perform,Strategic Management,Direct Employee Expenses,Pay Admin & Clerical (General),AA02,15/02/2011,3021131,"9,144.10",Revenue,ESCRICK EDUCATION ASSOCIATES,181016
North East Lincolnshire Council,http://statistics.data.gov.uk/id/local-authority/00FC,Children & Family Services,Commissioning Pships & Perform,Additional & Enhanced Needs,Contributions To Provisions,Contributions To Funds,NV01,11/02/2011,3019048,942.12,Revenue,DSG RETAIL LTD,165311
North East Lincolnshire Council,http://statistics.data.gov.uk/id/local-authority/00FC,Children & Family Services,Commissioning Pships & Perform,Additional & Enhanced Needs,Consultants,Consult Work Consult+Special,PG01,11/02/2011,3019170,"1,973.04",Revenue,REDACTED PERSONAL DATA,REDACTED PERSONAL DATA
North East Lincolnshire Council,http://statistics.data.gov.uk/id/local-authority/00FC,Children & Family Services,Commissioning Pships & Perform,Commissioning & Performance,Equipment/Furniture/Materials,Off Equip Photocop Rent/Copies,HN71,09/02/2011,3017929,751.43,Revenue,UNITED CARLTON OFFICE SYSTEMS LTD,161525
North East Lincolnshire Council,http://statistics.data.gov.uk/id/local-authority/00FC,Children & Family Services,Childrens Health & Famly Serv,Int Local Service Delivery,Other Agencies,Agen Serv Priv Gp Private Prov,PQ01,28/02/2011,3028017,"1,033.20",Revenue,HAVEN METHODIST PRE-SCHOOL,175445
North East Lincolnshire Council,http://statistics.data.gov.uk/id/local-authority/00FC,Children & Family Services,Childrens Health & Famly Serv,Int Local Service Delivery,Other Agencies,Agen Serv Priv Gp Private Prov,PQ01,28/02/2011,3027979,"1,102.08",Revenue,FOR UNDER FIVES LTD,35461
North East Lincolnshire Council,http://statistics.data.gov.uk/id/local-authority/00FC,Children & Family Services,Childrens Health & Famly Serv,Int Local Service Delivery,Communication & Computing,Comp Equip Purchases,HK01,17/02/2011,3022387,"1,150.00",Revenue,SEQUOIA TECHNOLOGY LTD,170836
North East Lincolnshire Council,http://statistics.data.gov.uk/id/local-authority/00FC,Children & Family Services,Childrens Health & Famly Serv,Int Local Service Delivery,Communication & Computing,Comp Equip Purchases,HK01,17/02/2011,3022387,"1,150.00",Revenue,SEQUOIA TECHNOLOGY LTD,170836
North East Lincolnshire Council,http://statistics.data.gov.uk/id/local-authority/00FC,Children & Family Services,Childrens Health & Famly Serv,Int Local Service Delivery,Communication & Computing,Comp Equip Purchases,HK01,17/02/2011,3022387,"1,150.00",Revenue,SEQUOIA TECHNOLOGY LTD,170836
North East Lincolnshire Council,http://statistics.data.gov.uk/id/local-authority/00FC,Children & Family Services,Childrens Health & Famly Serv,Int Local Service Delivery,Other Agencies,Agen Serv Priv Gp Private Prov,PQ01,04/02/2011,3014710,"1,535.04",Revenue,REDACTED PERSONAL DATA,REDACTED PERSONAL DATA
North East Lincolnshire Council,http://statistics.data.gov.uk/id/local-authority/00FC,Children & Family Services,Childrens Health & Famly Serv,Int Local Service Delivery,Other Agencies,Agen Serv Priv Gp Private Prov,PQ01,28/02/2011,3027973,"1,574.40",Revenue,LITTLE LEGS DAYCARE,164417
North East Lincolnshire Council,http://statistics.data.gov.uk/id/local-authority/00FC,Children & Family Services,Childrens Health & Famly Serv,Int Local Service Delivery,Other Agencies,Agen Serv Priv Gp Private Prov,PQ01,28/02/2011,3028004,"1,692.48",Revenue,EAST RAVENDALE PRE SCHOOL,85911
North East Lincolnshire Council,http://statistics.data.gov.uk/id/local-authority/00FC,Children & Family Services,Childrens Health & Famly Serv,Int Local Service Delivery,Other Agencies,Agen Serv Priv Gp Private Prov,PQ01,28/02/2011,3027977,"1,736.76",Revenue,READY TEDDY GO,89097
North East Lincolnshire Council,http://statistics.data.gov.uk/id/local-authority/00FC,Children & Family Services,Childrens Health & Famly Serv,Int Local Service Delivery,Other Agencies,Agen Serv Priv Gp Private Prov,PQ01,28/02/2011,3027969,"2,420.64",Revenue,LITTLE BLOSSOMS DAY NURSERY,165834
North East Lincolnshire Council,http://statistics.data.gov.uk/id/local-authority/00FC,Children & Family Services,Childrens Health & Famly Serv,Int Local Service Delivery,Other Agencies,Agen Serv Priv Gp Private Prov,PQ01,28/02/2011,3028012,"2,538.72",Revenue,FOR UNDER FIVES LTD,35461
North East Lincolnshire Council,http://statistics.data.gov.uk/id/local-authority/00FC,Children & Family Services,Childrens Health & Famly Serv,Int Local Service Delivery,Other Agencies,Agen Serv Priv Gp Private Prov,PQ01,28/02/2011,3027983,"3,276.72",Revenue,ST PETERS CHILDREN CENTRE,138853
North East Lincolnshire Council,http://statistics.data.gov.uk/id/local-authority/00FC,Children & Family Services,Childrens Health & Famly Serv,Int Local Service Delivery,Other Agencies,Agen Serv Priv Gp Private Prov,PQ01,28/02/2011,3028007,"3,345.60",Revenue,FIRST STEPS GRIMSBY LIMITED,147040
North East Lincolnshire Council,http://statistics.data.gov.uk/id/local-authority/00FC,Children & Family Services,Childrens Health & Famly Serv,Int Local Service Delivery,Other Agencies,Agen Serv Priv Gp Private Prov,PQ01,28/02/2011,3028009,"3,345.60",Revenue,FOR UNDER FIVES LTD,35461
North East Lincolnshire Council,http://statistics.data.gov.uk/id/local-authority/00FC,Children & Family Services,Childrens Health & Famly Serv,Int Local Service Delivery,Other Agencies,Agen Serv Priv Gp Private Prov,PQ01,28/02/2011,3028028,"3,365.28",Revenue,CHAPPILLS DAY NURSERY,100800
North East Lincolnshire Council,http://statistics.data.gov.uk/id/local-authority/00FC,Children & Family Services,Childrens Health & Famly Serv,Int Local Service Delivery,Other Agencies,Agen Serv Priv Gp Private Prov,PQ01,28/02/2011,3027986,"3,749.04",Revenue,WENDOVER PRE-SCHOOL,141650
North East Lincolnshire Council,http://statistics.data.gov.uk/id/local-authority/00FC,Children & Family Services,Childrens Health & Famly Serv,Int Local Service Delivery,Other Agencies,Agen Serv Priv Gp Private Prov,PQ01,28/02/2011,3027984,"4,152.48",Revenue,THE CHILDRENS HOUSE,120224
North East Lincolnshire Council,http://statistics.data.gov.uk/id/local-authority/00FC,Children & Family Services,Childrens Health & Famly Serv,Int Local Service Delivery,Other Agencies,Agen Serv Priv Gp Private Prov,PQ01,28/02/2011,3027974,"4,585.44",Revenue,GRIMSBY INSTITUTE FOR FHE,161404
North East Lincolnshire Council,http://statistics.data.gov.uk/id/local-authority/00FC,Children & Family Services,Childrens Health & Famly Serv,Int Local Service Delivery,Other Agencies,Agen Serv Priv Gp Private Prov,PQ01,28/02/2011,3027968,"4,664.16",Revenue,JUDY CLARK PLAYGROUP,85859
North East Lincolnshire Council,http://statistics.data.gov.uk/id/local-authority/00FC,Children & Family Services,Childrens Health & Famly Serv,Int Local Service Delivery,Other Agencies,Agen Serv Priv Gp Private Prov,PQ01,28/02/2011,3027981,"4,693.68",Revenue,ST MARGARETS PRE-SCHOOL,163619
North East Lincolnshire Council,http://statistics.data.gov.uk/id/local-authority/00FC,Children & Family Services,Childrens Health & Famly Serv,Int Local Service Delivery,Other Agencies,Agen Serv Priv Gp Private Prov,PQ01,28/02/2011,3028020,"4,993.80",Revenue,HEALING VILLAGE NURSERY,114730
North East Lincolnshire Council,http://statistics.data.gov.uk/id/local-authority/00FC,Children & Family Services,Childrens Health & Famly Serv,Int Local Service Delivery,Other Agencies,Agen Serv Priv Gp Private Prov,PQ01,28/02/2011,3028002,"5,195.52",Revenue,CLOVERFIELDS PRE SCHOOL,89090
North East Lincolnshire Council,http://statistics.data.gov.uk/id/local-authority/00FC,Children & Family Services,Childrens Health & Famly Serv,Int Local Service Delivery,Other Agencies,Agen Serv Priv Gp Private Prov,PQ01,28/02/2011,3027976,"5,746.56",Revenue,PRECIOUS TIMES CHILDCARE SERVICES,147302
North East Lincolnshire Council,http://statistics.data.gov.uk/id/local-authority/00FC,Children & Family Services,Childrens Health & Famly Serv,Int Local Service Delivery,Other Agencies,Agen Serv Priv Gp Private Prov,PQ01,28/02/2011,3028025,"5,907.28",Revenue,HUMBERSTON C E PRE SCHOOL,122343
North East Lincolnshire Council,http://statistics.data.gov.uk/id/local-authority/00FC,Children & Family Services,Childrens Health & Famly Serv,Int Local Service Delivery,Other Agencies,Agen Serv Priv Gp Private Prov,PQ01,28/02/2011,3027970,"6,199.20",Revenue,CLEETHORPES CHILDCARE,159467
North East Lincolnshire Council,http://statistics.data.gov.uk/id/local-authority/00FC,Children & Family Services,Childrens Health & Famly Serv,Int Local Service Delivery,Other Agencies,Agen Serv Priv Gp Private Prov,PQ01,28/02/2011,3027980,"6,248.40",Revenue,ST JAMES SCHOOL,85862
North East Lincolnshire Council,http://statistics.data.gov.uk/id/local-authority/00FC,Children & Family Services,Childrens Health & Famly Serv,Int Local Service Delivery,Other Agencies,Agen Serv Priv Gp Private Prov,PQ01,28/02/2011,3027975,"6,656.76",Revenue,NEW WALTHAM TRACKERS PLAYGROUP,89096
North East Lincolnshire Council,http://statistics.data.gov.uk/id/local-authority/00FC,Children & Family Services,Childrens Health & Famly Serv,Int Local Service Delivery,Other Agencies,Agen Serv Priv Gp Private Prov,PQ01,28/02/2011,3027993,"7,527.60",Revenue,WELHOLME PRE SCHOOL,134002
North East Lincolnshire Council,http://statistics.data.gov.uk/id/local-authority/00FC,Children & Family Services,Childrens Health & Famly Serv,Int Local Service Delivery,Other Agencies,Agen Serv Priv Gp Private Prov,PQ01,28/02/2011,3027996,"11,099.52",Revenue,WALTHAM LEAS PRE SCHOOL,147304
North East Lincolnshire Council,http://statistics.data.gov.uk/id/local-authority/00FC,Children & Family Services,Childrens Health & Famly Serv,Int Local Service Delivery,Other Agencies,Agen Serv Priv Gp Private Prov,PQ01,28/02/2011,3027987,"11,542.32",Revenue,LISLE MARSDEN PRE-SCHOOL,151767
North East Lincolnshire Council,http://statistics.data.gov.uk/id/local-authority/00FC,Children & Family Services,Childrens Health & Famly Serv,Int Local Service Delivery,Other Agencies,Agen Serv Priv Gp Private Prov,PQ01,28/02/2011,3027971,"15,142.80",Revenue,CLEETHORPES CHILDCARE,159467
North East Lincolnshire Council,http://statistics.data.gov.uk/id/local-authority/00FC,Children & Family Services,Childrens Health & Famly Serv,Int Local Service Delivery,Other Agencies,Agen Serv Priv Gp Private Prov,PQ01,28/02/2011,3027989,"21,411.84",Revenue,ST MARTINS PREPARATORY SCHOOL,79441
North East Lincolnshire Council,http://statistics.data.gov.uk/id/local-authority/00FC,Children & Family Services,Childrens Health & Famly Serv,Int Local Service Delivery,Equipment/Furniture/Materials,Equip Purchases,HC01,25/02/2011,3027363,-74.85,Revenue,SPECIALITY LINENS,172439
North East Lincolnshire Council,http://statistics.data.gov.uk/id/local-authority/00FC,Children & Family Services,Childrens Health & Famly Serv,Int Local Service Delivery,Contributions To Provisions,Contributions To Funds,NV01,14/02/2011,3020198,677.16,Revenue,PUPPETS FOR EDUCATION,174556
North East Lincolnshire Council,http://statistics.data.gov.uk/id/local-authority/00FC,Children & Family Services,Childrens Health & Famly Serv,Int Local Service Delivery,Contributions To Provisions,Contributions To Funds,NV01,24/02/2011,3026192,900.00,Revenue,JUDY CLARK PLAYGROUP,85859
North East Lincolnshire Council,http://statistics.data.gov.uk/id/local-authority/00FC,Children & Family Services,Childrens Health & Famly Serv,Int Local Service Delivery,Printing Station & Gen Off Exp,Books Stat & Equip(Ed) Pchse,JN01,10/02/2011,3018174,918.96,Revenue,LYRECO UK LIMITED,117289
North East Lincolnshire Council,http://statistics.data.gov.uk/id/local-authority/00FC,Children & Family Services,Childrens Health & Famly Serv,Int Local Service Delivery,Equipment/Furniture/Materials,Off Equip Photocop Rent/Copies,HN71,24/02/2011,3026040,"1,037.79",Revenue,UNITED CARLTON OFFICE SYSTEMS LTD,161525
North East Lincolnshire Council,http://statistics.data.gov.uk/id/local-authority/00FC,Children & Family Services,Childrens Health & Famly Serv,Int Local Service Delivery,Direct Employee Expenses,Pay Employment Agency Staff,AA53,14/02/2011,3020195,"1,091.46",Revenue,ESP LTD,132218
North East Lincolnshire Council,http://statistics.data.gov.uk/id/local-authority/00FC,Children & Family Services,Childrens Health & Famly Serv,Int Local Service Delivery,Contributions To Provisions,Contributions To Funds,NV01,24/02/2011,3026185,"1,170.00",Revenue,ST MARGARETS PRE SCHOOL,129435
North East Lincolnshire Council,http://statistics.data.gov.uk/id/local-authority/00FC,Children & Family Services,Childrens Health & Famly Serv,Int Local Service Delivery,Direct Employee Expenses,Pay Employment Agency Staff,AA53,16/02/2011,3021614,"1,305.78",Revenue,ESP LTD,132218
North East Lincolnshire Council,http://statistics.data.gov.uk/id/local-authority/00FC,Children & Family Services,Childrens Health & Famly Serv,Int Local Service Delivery,Direct Employee Expenses,Pay Employment Agency Staff,AA53,24/02/2011,3026037,"1,505.21",Revenue,ESP LTD,132218
North East Lincolnshire Council,http://statistics.data.gov.uk/id/local-authority/00FC,Children & Family Services,Childrens Health & Famly Serv,Int Local Service Delivery,Direct Employee Expenses,Pay Employment Agency Staff,AA53,08/02/2011,3017473,"1,582.56",Revenue,ESP LTD,132218
North East Lincolnshire Council,http://statistics.data.gov.uk/id/local-authority/00FC,Children & Family Services,Childrens Health & Famly Serv,Int Local Service Delivery,Indirect Employee Expenses,Train Basic Skill - Course Fee,BX01,08/02/2011,3017372,"1,635.00",Revenue,MANATEC LTD,171662
North East Lincolnshire Council,http://statistics.data.gov.uk/id/local-authority/00FC,Children & Family Services,Childrens Health & Famly Serv,Int Local Service Delivery,Contributions To Provisions,Contributions To Funds,NV01,28/02/2011,3027897,"2,000.00",Revenue,CLEETHORPES CHILDCARE,159467
North East Lincolnshire Council,http://statistics.data.gov.uk/id/local-authority/00FC,Children & Family Services,Childrens Health & Famly Serv,Int Local Service Delivery,Contributions To Provisions,Contributions To Funds,NV01,28/02/2011,3027814,"2,000.00",Revenue,FIRST STEPS GRIMSBY LIMITED,147040
North East Lincolnshire Council,http://statistics.data.gov.uk/id/local-authority/00FC,Children & Family Services,Childrens Health & Famly Serv,Int Local Service Delivery,Contributions To Provisions,Contributions To Funds,NV01,28/02/2011,3027816,"2,000.00",Revenue,FIRST STEPS GRIMSBY LIMITED,147040
North East Lincolnshire Council,http://statistics.data.gov.uk/id/local-authority/00FC,Children & Family Services,Childrens Health & Famly Serv,Int Local Service Delivery,Contributions To Provisions,Contributions To Funds,NV01,28/02/2011,3027818,"2,000.00",Revenue,FOR UNDER FIVES LTD,165361
North East Lincolnshire Council,http://statistics.data.gov.uk/id/local-authority/00FC,Children & Family Services,Childrens Health & Famly Serv,Int Local Service Delivery,Contributions To Provisions,Contributions To Funds,NV01,28/02/2011,3027820,"2,000.00",Revenue,BUTTERFLIES DAY NURSERY,162921
North East Lincolnshire Council,http://statistics.data.gov.uk/id/local-authority/00FC,Children & Family Services,Childrens Health & Famly Serv,Int Local Service Delivery,Contributions To Provisions,Contributions To Funds,NV01,28/02/2011,3027822,"2,000.00",Revenue,FOR UNDER FIVES,169461
North East Lincolnshire Council,http://statistics.data.gov.uk/id/local-authority/00FC,Children & Family Services,Childrens Health & Famly Serv,Int Local Service Delivery,Contributions To Provisions,Contributions To Funds,NV01,28/02/2011,3027825,"2,000.00",Revenue,CLOVERFIELDS PRE SCHOOL,89090
North East Lincolnshire Council,http://statistics.data.gov.uk/id/local-authority/00FC,Children & Family Services,Childrens Health & Famly Serv,Int Local Service Delivery,Contributions To Provisions,Contributions To Funds,NV01,28/02/2011,3028322,"2,000.00",Revenue,FOR UNDER FIVES LTD,35461
North East Lincolnshire Council,http://statistics.data.gov.uk/id/local-authority/00FC,Children & Family Services,Childrens Health & Famly Serv,Int Local Service Delivery,Contributions To Provisions,Contributions To Funds,NV01,28/02/2011,3027832,"2,000.00",Revenue,FOR UNDER FIVES,72722
North East Lincolnshire Council,http://statistics.data.gov.uk/id/local-authority/00FC,Children & Family Services,Childrens Health & Famly Serv,Int Local Service Delivery,Contributions To Provisions,Contributions To Funds,NV01,28/02/2011,3027836,"2,000.00",Revenue,HAVEN METHODIST PRE-SCHOOL,175445
North East Lincolnshire Council,http://statistics.data.gov.uk/id/local-authority/00FC,Children & Family Services,Childrens Health & Famly Serv,Int Local Service Delivery,Contributions To Provisions,Contributions To Funds,NV01,28/02/2011,3027835,"2,000.00",Revenue,HEALING VILLAGE NURSERY,114730
North East Lincolnshire Council,http://statistics.data.gov.uk/id/local-authority/00FC,Children & Family Services,Childrens Health & Famly Serv,Int Local Service Delivery,Contributions To Provisions,Contributions To Funds,NV01,28/02/2011,3027953,"2,000.00",Revenue,HUMBERSTON C E PRE SCHOOL,122343
North East Lincolnshire Council,http://statistics.data.gov.uk/id/local-authority/00FC,Children & Family Services,Childrens Health & Famly Serv,Int Local Service Delivery,Contributions To Provisions,Contributions To Funds,NV01,28/02/2011,3027823,"2,000.00",Revenue,CHAPPILLS DAY NURSERY,100800
North East Lincolnshire Council,http://statistics.data.gov.uk/id/local-authority/00FC,Children & Family Services,Childrens Health & Famly Serv,Int Local Service Delivery,Contributions To Provisions,Contributions To Funds,NV01,28/02/2011,3027799,"2,000.00",Revenue,JUDY CLARK PLAYGROUP,85859
North East Lincolnshire Council,http://statistics.data.gov.uk/id/local-authority/00FC,Children & Family Services,Childrens Health & Famly Serv,Int Local Service Delivery,Contributions To Provisions,Contributions To Funds,NV01,28/02/2011,3027801,"2,000.00",Revenue,LISLE MARSDEN PRE-SCHOOL,151767
North East Lincolnshire Council,http://statistics.data.gov.uk/id/local-authority/00FC,Children & Family Services,Childrens Health & Famly Serv,Int Local Service Delivery,Contributions To Provisions,Contributions To Funds,NV01,28/02/2011,3027803,"2,000.00",Revenue,LITTLE BLOSSOMS DAY NURSERY,165834
North East Lincolnshire Council,http://statistics.data.gov.uk/id/local-authority/00FC,Children & Family Services,Childrens Health & Famly Serv,Int Local Service Delivery,Contributions To Provisions,Contributions To Funds,NV01,28/02/2011,3027907,"2,000.00",Revenue,CLEETHORPES CHILDCARE,159467
North East Lincolnshire Council,http://statistics.data.gov.uk/id/local-authority/00FC,Children & Family Services,Childrens Health & Famly Serv,Int Local Service Delivery,Contributions To Provisions,Contributions To Funds,NV01,28/02/2011,3027805,"2,000.00",Revenue,LITTLE LEGS DAYCARE,164417
North East Lincolnshire Council,http://statistics.data.gov.uk/id/local-authority/00FC,Children & Family Services,Childrens Health & Famly Serv,Int Local Service Delivery,Contributions To Provisions,Contributions To Funds,NV01,28/02/2011,3027807,"2,000.00",Revenue,GRIMSBY INSTITUTE FOR FHE,161404
North East Lincolnshire Council,http://statistics.data.gov.uk/id/local-authority/00FC,Children & Family Services,Childrens Health & Famly Serv,Int Local Service Delivery,Contributions To Provisions,Contributions To Funds,NV01,28/02/2011,3027914,"2,000.00",Revenue,CLEETHORPES CHILDCARE,159467
North East Lincolnshire Council,http://statistics.data.gov.uk/id/local-authority/00FC,Children & Family Services,Childrens Health & Famly Serv,Int Local Service Delivery,Contributions To Provisions,Contributions To Funds,NV01,28/02/2011,3027882,"2,000.00",Revenue,PRECIOUS TIMES CHILDCARE SERVICES,147302
North East Lincolnshire Council,http://statistics.data.gov.uk/id/local-authority/00FC,Children & Family Services,Childrens Health & Famly Serv,Int Local Service Delivery,Contributions To Provisions,Contributions To Funds,NV01,28/02/2011,3027810,"2,000.00",Revenue,FOR UNDER FIVES (QUEENSWAY),178665
North East Lincolnshire Council,http://statistics.data.gov.uk/id/local-authority/00FC,Children & Family Services,Childrens Health & Famly Serv,Int Local Service Delivery,Contributions To Provisions,Contributions To Funds,NV01,28/02/2011,3027885,"2,000.00",Revenue,PRECIOUS TIMES CHILDCARE SERVICES,147302
North East Lincolnshire Council,http://statistics.data.gov.uk/id/local-authority/00FC,Children & Family Services,Childrens Health & Famly Serv,Int Local Service Delivery,Contributions To Provisions,Contributions To Funds,NV01,28/02/2011,3027812,"2,000.00",Revenue,READY TEDDY GO,89097
North East Lincolnshire Council,http://statistics.data.gov.uk/id/local-authority/00FC,Children & Family Services,Childrens Health & Famly Serv,Int Local Service Delivery,Contributions To Provisions,Contributions To Funds,NV01,28/02/2011,3027924,"2,000.00",Revenue,FOR UNDER FIVES LTD,35461
North East Lincolnshire Council,http://statistics.data.gov.uk/id/local-authority/00FC,Children & Family Services,Childrens Health & Famly Serv,Int Local Service Delivery,Contributions To Provisions,Contributions To Funds,NV01,28/02/2011,3027927,"2,000.00",Revenue,ST JAMES SCHOOL,85862
North East Lincolnshire Council,http://statistics.data.gov.uk/id/local-authority/00FC,Children & Family Services,Childrens Health & Famly Serv,Int Local Service Delivery,Contributions To Provisions,Contributions To Funds,NV01,28/02/2011,3027929,"2,000.00",Revenue,ST MARGARETS PRE-SCHOOL,163619
North East Lincolnshire Council,http://statistics.data.gov.uk/id/local-authority/00FC,Children & Family Services,Childrens Health & Famly Serv,Int Local Service Delivery,Contributions To Provisions,Contributions To Funds,NV01,28/02/2011,3027933,"2,000.00",Revenue,ST PETERS CHILDREN CENTRE,138853
North East Lincolnshire Council,http://statistics.data.gov.uk/id/local-authority/00FC,Children & Family Services,Childrens Health & Famly Serv,Int Local Service Delivery,Contributions To Provisions,Contributions To Funds,NV01,28/02/2011,3027935,"2,000.00",Revenue,THE CHILDRENS HOUSE,120224
North East Lincolnshire Council,http://statistics.data.gov.uk/id/local-authority/00FC,Children & Family Services,Childrens Health & Famly Serv,Int Local Service Delivery,Contributions To Provisions,Contributions To Funds,NV01,28/02/2011,3027808,"2,000.00",Revenue,NEW WALTHAM TRACKERS PLAYGROUP,89096
North East Lincolnshire Council,http://statistics.data.gov.uk/id/local-authority/00FC,Children & Family Services,Childrens Health & Famly Serv,Int Local Service Delivery,Contributions To Provisions,Contributions To Funds,NV01,28/02/2011,3027938,"2,000.00",Revenue,WALTHAM LEAS PRE SCHOOL,147304
North East Lincolnshire Council,http://statistics.data.gov.uk/id/local-authority/00FC,Children & Family Services,Childrens Health & Famly Serv,Int Local Service Delivery,Contributions To Provisions,Contributions To Funds,NV01,28/02/2011,3027941,"2,000.00",Revenue,WENDOVER PRE-SCHOOL,141650
North East Lincolnshire Council,http://statistics.data.gov.uk/id/local-authority/00FC,Children & Family Services,Childrens Health & Famly Serv,Int Local Service Delivery,Contributions To Provisions,Contributions To Funds,NV01,28/02/2011,3027950,"2,000.00",Revenue,WIZ KIDZ,177450
North East Lincolnshire Council,http://statistics.data.gov.uk/id/local-authority/00FC,Children & Family Services,Childrens Health & Famly Serv,Int Local Service Delivery,Contributions To Provisions,Contributions To Funds,NV01,28/02/2011,3027956,"2,000.00",Revenue,HUMBERSTON VILLAGE NURSERY,170820
North East Lincolnshire Council,http://statistics.data.gov.uk/id/local-authority/00FC,Children & Family Services,Childrens Health & Famly Serv,Int Local Service Delivery,Private Contractors,Outside Contractors,QH01,14/02/2011,3019673,"2,167.27",Revenue,FOR UNDER FIVES LTD,35461
North East Lincolnshire Council,http://statistics.data.gov.uk/id/local-authority/00FC,Children & Family Services,Childrens Health & Famly Serv,Int Local Service Delivery,Private Contractors,Outside Contractors,QH01,14/02/2011,3019674,"2,167.27",Revenue,FOR UNDER FIVES LTD,35461
North East Lincolnshire Council,http://statistics.data.gov.uk/id/local-authority/00FC,Children & Family Services,Childrens Health & Famly Serv,Int Local Service Delivery,Private Contractors,Outside Contractors,QH01,17/02/2011,3022420,"6,046.46",Revenue,FOR UNDER FIVES LTD,35461
North East Lincolnshire Council,http://statistics.data.gov.uk/id/local-authority/00FC,Children & Family Services,Childrens Health & Famly Serv,Int Local Service Delivery,Consultants,Consult Work Consult+Special,PG01,10/02/2011,3018175,"10,728.00",Revenue,HEMPSALL CONSULTANCIES LTD,180755
North East Lincolnshire Council,http://statistics.data.gov.uk/id/local-authority/00FC,Children & Family Services,Childrens Health & Famly Serv,Childrens Centre Development,Energy Costs,Gas,FA01,14/02/2011,3020225,"1,028.74",Revenue,BRITISH GAS TRADING LTD,154726
North East Lincolnshire Council,http://statistics.data.gov.uk/id/local-authority/00FC,Children & Family Services,Childrens Health & Famly Serv,Childrens Centre Development,Repairs & Maintenance,R & M Build General,CA01,28/02/2011,3027682,"1,670.00",Revenue,HAITH'S HEATING LTD,140813
North East Lincolnshire Council,http://statistics.data.gov.uk/id/local-authority/00FC,Children & Family Services,Childrens Health & Famly Serv,Childrens Centre Development,Repairs & Maintenance,R & M Build General,CA01,28/02/2011,3027678,"4,834.00",Revenue,E S RUDKIN LTD,32386
North East Lincolnshire Council,http://statistics.data.gov.uk/id/local-authority/00FC,Children & Family Services,Childrens Health & Famly Serv,Childrens Centre Development,Cleaning & Domestic Supplies,Ocs General Cleaning,FQ01,17/02/2011,3022224,661.50,Revenue,EASY CLEANS,133387
North East Lincolnshire Council,http://statistics.data.gov.uk/id/local-authority/00FC,Children & Family Services,Childrens Health & Famly Serv,Childrens Centre Development,Repairs & Maintenance,R & M Build General,CA01,07/02/2011,3015769,669.11,Revenue,EXCELL ELECTRICAL CONTRACTORS,16811
North East Lincolnshire Council,http://statistics.data.gov.uk/id/local-authority/00FC,Children & Family Services,Childrens Health & Famly Serv,Childrens Centre Development,Cleaning & Domestic Supplies,Cleaning Materials General,FP01,17/02/2011,3022206,724.50,Revenue,EASY CLEANS,133387
North East Lincolnshire Council,http://statistics.data.gov.uk/id/local-authority/00FC,Children & Family Services,Childrens Health & Famly Serv,Childrens Centre Development,Cleaning & Domestic Supplies,Ocs General Cleaning,FQ01,16/02/2011,3021553,541.00,Revenue,EASY CLEANS,133387
North East Lincolnshire Council,http://statistics.data.gov.uk/id/local-authority/00FC,Children & Family Services,Childrens Health & Famly Serv,Childrens Centre Development,Repairs & Maintenance,R & M Build General,CA01,21/02/2011,3023751,879.00,Revenue,KES BUILDING MAINTENANCE LIMITED,43941
North East Lincolnshire Council,http://statistics.data.gov.uk/id/local-authority/00FC,Children & Family Services,Childrens Health & Famly Serv,Childrens Centre Development,Repairs & Maintenance,R & M Build General,CA01,21/02/2011,3023672,645.00,Revenue,NEWBY LEISURE LTD,131711
North East Lincolnshire Council,http://statistics.data.gov.uk/id/local-authority/00FC,Children & Family Services,Childrens Health & Famly Serv,Childrens Centre Development,Repairs & Maintenance,R & M Build General,CA01,21/02/2011,3023669,785.00,Revenue,NEWBY LEISURE LTD,131711
North East Lincolnshire Council,http://statistics.data.gov.uk/id/local-authority/00FC,Children & Family Services,Childrens Health & Famly Serv,Childrens Centre Development,Energy Costs,Heating Fuel Fuel Oil,FE01,04/02/2011,3014847,"1,050.41",Revenue,WATSON PETROLEUM LTD,141473
North East Lincolnshire Council,http://statistics.data.gov.uk/id/local-authority/00FC,Children & Family Services,Childrens Health & Famly Serv,Childrens Centre Development,Energy Costs,Heating Fuel Fuel Oil,FE01,24/02/2011,3026124,"1,059.08",Revenue,WATSON PETROLEUM LTD,141473
North East Lincolnshire Council,http://statistics.data.gov.uk/id/local-authority/00FC,Children & Family Services,Childrens Health & Famly Serv,Childrens Centre Development,Repairs & Maintenance,R & M Build General,CA01,11/02/2011,3018942,"2,002.00",Revenue,HAITH'S HEATING LTD,140813
North East Lincolnshire Council,http://statistics.data.gov.uk/id/local-authority/00FC,Children & Family Services,Childrens Health & Famly Serv,Childrens Centre Development,Repairs & Maintenance,R & M Build General,CA01,17/02/2011,3019108,570.00,Revenue,C & N DOOR SYSTEMS LTD,160733
North East Lincolnshire Council,http://statistics.data.gov.uk/id/local-authority/00FC,Children & Family Services,Childrens Health & Famly Serv,Childrens Centre Development,Energy Costs,Heating Fuel Fuel Oil,FE01,21/02/2011,3023753,"2,125.43",Revenue,WATSON PETROLEUM LTD,141473
North East Lincolnshire Council,http://statistics.data.gov.uk/id/local-authority/00FC,Children & Family Services,Childrens Health & Famly Serv,Childrens Centre Development,Energy Costs,Gas,FA01,16/02/2011,3021439,511.58,Revenue,BRITISH GAS TRADING LTD,154726
North East Lincolnshire Council,http://statistics.data.gov.uk/id/local-authority/00FC,Children & Family Services,Childrens Health & Famly Serv,Childrens Centre Development,Direct Employee Expenses,Pay Cleaners,AA52,10/02/2011,3018240,522.51,Revenue,LISLE MARSDEN PRIMARY SCHOOL,123131
North East Lincolnshire Council,http://statistics.data.gov.uk/id/local-authority/00FC,Children & Family Services,Childrens Health & Famly Serv,Int Local Service Delivery,Contributions To Provisions,Contributions To Funds,NV01,25/02/2011,3027368,-640.00,Revenue,SIGNHILLS PRE SCHOOL,141795
North East Lincolnshire Council,http://statistics.data.gov.uk/id/local-authority/00FC,Children & Family Services,Childrens Health & Famly Serv,Int Local Service Delivery,Contributions To Provisions,Contributions To Funds,NV01,16/02/2011,3021501,"1,500.00",Revenue,PRIMARY ACTION,177629
North East Lincolnshire Council,http://statistics.data.gov.uk/id/local-authority/00FC,Children & Family Services,Childrens Health & Famly Serv,Childrens Centre Development,Miscellaneous Expenses,Other Activities,MQ01,07/02/2011,3015549,514.56,Revenue,PRE SCHOOL LEARNING ALLIANCE,149980
North East Lincolnshire Council,http://statistics.data.gov.uk/id/local-authority/00FC,Children & Family Services,Childrens Health & Famly Serv,Childrens Centre Development,Printing Station & Gen Off Exp,Books Stat & Equip(Ed) Pchse,JN01,24/02/2011,3026195,595.95,Revenue,ROMPA INTERNATIONAL,44266
North East Lincolnshire Council,http://statistics.data.gov.uk/id/local-authority/00FC,Children & Family Services,Childrens Health & Famly Serv,Childrens Centre Development,Printing Station & Gen Off Exp,Print & Stat General,LA01,16/02/2011,3021541,602.25,Revenue,LYRECO UK LIMITED,117289
North East Lincolnshire Council,http://statistics.data.gov.uk/id/local-authority/00FC,Children & Family Services,Childrens Health & Famly Serv,Childrens Centre Development,Printing Station & Gen Off Exp,Postages,LE01,16/02/2011,3021541,640.00,Revenue,LYRECO UK LIMITED,117289
North East Lincolnshire Council,http://statistics.data.gov.uk/id/local-authority/00FC,Children & Family Services,Childrens Health & Famly Serv,Childrens Centre Development,Repairs & Maintenance,Internal Decoration,CD03,24/02/2011,3026197,644.23,Revenue,HUMBERSIDE SUNBLINDS LTD,74142
North East Lincolnshire Council,http://statistics.data.gov.uk/id/local-authority/00FC,Children & Family Services,Childrens Health & Famly Serv,Childrens Centre Development,Other Agencies,Child Care Payments,PM01,16/02/2011,3021550,967.00,Revenue,CHAPPILLS DAY NURSERY,100800
North East Lincolnshire Council,http://statistics.data.gov.uk/id/local-authority/00FC,Children & Family Services,Childrens Health & Famly Serv,Childrens Centre Development,Other Agencies,Child Care Payments,PM01,18/02/2011,3022513,"1,168.00",Revenue,CHAPPILLS DAY NURSERY,100800
North East Lincolnshire Council,http://statistics.data.gov.uk/id/local-authority/00FC,Children & Family Services,Childrens Health & Famly Serv,Childrens Centre Development,Other Agencies,Child Care Payments,PM01,16/02/2011,3021544,"1,886.00",Revenue,CHAPPILLS DAY NURSERY,100800
North East Lincolnshire Council,http://statistics.data.gov.uk/id/local-authority/00FC,Children & Family Services,Childrens Health & Famly Serv,Childrens Centre Development,Repairs & Maintenance,Internal Decoration,CD03,23/02/2011,3025543,-150.00,Revenue,PAUL GODFREY'S ARTISTIC DESIGNS,172304
North East Lincolnshire Council,http://statistics.data.gov.uk/id/local-authority/00FC,Children & Family Services,Childrens Health & Famly Serv,Childrens Centre Development,Miscellaneous Income,Contribution From Other Source,UY09,01/02/2011,3012892,-100.00,Revenue,RIVERSIDE CHILDRENS CENTRE,171729
North East Lincolnshire Council,http://statistics.data.gov.uk/id/local-authority/00FC,Children & Family Services,Childrens Health & Famly Serv,Childrens Centre Development,Equipment/Furniture/Materials,Furniture Purchases,HA01,23/02/2011,3025538,945.00,Revenue,NEWBY LEISURE LTD,131711
North East Lincolnshire Council,http://statistics.data.gov.uk/id/local-authority/00FC,Children & Family Services,Childrens Health & Famly Serv,Childrens Centre Development,Indirect Employee Expenses,Train Accredit & Certific Fee,BX08,14/02/2011,3019695,-320.00,Revenue,ST JOHN AMBULANCE,43317
North East Lincolnshire Council,http://statistics.data.gov.uk/id/local-authority/00FC,Children & Family Services,Childrens Health & Famly Serv,Childrens Centre Development,Miscellaneous Expenses,Other Activities,MQ01,23/02/2011,3025436,550.00,Revenue,LAND K SPORTS THERAPY,181747
North East Lincolnshire Council,http://statistics.data.gov.uk/id/local-authority/00FC,Children & Family Services,Childrens Health & Famly Serv,Childrens Centre Development,Indirect Employee Expenses,Train Accredit & Certific Fee,BX08,14/02/2011,3019696,560.00,Revenue,ST JOHN AMBULANCE,43317
North East Lincolnshire Council,http://statistics.data.gov.uk/id/local-authority/00FC,Children & Family Services,Childrens Health & Famly Serv,Childrens Centre Development,Repairs & Maintenance,Grounds Play Areas,CH78,23/02/2011,3025337,675.00,Revenue,NEWBY LEISURE LTD,131711
North East Lincolnshire Council,http://statistics.data.gov.uk/id/local-authority/00FC,Children & Family Services,Childrens Health & Famly Serv,Childrens Centre Development,Printing Station & Gen Off Exp,Print & Stat General,LA01,14/02/2011,3019687,734.82,Revenue,LYRECO UK LIMITED,117289
North East Lincolnshire Council,http://statistics.data.gov.uk/id/local-authority/00FC,Children & Family Services,Childrens Health & Famly Serv,Childrens Centre Development,Repairs & Maintenance,Grounds Play Areas,CH78,23/02/2011,3025336,980.00,Revenue,NEWBY LEISURE LTD,131711
North East Lincolnshire Council,http://statistics.data.gov.uk/id/local-authority/00FC,Children & Family Services,Childrens Health & Famly Serv,Childrens Centre Development,Catering,Provisions General,KG01,16/02/2011,3021542,"1,000.00",Revenue,TESCO STORES LIMITED,179643
North East Lincolnshire Council,http://statistics.data.gov.uk/id/local-authority/00FC,Children & Family Services,Childrens Health & Famly Serv,Childrens Centre Development,Repairs & Maintenance,Grounds Play Areas,CH78,23/02/2011,3025353,"1,240.00",Revenue,NEWBY LEISURE LTD,131711
North East Lincolnshire Council,http://statistics.data.gov.uk/id/local-authority/00FC,Children & Family Services,Childrens Health & Famly Serv,Childrens Centre Development,Printing Station & Gen Off Exp,Postages,LE01,14/02/2011,3020027,698.00,Revenue,LYRECO UK LIMITED,117289
North East Lincolnshire Council,http://statistics.data.gov.uk/id/local-authority/00FC,Children & Family Services,Childrens Health & Famly Serv,Childrens Centre Development,Equipment/Furniture/Materials,Furniture Purchases,HA01,07/02/2011,3015376,"1,098.00",Revenue,KES BUILDING MAINTENANCE LIMITED,43941
North East Lincolnshire Council,http://statistics.data.gov.uk/id/local-authority/00FC,Children & Family Services,Childrens Health & Famly Serv,Childrens Centre Development,Equipment/Furniture/Materials,Clean/Dom Equip Toiletries,HZ07,22/02/2011,3024942,-0.44,Revenue,BROADWAY & CENTRAL CHILDRENS CENTRE,167728
North East Lincolnshire Council,http://statistics.data.gov.uk/id/local-authority/00FC,Children & Family Services,Childrens Health & Famly Serv,Childrens Centre Development,Equipment/Furniture/Materials,Furniture Purchases,HA01,23/02/2011,3025545,897.11,Revenue,OFFICE FRIENDS LTD,177949
North East Lincolnshire Council,http://statistics.data.gov.uk/id/local-authority/00FC,Children & Family Services,Childrens Health & Famly Serv,Childrens Centre Development,Repairs & Maintenance,Grounds Play Areas,CH78,21/02/2011,3023440,"1,990.00",Revenue,NEWBY LEISURE LTD,131711
North East Lincolnshire Council,http://statistics.data.gov.uk/id/local-authority/00FC,Children & Family Services,Childrens Health & Famly Serv,Childrens Centre Development,Other Agencies,Child Care Payments,PM01,17/02/2011,3022203,640.01,Revenue,PRE SCHOOL LEARNING ALLIANCE,149980
North East Lincolnshire Council,http://statistics.data.gov.uk/id/local-authority/00FC,Children & Family Services,Childrens Health & Famly Serv,Childrens Centre Development,Equipment/Furniture/Materials,Equip Purchases,HC01,08/02/2011,3017228,648.00,Revenue,PADGETT BROS (AZ) LTD,176910
North East Lincolnshire Council,http://statistics.data.gov.uk/id/local-authority/00FC,Children & Family Services,Childrens Health & Famly Serv,Childrens Centre Development,Miscellaneous Expenses,Other Activities,MQ01,24/02/2011,3026170,889.11,Revenue,TECHNOLOGY TEACHING SYSTEMS LTD,100543
North East Lincolnshire Council,http://statistics.data.gov.uk/id/local-authority/00FC,Children & Family Services,Childrens Health & Famly Serv,Childrens Centre Development,Repairs & Maintenance,R & M Build General,CA01,21/02/2011,3024100,-82.95,Revenue,FINDEL EDUCATION LIMITED,132334
North East Lincolnshire Council,http://statistics.data.gov.uk/id/local-authority/00FC,Children & Family Services,Childrens Health & Famly Serv,Childrens Centre Development,Repairs & Maintenance,Internal Decoration,CD03,03/02/2011,3014073,620.00,Revenue,J MELTON LTD,33421
North East Lincolnshire Council,http://statistics.data.gov.uk/id/local-authority/00FC,Children & Family Services,Childrens Health & Famly Serv,Childrens Centre Development,Equipment/Furniture/Materials,Furniture Purchases,HA01,02/02/2011,3013696,890.00,Revenue,NEWBY LEISURE LTD,131711
North East Lincolnshire Council,http://statistics.data.gov.uk/id/local-authority/00FC,Children & Family Services,Childrens Health & Famly Serv,Childrens Centre Development,Other Agencies,Educational Visits,NH02,03/02/2011,3014055,"1,800.00",Revenue,E M EMMERSON,4355
North East Lincolnshire Council,http://statistics.data.gov.uk/id/local-authority/00FC,Children & Family Services,Childrens Health & Famly Serv,Childrens Centre Development,Printing Station & Gen Off Exp,Books Stat & Equip(Ed) Pchse,JN01,28/02/2011,3027829,-189.95,Revenue,TECHNOLOGY TEACHING SYSTEMS LTD,100543
North East Lincolnshire Council,http://statistics.data.gov.uk/id/local-authority/00FC,Children & Family Services,Childrens Health & Famly Serv,Childrens Centre Development,Printing Station & Gen Off Exp,Books Stat & Equip(Ed) Pchse,JN01,09/02/2011,3017944,-59.95,Revenue,FINDEL EDUCATION LIMITED,132334
North East Lincolnshire Council,http://statistics.data.gov.uk/id/local-authority/00FC,Children & Family Services,Childrens Health & Famly Serv,Childrens Centre Development,Printing Station & Gen Off Exp,Books Stat & Equip(Ed) Pchse,JN01,21/02/2011,3023769,-59.95,Revenue,FINDEL EDUCATION LIMITED,132334
North East Lincolnshire Council,http://statistics.data.gov.uk/id/local-authority/00FC,Children & Family Services,Childrens Health & Famly Serv,Childrens Centre Development,Printing Station & Gen Off Exp,Books Stat & Equip(Ed) Pchse,JN01,09/02/2011,3017946,-49.95,Revenue,FINDEL EDUCATION LIMITED,132334
North East Lincolnshire Council,http://statistics.data.gov.uk/id/local-authority/00FC,Children & Family Services,Childrens Health & Famly Serv,Childrens Centre Development,Printing Station & Gen Off Exp,Books Stat & Equip(Ed) Pchse,JN01,08/02/2011,3017176,556.90,Revenue,WESCO,153849
North East Lincolnshire Council,http://statistics.data.gov.uk/id/local-authority/00FC,Children & Family Services,Childrens Health & Famly Serv,Childrens Centre Development,Equipment/Furniture/Materials,Equip Purchases,HC01,11/02/2011,3018899,654.60,Revenue,PADGETT BROS (AZ) LTD,176910
North East Lincolnshire Council,http://statistics.data.gov.uk/id/local-authority/00FC,Children & Family Services,Childrens Health & Famly Serv,Childrens Centre Development,Equipment/Furniture/Materials,Off Equip Photocop Rent/Copies,HN71,28/02/2011,3027826,764.94,Revenue,UNITED CARLTON OFFICE SYSTEMS LTD,161525
North East Lincolnshire Council,http://statistics.data.gov.uk/id/local-authority/00FC,Children & Family Services,Childrens Health & Famly Serv,Childrens Centre Development,Printing Station & Gen Off Exp,Print & Stat General,LA01,14/02/2011,3020161,941.08,Revenue,LYRECO UK LIMITED,117289
North East Lincolnshire Council,http://statistics.data.gov.uk/id/local-authority/00FC,Children & Family Services,Childrens Health & Famly Serv,Childrens Centre Development,Printing Station & Gen Off Exp,Postages,LE01,14/02/2011,3020161,"1,003.50",Revenue,LYRECO UK LIMITED,117289
North East Lincolnshire Council,http://statistics.data.gov.uk/id/local-authority/00FC,Children & Family Services,Childrens Health & Famly Serv,Childrens Centre Development,Communication & Computing,Comp Equip Purchases,HK01,14/02/2011,3020072,"1,999.95",Revenue,FINDEL EDUCATION LIMITED,132334
North East Lincolnshire Council,http://statistics.data.gov.uk/id/local-authority/00FC,Children & Family Services,Childrens Health & Famly Serv,Childrens Centre Development,Indirect Employee Expenses,Train Accredit & Certific Fee,BX08,25/02/2011,3027055,500.00,Revenue,REDACTED PERSONAL DATA,REDACTED PERSONAL DATA
North East Lincolnshire Council,http://statistics.data.gov.uk/id/local-authority/00FC,Children & Family Services,Childrens Health & Famly Serv,Childrens Centre Development,Printing Station & Gen Off Exp,Postages,LE01,16/02/2011,3021378,649.50,Revenue,LYRECO UK LIMITED,117289
North East Lincolnshire Council,http://statistics.data.gov.uk/id/local-authority/00FC,Children & Family Services,Childrens Health & Famly Serv,Childrens Centre Development,Indirect Employee Expenses,Train Basic Skill - Course Fee,BX01,25/02/2011,3027092,715.00,Revenue,THE OPEN UNIVERSITY,72098
North East Lincolnshire Council,http://statistics.data.gov.uk/id/local-authority/00FC,Children & Family Services,Childrens Health & Famly Serv,Childrens Centre Development,Miscellaneous Expenses,Other Activities,MQ01,04/02/2011,3014851,"1,077.36",Revenue,PRE SCHOOL LEARNING ALLIANCE,149980
North East Lincolnshire Council,http://statistics.data.gov.uk/id/local-authority/00FC,Children & Family Services,Childrens Health & Famly Serv,Childrens Centre Development,Other Agencies,Child Care Payments,PM01,04/02/2011,3014951,"1,533.76",Revenue,PRE SCHOOL LEARNING ALLIANCE,149980
North East Lincolnshire Council,http://statistics.data.gov.uk/id/local-authority/00FC,Children & Family Services,Childrens Health & Famly Serv,Childrens Centre Development,Other Agencies,Child Care Payments,PM01,08/02/2011,3017340,636.70,Revenue,PRE SCHOOL LEARNING ALLIANCE,149980
North East Lincolnshire Council,http://statistics.data.gov.uk/id/local-authority/00FC,Children & Family Services,Childrens Health & Famly Serv,Childrens Centre Development,Printing Station & Gen Off Exp,Print & Stat General,LA01,16/02/2011,3021600,-19.53,Revenue,LYRECO UK LIMITED,117289
North East Lincolnshire Council,http://statistics.data.gov.uk/id/local-authority/00FC,Children & Family Services,Childrens Health & Famly Serv,Childrens Centre Development,Miscellaneous Expenses,Other Activities,MQ01,17/02/2011,3022232,855.90,Revenue,ROMPA INTERNATIONAL,44266
North East Lincolnshire Council,http://statistics.data.gov.uk/id/local-authority/00FC,Children & Family Services,Childrens Health & Famly Serv,Childrens Centre Development,Equipment/Furniture/Materials,Furniture Purchases,HA01,17/02/2011,3022504,861.00,Revenue,COMPUTERMARK EDUCATION SIGNS,145966
North East Lincolnshire Council,http://statistics.data.gov.uk/id/local-authority/00FC,Children & Family Services,Childrens Health & Famly Serv,Childrens Centre Development,Repairs & Maintenance,Grounds Play Areas,CH78,01/02/2011,3013107,"1,020.00",Revenue,NEWBY LEISURE LTD,131711
North East Lincolnshire Council,http://statistics.data.gov.uk/id/local-authority/00FC,Children & Family Services,Childrens Health & Famly Serv,Childrens Centre Development,Private Contractors,Outside Contractors,QH01,04/02/2011,3014843,"7,681.00",Revenue,NORTHERN LINCOLNSHIRE & GOOLE HOSPITALS,132777
North East Lincolnshire Council,http://statistics.data.gov.uk/id/local-authority/00FC,Children & Family Services,Childrens Health & Famly Serv,Childrens Centre Development,Private Contractors,Outside Contractors,QH01,04/02/2011,3014843,"8,592.00",Revenue,NORTHERN LINCOLNSHIRE & GOOLE HOSPITALS,132777
North East Lincolnshire Council,http://statistics.data.gov.uk/id/local-authority/00FC,Children & Family Services,Childrens Health & Famly Serv,Childrens Centre Development,Private Contractors,Outside Contractors,QH01,04/02/2011,3014843,"11,418.00",Revenue,NORTHERN LINCOLNSHIRE & GOOLE HOSPITALS,132777
North East Lincolnshire Council,http://statistics.data.gov.uk/id/local-authority/00FC,Children & Family Services,Childrens Health & Famly Serv,Int Local Service Delivery,Contributions To Provisions,Contributions To Funds,NV01,03/02/2011,3014000,"1,100.00",Revenue,HENRY,181585
North East Lincolnshire Council,http://statistics.data.gov.uk/id/local-authority/00FC,Children & Family Services,Childrens Health & Famly Serv,Int Local Service Delivery,Contributions To Provisions,Contributions To Funds,NV01,03/02/2011,3013992,"4,811.00",Revenue,HENRY,181585
North East Lincolnshire Council,http://statistics.data.gov.uk/id/local-authority/00FC,Children & Family Services,Childrens Health & Famly Serv,Int Local Service Delivery,Contributions To Provisions,Contributions To Funds,NV01,03/02/2011,3013995,"4,870.00",Revenue,HENRY,181585
North East Lincolnshire Council,http://statistics.data.gov.uk/id/local-authority/00FC,Children & Family Services,Childrens Health & Famly Serv,Int Local Service Delivery,Contributions To Provisions,Contributions To Funds,NV01,03/02/2011,3013997,"4,870.00",Revenue,HENRY,181585
North East Lincolnshire Council,http://statistics.data.gov.uk/id/local-authority/00FC,Children & Family Services,Childrens Health & Famly Serv,Int Local Service Delivery,Contributions To Provisions,Contributions To Funds,NV01,07/02/2011,3015370,"6,850.00",Revenue,CKP BUILDERS LTD,181579
North East Lincolnshire Council,http://statistics.data.gov.uk/id/local-authority/00FC,Children & Family Services,Childrens Health & Famly Serv,Int Local Service Delivery,Indirect Employee Expenses,Train Basic Skill - Course Fee,BX01,02/02/2011,3013673,"1,800.00",Revenue,REDACTED PERSONAL DATA,REDACTED PERSONAL DATA
North East Lincolnshire Council,http://statistics.data.gov.uk/id/local-authority/00FC,Children & Family Services,Childrens Health & Famly Serv,Int Local Service Delivery,Other Agencies,Agen Serv Priv Gp Private Prov,PQ01,17/02/2011,3022423,"1,957.73",Revenue,MJH EDUCATIONAL,179278
North East Lincolnshire Council,http://statistics.data.gov.uk/id/local-authority/00FC,Children & Family Services,Childrens Health & Famly Serv,Int Local Service Delivery,Other Agencies,Agen Serv Priv Gp Private Prov,PQ01,21/02/2011,3023874,"2,458.50",Revenue,FAMILY LINKS,154678
North East Lincolnshire Council,http://statistics.data.gov.uk/id/local-authority/00FC,Children & Family Services,Childrens Health & Famly Serv,Extended Services,Printing Station & Gen Off Exp,Books Stat & Equip(Ed) Pchse,JN01,09/02/2011,3017930,-8.99,Revenue,OFFICE FRIENDS LTD,177949
North East Lincolnshire Council,http://statistics.data.gov.uk/id/local-authority/00FC,Children & Family Services,Childrens Health & Famly Serv,Extended Services,Miscellaneous Expenses,Other Expenses General,NZ01,07/02/2011,3015614,600.00,Revenue,CLS SPORTS CONSULTANCY SERVICES,181141
North East Lincolnshire Council,http://statistics.data.gov.uk/id/local-authority/00FC,Children & Family Services,Childrens Health & Famly Serv,Extended Services,Miscellaneous Expenses,Other Expenses General,NZ01,07/02/2011,3015607,-550.00,Revenue,RENTOKIL PEST CONTROL,10836
North East Lincolnshire Council,http://statistics.data.gov.uk/id/local-authority/00FC,Children & Family Services,Childrens Health & Famly Serv,Extended Services,Repairs & Maintenance,R & M Build General,CA01,07/02/2011,3015789,530.00,Revenue,UNIBUILD BUILDING CONT. LTD,152055
North East Lincolnshire Council,http://statistics.data.gov.uk/id/local-authority/00FC,Children & Family Services,Childrens Health & Famly Serv,Extended Services,Miscellaneous Expenses,Other Expenses General,NZ01,07/02/2011,3015606,550.00,Revenue,RENTOKIL PEST CONTROL,10836
North East Lincolnshire Council,http://statistics.data.gov.uk/id/local-authority/00FC,Children & Family Services,Childrens Health & Famly Serv,Extended Services,Contributions To Provisions,Contributions To Funds,NV01,07/02/2011,3015623,507.33,Revenue,GREAT COATES PRI SCHOOL BUDGET A/C,149847
North East Lincolnshire Council,http://statistics.data.gov.uk/id/local-authority/00FC,Children & Family Services,Childrens Health & Famly Serv,Extended Services,Contributions To Provisions,Contributions To Funds,NV01,07/02/2011,3015612,500.00,Revenue,HUMBERSTON MATHS & COMPUTING COLLEGE,180763
North East Lincolnshire Council,http://statistics.data.gov.uk/id/local-authority/00FC,Children & Family Services,Childrens Health & Famly Serv,Extended Services,Printing Station & Gen Off Exp,Books Stat & Equip(Ed) Pchse,JN01,09/02/2011,3017956,505.44,Revenue,JJB SPORTS PLC,111486
North East Lincolnshire Council,http://statistics.data.gov.uk/id/local-authority/00FC,Children & Family Services,Childrens Health & Famly Serv,Extended Services,Printing Station & Gen Off Exp,Books Stat & Equip(Ed) Pchse,JN01,09/02/2011,3017955,506.13,Revenue,JJB SPORTS PLC,111486
North East Lincolnshire Council,http://statistics.data.gov.uk/id/local-authority/00FC,Children & Family Services,Childrens Health & Famly Serv,Extended Services,Miscellaneous Expenses,Other Activities,MQ01,10/02/2011,3017996,512.08,Revenue,GRIMSBY ALEXANDRAS & DOLPHINS,179437
North East Lincolnshire Council,http://statistics.data.gov.uk/id/local-authority/00FC,Children & Family Services,Childrens Health & Famly Serv,Extended Services,Printing Station & Gen Off Exp,Books Stat & Equip(Ed) Pchse,JN01,09/02/2011,3017957,524.38,Revenue,JJB SPORTS PLC,111486
North East Lincolnshire Council,http://statistics.data.gov.uk/id/local-authority/00FC,Children & Family Services,Childrens Health & Famly Serv,Extended Services,Printing Station & Gen Off Exp,Books Stat & Equip(Ed) Pchse,JN01,07/02/2011,3015622,527.63,Revenue,JJB SPORTS PLC,111486
North East Lincolnshire Council,http://statistics.data.gov.uk/id/local-authority/00FC,Children & Family Services,Childrens Health & Famly Serv,Extended Services,Other Agencies,Contact Visits,NH01,23/02/2011,3025715,533.50,Revenue,EASTFIELD PRIMARY SCHOOL,171923
North East Lincolnshire Council,http://statistics.data.gov.uk/id/local-authority/00FC,Children & Family Services,Childrens Health & Famly Serv,Extended Services,Miscellaneous Expenses,Other Activities,MQ01,09/02/2011,3017914,586.20,Revenue,SLM COMMUNITY LEISURE LTD,132571
North East Lincolnshire Council,http://statistics.data.gov.uk/id/local-authority/00FC,Children & Family Services,Childrens Health & Famly Serv,Extended Services,Printing Station & Gen Off Exp,Books Stat & Equip(Ed) Pchse,JN01,23/02/2011,3025546,597.56,Revenue,JJB SPORTS PLC,111486
North East Lincolnshire Council,http://statistics.data.gov.uk/id/local-authority/00FC,Children & Family Services,Childrens Health & Famly Serv,Extended Services,Miscellaneous Expenses,Other Activities,MQ01,07/02/2011,3015527,630.00,Revenue,30TH GRIMSBY (ST MARYS) BROWNIE PACK,181593
North East Lincolnshire Council,http://statistics.data.gov.uk/id/local-authority/00FC,Children & Family Services,Childrens Health & Famly Serv,Extended Services,Miscellaneous Expenses,Other Activities,MQ01,24/02/2011,3026156,637.00,Revenue,SIGNHILLS INFANTS SCHOOL FUND,181756
North East Lincolnshire Council,http://statistics.data.gov.uk/id/local-authority/00FC,Children & Family Services,Childrens Health & Famly Serv,Extended Services,Printing Station & Gen Off Exp,Books Stat & Equip(Ed) Pchse,JN01,09/02/2011,3017958,642.17,Revenue,JJB SPORTS PLC,111486
North East Lincolnshire Council,http://statistics.data.gov.uk/id/local-authority/00FC,Children & Family Services,Childrens Health & Famly Serv,Extended Services,Printing Station & Gen Off Exp,Books Stat & Equip(Ed) Pchse,JN01,09/02/2011,3017964,660.58,Revenue,JJB SPORTS PLC,111486
North East Lincolnshire Council,http://statistics.data.gov.uk/id/local-authority/00FC,Children & Family Services,Childrens Health & Famly Serv,Extended Services,Printing Station & Gen Off Exp,Books Stat & Equip(Ed) Pchse,JN01,09/02/2011,3017966,726.49,Revenue,JJB SPORTS PLC,111486
North East Lincolnshire Council,http://statistics.data.gov.uk/id/local-authority/00FC,Children & Family Services,Childrens Health & Famly Serv,Extended Services,Printing Station & Gen Off Exp,Books Stat & Equip(Ed) Pchse,JN01,09/02/2011,3017965,805.77,Revenue,JJB SPORTS PLC,111486
North East Lincolnshire Council,http://statistics.data.gov.uk/id/local-authority/00FC,Children & Family Services,Childrens Health & Famly Serv,Extended Services,Other Agencies,Contact Visits,NH01,23/02/2011,3025660,891.80,Revenue,WHITGIFT SCHOOL,75911
North East Lincolnshire Council,http://statistics.data.gov.uk/id/local-authority/00FC,Children & Family Services,Childrens Health & Famly Serv,Extended Services,Miscellaneous Expenses,Other Activities,MQ01,07/02/2011,3015661,944.18,Revenue,SLM COMMUNITY LEISURE LTD,132782
North East Lincolnshire Council,http://statistics.data.gov.uk/id/local-authority/00FC,Children & Family Services,Childrens Health & Famly Serv,Extended Services,Miscellaneous Expenses,Other Activities,MQ01,10/02/2011,3018004,979.00,Revenue,CANON PETER HALL CE PRIMARY,152058
North East Lincolnshire Council,http://statistics.data.gov.uk/id/local-authority/00FC,Children & Family Services,Childrens Health & Famly Serv,Extended Services,Miscellaneous Expenses,Other Activities,MQ01,10/02/2011,3018009,"1,207.30",Revenue,SLM COMMUNITY LEISURE LTD,134645
North East Lincolnshire Council,http://statistics.data.gov.uk/id/local-authority/00FC,Children & Family Services,Childrens Health & Famly Serv,Extended Services,Miscellaneous Expenses,Other Activities,MQ01,23/02/2011,3025684,"1,238.30",Revenue,SLM COMMUNITY LEISURE LTD,132571
North East Lincolnshire Council,http://statistics.data.gov.uk/id/local-authority/00FC,Children & Family Services,Childrens Health & Famly Serv,Extended Services,Miscellaneous Expenses,Other Activities,MQ01,23/02/2011,3025665,"1,462.93",Revenue,HAVELOCK ACADEMY,170096
North East Lincolnshire Council,http://statistics.data.gov.uk/id/local-authority/00FC,Children & Family Services,Childrens Health & Famly Serv,Extended Services,Miscellaneous Expenses,Other Activities,MQ01,09/02/2011,3017920,"2,692.20",Revenue,SLM COMMUNITY LEISURE LTD,132571
North East Lincolnshire Council,http://statistics.data.gov.uk/id/local-authority/00FC,Children & Family Services,Childrens Health & Famly Serv,Extended Services,Miscellaneous Expenses,Other Activities,MQ01,03/02/2011,3014046,"3,691.60",Revenue,SLM COMMUNITY LEISURE LTD,132571
North East Lincolnshire Council,http://statistics.data.gov.uk/id/local-authority/00FC,Children & Family Services,Childrens Health & Famly Serv,Childrens Centre Development,Equipment/Furniture/Materials,Off Equip Photocop Rent/Copies,HN71,28/02/2011,3027833,561.49,Revenue,UNITED CARLTON OFFICE SYSTEMS LTD,161525
North East Lincolnshire Council,http://statistics.data.gov.uk/id/local-authority/00FC,Children & Family Services,Childrens Health & Famly Serv,Childrens Centre Development,Printing Station & Gen Off Exp,Print & Stat General,LA01,14/02/2011,3019685,577.81,Revenue,LYRECO UK LIMITED,117289
North East Lincolnshire Council,http://statistics.data.gov.uk/id/local-authority/00FC,Children & Family Services,Childrens Health & Famly Serv,Childrens Centre Development,Equipment/Furniture/Materials,Equip Purchases,HC01,25/02/2011,3027105,636.60,Revenue,PADGETT BROS (AZ) LTD,176910
North East Lincolnshire Council,http://statistics.data.gov.uk/id/local-authority/00FC,Children & Family Services,Childrens Health & Famly Serv,Childrens Centre Development,Other Agencies,Child Care Payments,PM01,01/02/2011,3012429,701.31,Revenue,SECOND AVENUE RESOURCE CENTRE LIMITED,35803
North East Lincolnshire Council,http://statistics.data.gov.uk/id/local-authority/00FC,Children & Family Services,Childrens Health & Famly Serv,Childrens Centre Development,Repairs & Maintenance,Internal Decoration,CD03,14/02/2011,3020214,825.00,Revenue,J MELTON LTD,33421
North East Lincolnshire Council,http://statistics.data.gov.uk/id/local-authority/00FC,Children & Family Services,Childrens Health & Famly Serv,Childrens Centre Development,Repairs & Maintenance,R & M Build General,CA01,03/02/2011,3014082,"1,235.00",Revenue,SECOM,72494
North East Lincolnshire Council,http://statistics.data.gov.uk/id/local-authority/00FC,Children & Family Services,Childrens Health & Famly Serv,Childrens Centre Development,Repairs & Maintenance,Internal Decoration,CD03,11/02/2011,3018939,"1,980.00",Revenue,J MELTON LTD,33421
North East Lincolnshire Council,http://statistics.data.gov.uk/id/local-authority/00FC,Children & Family Services,Childrens Health & Famly Serv,Childrens Health Provision,Direct Employee Expenses,Pay Employment Agency Staff,AA53,25/02/2011,3026824,817.70,Revenue,ESP LTD,132218
North East Lincolnshire Council,http://statistics.data.gov.uk/id/local-authority/00FC,Children & Family Services,Childrens Health & Famly Serv,Childrens Health Provision,Direct Employee Expenses,Pay Employment Agency Staff,AA53,10/02/2011,3018420,817.70,Revenue,ESP LTD,132218
North East Lincolnshire Council,http://statistics.data.gov.uk/id/local-authority/00FC,Children & Family Services,Childrens Health & Famly Serv,Childrens Health Provision,Direct Employee Expenses,Pay Employment Agency Staff,AA53,21/02/2011,3024171,817.70,Revenue,ESP LTD,132218
North East Lincolnshire Council,http://statistics.data.gov.uk/id/local-authority/00FC,Children & Family Services,Childrens Health & Famly Serv,Childrens Health Provision,Direct Employee Expenses,Pay Employment Agency Staff,AA53,25/02/2011,3026796,817.70,Revenue,ESP LTD,132218
North East Lincolnshire Council,http://statistics.data.gov.uk/id/local-authority/00FC,Children & Family Services,Childrens Health & Famly Serv,Childrens Health Provision,Rents,Rent General,FJ01,25/02/2011,3026802,655.09,Revenue,WEELSBY VIEW HEALTH CENTRE,164599
North East Lincolnshire Council,http://statistics.data.gov.uk/id/local-authority/00FC,Children & Family Services,Childrens Health & Famly Serv,Childrens Health Provision,Rents,Rent General,FJ01,25/02/2011,3026804,815.42,Revenue,WEELSBY VIEW HEALTH CENTRE,164599
North East Lincolnshire Council,http://statistics.data.gov.uk/id/local-authority/00FC,Children & Family Services,Childrens Health & Famly Serv,Childrens Health Provision,Rents,Rent General,FJ01,25/02/2011,3026802,"1,310.16",Revenue,WEELSBY VIEW HEALTH CENTRE,164599
North East Lincolnshire Council,http://statistics.data.gov.uk/id/local-authority/00FC,Children & Family Services,Childrens Health & Famly Serv,Childrens Health Provision,Rents,Rent General,FJ01,25/02/2011,3026804,"1,630.83",Revenue,WEELSBY VIEW HEALTH CENTRE,164599
North East Lincolnshire Council,http://statistics.data.gov.uk/id/local-authority/00FC,Children & Family Services,Childrens Health & Famly Serv,Childrens Health Provision,Finance Leasing Charges,Leasing Charges General,RD01,04/02/2011,3014895,"15,625.18",Revenue,NORTH EAST LINCOLNSHIRE PRIMARY CARE TRUST,155381
North East Lincolnshire Council,http://statistics.data.gov.uk/id/local-authority/00FC,Children & Family Services,Childrens Health & Famly Serv,Childrens Health Provision,Private Contractors,Outside Contractors,QH01,17/02/2011,3022422,"3,000.00",Revenue,GRIMSBY TOWN FOOTBALL IN THE COMMUNITY,89372
North East Lincolnshire Council,http://statistics.data.gov.uk/id/local-authority/00FC,Children & Family Services,Childrens Health & Famly Serv,Childrens Health Provision,Private Contractors,Outside Contractors,QH01,08/02/2011,3017226,"9,050.00",Revenue,NORTHERN LINCOLNSHIRE & GOOLE HOSPITALS,132777
North East Lincolnshire Council,http://statistics.data.gov.uk/id/local-authority/00FC,Children & Family Services,Childrens Health & Famly Serv,Childrens Health Provision,Consultants,Consult Work Consult+Special,PG01,25/02/2011,3026715,"11,875.00",Revenue,OUTCOMES UK LTD,153183
North East Lincolnshire Council,http://statistics.data.gov.uk/id/local-authority/00FC,Children & Family Services,Childrens Health & Famly Serv,Childrens Health Provision,Consultants,Consult Work Consult+Special,PG01,08/02/2011,3017231,"14,375.00",Revenue,OUTCOMES UK LTD,153183
North East Lincolnshire Council,http://statistics.data.gov.uk/id/local-authority/00FC,Children & Family Services,Childrens Health & Famly Serv,Primary Care Provision,Direct Transport Costs,Hired Transport Hire Vehicle,GA01,24/02/2011,3026026,-68.00,Revenue,NORTHGATE VEHICLE HIRE,179268
North East Lincolnshire Council,http://statistics.data.gov.uk/id/local-authority/00FC,Children & Family Services,Childrens Health & Famly Serv,Primary Care Provision,Printing Station & Gen Off Exp,Books Stat & Equip(Ed) Pchse,JN01,21/02/2011,3024022,-49.08,Revenue,EAST RIDING OF YORKSHIRE COUNCIL,38856
North East Lincolnshire Council,http://statistics.data.gov.uk/id/local-authority/00FC,Children & Family Services,Childrens Health & Famly Serv,Primary Care Provision,Private Contractors,Outside Contractors,QH01,03/02/2011,3013971,908.50,Revenue,FAMILY LINKS,154678
North East Lincolnshire Council,http://statistics.data.gov.uk/id/local-authority/00FC,Children & Family Services,Childrens Health & Famly Serv,Primary Care Provision,Printing Station & Gen Off Exp,Books Stat & Equip(Ed) Pchse,JN01,21/02/2011,3023984,"1,398.00",Revenue,TACADE,141161
North East Lincolnshire Council,http://statistics.data.gov.uk/id/local-authority/00FC,Children & Family Services,Childrens Health & Famly Serv,Primary Care Provision,Private Contractors,Outside Contractors,QH01,24/02/2011,3026025,"3,500.00",Revenue,A J ENTERPRISE,181299
North East Lincolnshire Council,http://statistics.data.gov.uk/id/local-authority/00FC,Children & Family Services,Childrens Health & Famly Serv,Primary Care Provision,Private Contractors,Outside Contractors,QH01,17/02/2011,3022272,"8,968.00",Revenue,FAMILY LINKS,154678
North East Lincolnshire Council,http://statistics.data.gov.uk/id/local-authority/00FC,Children & Family Services,Childrens Health & Famly Serv,Integrated Youth Services,Miscellaneous Expenses,Other Activities,MQ01,28/02/2011,3027921,500.00,Revenue,NUNSTHORPE TOGETHER LTD,177150
North East Lincolnshire Council,http://statistics.data.gov.uk/id/local-authority/00FC,Children & Family Services,Childrens Health & Famly Serv,Integrated Youth Services,Printing Station & Gen Off Exp,Print & Stat General,LA01,08/02/2011,3017299,"2,347.00",Revenue,LAZENBYBROWN LTD,181529
North East Lincolnshire Council,http://statistics.data.gov.uk/id/local-authority/00FC,Children & Family Services,Childrens Health & Famly Serv,Integrated Youth Services,Miscellaneous Expenses,Other Activities,MQ01,25/02/2011,3027343,-370.00,Revenue,SATORI RYU,123319
North East Lincolnshire Council,http://statistics.data.gov.uk/id/local-authority/00FC,Children & Family Services,Childrens Health & Famly Serv,Integrated Youth Services,Equipment/Furniture/Materials,Equip Purchases,HC01,23/02/2011,3025287,-1.54,Revenue,YOUNG PEOPLES ADVENTUROUS ACTIVITY FOR P/CASH,171728
North East Lincolnshire Council,http://statistics.data.gov.uk/id/local-authority/00FC,Children & Family Services,Childrens Health & Famly Serv,Integrated Youth Services,Catering,Provisions General,KG01,15/02/2011,3021092,-1.30,Revenue,YOUTH OPPORTUNITY FUND FOR PETTY CASH,179633
North East Lincolnshire Council,http://statistics.data.gov.uk/id/local-authority/00FC,Children & Family Services,Childrens Health & Famly Serv,Integrated Youth Services,Indirect Employee Expenses,Train Basic Skill - Course Fee,BX01,11/02/2011,3019217,500.00,Revenue,DUKE OF EDINBURGHS AWARD,181657
North East Lincolnshire Council,http://statistics.data.gov.uk/id/local-authority/00FC,Children & Family Services,Childrens Health & Famly Serv,Integrated Youth Services,Indirect Employee Expenses,Train Basic Skill - Course Fee,BX01,17/02/2011,3022412,585.00,Revenue,EDUCATION CITY LTD,176762
North East Lincolnshire Council,http://statistics.data.gov.uk/id/local-authority/00FC,Children & Family Services,Childrens Health & Famly Serv,Integrated Youth Services,Printing Station & Gen Off Exp,Print & Stat General,LA01,14/02/2011,3020248,590.90,Revenue,ASDAN,77525
North East Lincolnshire Council,http://statistics.data.gov.uk/id/local-authority/00FC,Children & Family Services,Childrens Health & Famly Serv,Integrated Youth Services,Direct Transport Costs,Hired Transport Taxis,GA05,16/02/2011,3021497,REDACTED COMMERCIALLY SENSITIVE INFORMATION,Revenue,COXONS CARS LIMITED,5187
North East Lincolnshire Council,http://statistics.data.gov.uk/id/local-authority/00FC,Children & Family Services,Childrens Health & Famly Serv,Integrated Youth Services,Transport Insurance,Transport Insurance General,GV01,17/02/2011,3022414,645.00,Revenue,TOWERGATE PROFESSIONAL RISKS,170615
North East Lincolnshire Council,http://statistics.data.gov.uk/id/local-authority/00FC,Children & Family Services,Childrens Health & Famly Serv,Integrated Youth Services,Miscellaneous Expenses,Licences General,MZ01,14/02/2011,3020243,970.00,Revenue,THE AWARD SCHEME LTD,73291
North East Lincolnshire Council,http://statistics.data.gov.uk/id/local-authority/00FC,Children & Family Services,Childrens Health & Famly Serv,Integrated Youth Services,Equipment/Furniture/Materials,Equip Hire & Rental,HC71,08/02/2011,3017188,595.75,Revenue,UNITED CARLTON OFFICE SYSTEMS LTD,161525
North East Lincolnshire Council,http://statistics.data.gov.uk/id/local-authority/00FC,Children & Family Services,Childrens Health & Famly Serv,Integrated Youth Services,Contributions To Provisions,Contributions To Funds,NV01,16/02/2011,3021423,600.00,Revenue,BJB LIFT TRUCKS LTD,125184
North East Lincolnshire Council,http://statistics.data.gov.uk/id/local-authority/00FC,Children & Family Services,Childrens Health & Famly Serv,Integrated Youth Services,Contributions To Provisions,Contributions To Funds,NV01,16/02/2011,3021426,900.00,Revenue,BJB LIFT TRUCKS LTD,125184
North East Lincolnshire Council,http://statistics.data.gov.uk/id/local-authority/00FC,Children & Family Services,Childrens Health & Famly Serv,Integrated Youth Services,Equipment/Furniture/Materials,Equip Hire & Rental,HC71,08/02/2011,3017191,"1,335.02",Revenue,UNITED CARLTON OFFICE SYSTEMS LTD,161525
North East Lincolnshire Council,http://statistics.data.gov.uk/id/local-authority/00FC,Children & Family Services,Childrens Health & Famly Serv,Integrated Youth Services,Contributions To Provisions,Contributions To Funds,NV01,16/02/2011,3021353,"2,272.00",Revenue,NORTH EAST LINCS MOTOR PROJECT,117295
North East Lincolnshire Council,http://statistics.data.gov.uk/id/local-authority/00FC,Children & Family Services,Childrens Health & Famly Serv,Integrated Youth Services,Miscellaneous Expenses,Other Activities,MQ01,25/02/2011,3027347,-614.13,Revenue,YHA SHERWOOD FOREST,171919
North East Lincolnshire Council,http://statistics.data.gov.uk/id/local-authority/00FC,Children & Family Services,Childrens Health & Famly Serv,Integrated Youth Services,Miscellaneous Expenses,Other Activities,MQ01,25/02/2011,3027347,-120.80,Revenue,YHA SHERWOOD FOREST,171919
North East Lincolnshire Council,http://statistics.data.gov.uk/id/local-authority/00FC,Children & Family Services,Childrens Health & Famly Serv,Integrated Youth Services,Miscellaneous Expenses,Other Activities,MQ01,04/02/2011,3014695,-100.00,Revenue,REDACTED PERSONAL DATA,REDACTED PERSONAL DATA
North East Lincolnshire Council,http://statistics.data.gov.uk/id/local-authority/00FC,Children & Family Services,Childrens Health & Famly Serv,Integrated Youth Services,Miscellaneous Expenses,Other Activities,MQ01,10/02/2011,3018361,507.41,Revenue,SIDEDOOR YOUTH & COMMUNITY CHURCH,181640
North East Lincolnshire Council,http://statistics.data.gov.uk/id/local-authority/00FC,Children & Family Services,Childrens Health & Famly Serv,Integrated Youth Services,Indirect Employee Expenses,Train Accredit & Certific Fee,BX08,28/02/2011,3027901,520.00,Revenue,COTTAGERS PLOT EQUESTRIAN CENTRE,165678
North East Lincolnshire Council,http://statistics.data.gov.uk/id/local-authority/00FC,Children & Family Services,Childrens Health & Famly Serv,Integrated Youth Services,Indirect Employee Expenses,Train Accredit & Certific Fee,BX08,14/02/2011,3020075,556.98,Revenue,EAST RIDING OF YORKSHIRE COUNCIL,38856
North East Lincolnshire Council,http://statistics.data.gov.uk/id/local-authority/00FC,Children & Family Services,Childrens Health & Famly Serv,Integrated Youth Services,Miscellaneous Expenses,Other Activities,MQ01,04/02/2011,3014929,599.17,Revenue,YOUTH HOSTELS ASSOCIATION,146325
North East Lincolnshire Council,http://statistics.data.gov.uk/id/local-authority/00FC,Children & Family Services,Childrens Health & Famly Serv,Integrated Youth Services,Miscellaneous Expenses,Other Activities,MQ01,14/02/2011,3019649,606.00,Revenue,ALTON TOWERS,179899
North East Lincolnshire Council,http://statistics.data.gov.uk/id/local-authority/00FC,Children & Family Services,Childrens Health & Famly Serv,Integrated Youth Services,Miscellaneous Expenses,Other Activities,MQ01,25/02/2011,3027321,630.40,Revenue,OASIS ACADEMY IMMINGHAM,169680
